Workbook

Sheet Portada.ORI (hidden)
B1: { NOMBRE INSTITUCIÓN / MINISTERIO } - { PAÍS }
B2: { NOMBRE PROYECTO }
B3: V.01 | E3: ENCUESTA DE ESTABLECIMIENTOS EDUCATIVOS - { AÑO } | AC3: IDENTIFICADOR DEL ESTABLECIMIENTO EDUCATIVO
B4: 1 | C4: NOMBRE DEL ESTABLECIMIENTO:
B7: A.- DIRECCIÓN EXACTA DEL ESTABLECIMIENTO | U7: B.- TIPO Y CONTACTOS
B9: 2 | C9: { REGIÓN/ESTADO } | U9: 12 | V9: TIPO:
B11: 3 | C11: { PROVINCIA } | V11: 1 | W11: PRIMARIA | AE11: 4 | AF11: SECUNDARIA TÉCNICA
B13: 4 | C13: { MUNICIPIO } | V13: 2 | W13: SECUNDARIA | AE13: 5 | AF13: {OTRO 1}
B15: 5 | C15: { LOCALIDAD } | V15: 3 | W15: AMBAS, PRIMARIA Y SECUNDARIA | AE15: 6 | AF15: {OTRO 2}
B17: 6 | C17: { ZONA / BARRIO } | U17: 13 | V17: NOMBRE DEL DIRECTOR/A:
B19: 7 | C19: CALLE
B21: 8 | C21: NÚMERO | U21: 14 | V21: TELÉFONOS:
B23: 9 | C23: OTRAS REFERENCIAS | X23: -1
F25: GEOREFERENCIACIÓN: | X25: -2
C26: C10 | E26: S | H26: ° | K26: ' | Q26: ''
C28: C11 | E28: W | H28: ° | K28: ' | Q28: '' | X28: -3
B32: C. INFORMACIÓN SOBRE LA ENTREVISTA
B34: 15 | C34: ENCUESTADOR/A | Q34: VISITA | R34: FECHA | V34: RESULTADO | W34: HORA INICIO | Y34: HORA FIN | AA34: 22 | AB34: IDIOMA DE LA ENTREVISTA
AB35: 1 | AC35: CASTELLANO
B36: 16 | C36: SUPERVISOR/A | AB36: 2 | AC36: { OTRA LENGUA - 1 }
R37: DD | S37: MM | T37: AAAA | AB37: 3 | AC37: { OTRA LENGUA - 2 }
B38: 17 | C38: { OTRO PERSONAL - 1 } | Q38: 1 | AB38: 4 | AC38: { OTRA LENGUA - 3 }
Q39: 2 | AB39: 5 | AC39: { OTRA LENGUA - 4 }
B40: 18 | C40: { OTRO PERSONAL - 2 } | Q40: 3 | AB40: 6 | AC40: { OTRA LENGUA - 5 }
Q41: 4
B42: 19 | C42: { OTRO PERSONAL - 3 } | O42: 21 | P42: CÓDIGOS RESULTADO
P43: 1 | Q43: COMPLETA | T43: 3 | U43: RECHAZO | X43: 5 | Y43: DESOCUPADO
P44: 2 | Q44: PARCIAL | T44: 4 | U44: NO CONTACTÓ | X44: 6 | Y44: CERRADO TEMPORALMENTE

Sheet Copyright_Esp

Sheet Portada
B1: { NOMBRE INSTITUCIÓN / MINISTERIO } - { PAÍS }
B2: { NOMBRE PROYECTO }
B3: V.01 | E3: ENCUESTA DE ESTABLECIMIENTOS EDUCATIVOS - { AÑO } | AC3: IDENTIFICADOR DEL ESTABLECIMIENTO EDUCATIVO
B4: 1 | C4: NOMBRE DEL ESTABLECIMIENTO:
B7: A.- DIRECCIÓN EXACTA DEL ESTABLECIMIENTO | U7: B.- TIPO Y CONTACTOS
B9: 2 | C9: { REGIÓN/ESTADO } | U9: 12 | V9: TIPO:
B11: 3 | C11: { PROVINCIA } | V11: 1 | W11: PRIMARIA | AE11: 4 | AF11: SECUNDARIA TÉCNICA
B13: 4 | C13: { MUNICIPIO } | V13: 2 | W13: SECUNDARIA | AE13: 5 | AF13: {OTRO 1}
B15: 5 | C15: { LOCALIDAD } | V15: 3 | W15: AMBAS, PRIMARIA Y SECUNDARIA | AE15: 6 | AF15: {OTRO 2}
B17: 6 | C17: { ZONA / BARRIO } | U17: 13 | V17: NOMBRE DEL DIRECTOR/A:
B19: 7 | C19: CALLE
B21: 8 | C21: NÚMERO | U21: 14 | V21: TELÉFONOS:
B23: 9 | C23: OTRAS REFERENCIAS | X23: -1
F25: GEOREFERENCIACIÓN: | X25: -2
C26: C10 | E26: S | H26: ° | K26: ' | Q26: ''
C28: C11 | E28: W | H28: ° | K28: ' | Q28: '' | X28: -3
B32: C. INFORMACIÓN SOBRE LA ENTREVISTA
B34: 15 | C34: ENCUESTADOR/A | Q34: VISITA | R34: FECHA | V34: RESULTADO | W34: HORA INICIO | Y34: HORA FIN | AA34: 22 | AB34: IDIOMA DE LA ENTREVISTA
AB35: 1 | AC35: CASTELLANO
B36: 16 | C36: SUPERVISOR/A | AB36: 2 | AC36: { OTRA LENGUA - 1 }
R37: DD | S37: MM | T37: AAAA | AB37: 3 | AC37: { OTRA LENGUA - 2 }
B38: 17 | C38: { OTRO PERSONAL - 1 } | Q38: 1 | AB38: 4 | AC38: { OTRA LENGUA - 3 }
Q39: 2 | AB39: 5 | AC39: { OTRA LENGUA - 4 }
B40: 18 | C40: { OTRO PERSONAL - 2 } | Q40: 3 | AB40: 6 | AC40: { OTRA LENGUA - 5 }
Q41: 4
B42: 19 | C42: { OTRO PERSONAL - 3 } | O42: 21 | P42: CÓDIGOS RESULTADO
P43: 1 | Q43: COMPLETA | T43: 3 | U43: RECHAZO | X43: 5 | Y43: DESOCUPADO
P44: 2 | Q44: PARCIAL | T44: 4 | U44: NO CONTACTÓ | X44: 6 | Y44: CERRADO TEMPORALMENTE

Sheet 1.Director.ORI (hidden)
A1: SECCIÓN 1: DIRECTOR/A DEL ESTABLECIMIENTO
A2: RESPONDE: EL DIRECTOR/A O SUB-DIRECTOR/A
A4: -1.01 | B4: ¿Qué edad tiene usted? | S4: =A37-0.01 -> -1.08 | T4: ¿Hizo usted un curso de administración?
L5: EDAD EN AÑOS: | U5: 1 | V5: SI
A6: =A4-0.01 -> -1.02 | B6: ANOTE EL SEXO DEL DIRECTOR/A | U6: 2 | V6: NO | W6: ► | X6: =S14 -> -1.1
C7: 1 | D7: HOMBRE
C8: 2 | D8: MUJER | S8: =S4-0.01 -> -1.09 | T8: ¿Cuál fue el área de ese/esos curso(s) de administracoión?
U9: 1 | V9: ADMINISTRACIÓN DE ESTABLECIMIENTOS EDUCACIONALES
A10: =A6-0.01 -> -1.03 | B10: ¿Desde qué año trabaja usted en este establecimiento?
L11: AÑO: | U11: 2 | V11: ADMINISTRACIÓN DE EMPRESAS
A12: =A10-0.01 -> -1.04 | B12: ¿Cuándo fue nombrado director/a de este establecimiento? | U12: 3 | V12: OTRO
L13: AÑO:
S14: =S8-0.01 -> -1.1 | T14: ¿Tiene usted el título de maestro/profesor de escuela?
A15: =A12-0.01 -> -1.05 | B15: ¿Quién lo/a nombró director/a? | U15: 1 | V15: SI
B16: 1 | C16: MINISTERIO DE EDUCACIÓN (CENTRAL) | U16: 2 | V16: NO | W16: ► | X16: =S29 -> -1.13
B17: 2 | C17: SEDE REGIONAL/ESTATAL DEL MINISTERIO DE EDUCACIÓN | S17: =S14-0.01 -> -1.11 | T17: ¿Su título de maestro/prefosor, es en algún área específica?
B18: 3 | C18: LA COMUNIDAD DE PADRES | U18: 1 | V18: SI
B19: 4 | C19: EL LIDER COMUNITARIO | U19: 2 | V19: NO | Y19: ► | Z19: =S29 -> -1.13
B20: 5 | C20: EL DUEÑO/A DEL ESTABLECIMIENTO | S20: =S17-0.01 -> -1.12 | T20: ¿En qué áreas/materias está usted titulado como maestro/profesor?
B21: 6 | C21: { OTRO 1 } | T21: 1 | U21: MATEMÁTICAS | Y21: 8 | Z21: MÚSICA
B22: 7 | C22: { OTRO 2 } | T22: 2 | U22: CASTELLANO | Y22: 9 | Z22: INGLÉS
B23: 8 | C23: OTRO | T23: 3 | U23: CIENCIAS | Y23: 10 | Z23: { OTRO 1 }
T24: 4 | U24: FÍSICA | Y24: 11 | Z24: { OTRO 2 }
A25: =A15-0.01 -> -1.06 | B25: ¿Cuál es el último NIVEL Y CURSO más alto de instrucción que usted aprobó? | T25: 5 | U25: FILOSOFÍA | Y25: 12 | Z25: { OTRO 3 }
T26: 6 | U26: MANUALIDADES | Y26: 13 | Z26: { OTRO 4 }
B27: NIVEL | H27: CURSO | T27: 7 | U27: EDUCACIÓN FÍSICA | Y27: 14 | Z27: OTRO
B28: 1 | C28: PRIMARIA | H28: 1 - 7 | I28: ► | J28: =S29 -> -1.13
B29: 2 | C29: SECUNDARIA | H29: 1 - 5 | I29: ► | J29: =S29 -> -1.13 | M29: NIVEL: | S29: =S20-0.01 -> -1.13 | T29: Durante el año escolar, ¿Cuántas horas por semana usted trabaja como director/a de escuela?
B30: 3 | C30: BACHILLERATO | H30: 1 - 5 | I30: ► | J30: =S29 -> -1.13
B31: 4 | C31: TERCIARIO TÉCNICO | H31: 1 - 3 | M31: CURSO: | AE31: HORAS POR SEMANA:
B32: 5 | C32: TERCIARIO COMERCIAL | H32: 1 - 3 | S32: =S29-0.01 -> -1.14 | T32: ¿En la actualidad, dicta usted clases en esta escuela?
B33: 6 | C33: UNIVERSITARIA | H33: 1 - 4 | U33: 1 | V33: SI
B34: 7 | C34: MAESTRIA/DOCTORADO | H34: 1 - 5 | U34: 2 | V34: NO | W34: ► | X34: =A43 -> -1.16
B35: 8 | C35: OTRO (ESPECIFIQUE) | J35: ► | K35: =S29 -> -1.13 | S35: =S32-0.01 -> -1.15 | T35: ¿Cuántas horas por semana dedica usted para dar clases?
AE36: HORAS POR SEMANA:
A37: =A25-0.01 -> -1.07 | B37: ¿En qué año aprobó usted ese último nivel y curso? | M37: AÑO:
A41: SECCIÓN 1: DIRECTOR/A DEL ESTABLECIMIENTO
A43: =S35-0.01 -> -1.16 | B43: ¿Está usted actualmente estudiando algún otro título técnico o comercial? | S43: =M57-0.01 -> -1.21 | T43: ¿Cuál fue sl salario del mes pasado como Director de esta escuela? (Incluya honorarios por su desempeño como maestro o profesor)
C44: 1 | D44: SI
C45: 2 | D45: NO | E45: ► | F45: =I57 -> -1.19 | U45: PARA LOS ÍTEMS QUE NO SON "EFECTIVO", PIDA ESTIMAR EL VALOR MONETARIO
W46: MONTO { $ } | AE46: MONTO { $ }
A47: =A43-0.01 -> -1.17 | B47: ¿Quál título técnico o comercial está usted estudiando actualmente? | T47: a. | U47: En efectivo | AA47: d. | AB47: Transporte
C48: 1 | D48: { TÍTULO 1 } | T48: b. | U48: Comida | AA48: e. | AB48: Otros
C49: 2 | D49: { TÍTULO 2 } | T49: c. | U49: Vivienda | AA49: f. | AB49: TOTAL
C50: 3 | D50: { TÍTULO 3 }
C51: 4 | D51: OTRO
S52: =S43-0.01 -> -1.22 | T52: Además de su trabajo como director/a, ¿tiene usted otro trabajo?
A53: =A47-0.01 -> -1.18 | B53: ¿Durante el último año escolar, asistió usted a algún curso de perfeccionamiento?
C54: 1 | D54: SI | U54: 1 | V54: SI
C55: 2 | D55: NO | E55: ► | F55: =S43 -> -1.21 | U55: 2 | V55: NO | W55: ► PRÓXIMA SECCIÓN
A57: NÚMERO CURSO | I57: =A53-0.01 -> -1.19 | M57: =I57-0.01 -> -1.2 | S57: =S52-0.01 -> -1.23 | T57: ¿Cuál de estas categorías diría usted que es la que mejor describe su otro trabajo?
I58: ¿Asistió usted a [ {CURSO PERFECCIONAMIENTO} ] durante el último año escolar? | M58: ¿Quién financió [ {CURSO PERFECCIONAMIENTO} ]? | U58: 1 | V58: AGRICULTURA
U59: 2 | V59: POR CUENTA PROPIA
U60: 3 | V60: { OTRA 1 }
U61: 4 | V61: { OTRA 2 }
M62: 1 | N62: YO MISMO/A | U62: 5 | V62: OTRO
M63: 2 | N63: LA ESCUELA
I64: 1 | K64: SI | M64: 3 | N64: { OTRO - 1 } | S64: =S57-0.01 -> -1.24 | T64: ¿En los últimos 12 meses, cuanto recibió usted en total por ese/esos otro(s) trabajo(s)?
I65: 2 | K65: NO | M65: 4 | N65: { OTRO - 2 }
I66: ► PRÓXIMO CURSO | M66: 5 | N66: { OTRO - 3 } | AC66: MONTO { $ }
A68: 1 | B68: { CURSO PERFECCIONAMIENTO 1 }
A69: 2 | B69: { CURSO PERFECCIONAMIENTO 2 } | S69: =S64-0.01 -> -1.25 | T69: Nació usted en…
A70: 3 | B70: { CURSO PERFECCIONAMIENTO 3 } | T70: LEER EN VOZ ALTA
A71: 4 | B71: { CURSO PERFECCIONAMIENTO 4 } | T71: 1 | U71: ¿la misma {Localidad}?
A72: 5 | B72: { CURSO PERFECCIONAMIENTO 5 } | T72: 2 | U72: ¿el mismo {Municilio}?
A73: 6 | B73: { CURSO PERFECCIONAMIENTO 6 } | T73: 3 | U73: ¿la misma {Provincia}?
A74: 7 | B74: { CURSO PERFECCIONAMIENTO 7 } | T74: 4 | U74: ¿la misma {Región/Estado}?
T75: 5 | U75: ¿otro país?

Sheet 1.Director
A1: SECCIÓN 1: DIRECTOR/A DEL ESTABLECIMIENTO
A2: RESPONDE: EL DIRECTOR/A O SUB-DIRECTOR/A
A4: -1.01 | B4: ¿Qué edad tiene usted? | S4: =A37-0.01 -> -1.08 | T4: ¿Hizo usted un curso de administración?
L5: EDAD EN AÑOS: | U5: 1 | V5: SI
A6: =A4-0.01 -> -1.02 | B6: ANOTE EL SEXO DEL DIRECTOR/A | U6: 2 | V6: NO | W6: ► | X6: =S14 -> -1.1
C7: 1 | D7: HOMBRE
C8: 2 | D8: MUJER | S8: =S4-0.01 -> -1.09 | T8: ¿Cuál fue el área de ese/esos curso(s) de administracoión?
U9: 1 | V9: ADMINISTRACIÓN DE ESTABLECIMIENTOS EDUCACIONALES
A10: =A6-0.01 -> -1.03 | B10: ¿Desde qué año trabaja usted en este establecimiento?
L11: AÑO: | U11: 2 | V11: ADMINISTRACIÓN DE EMPRESAS
A12: =A10-0.01 -> -1.04 | B12: ¿Cuándo fue nombrado director/a de este establecimiento? | U12: 3 | V12: OTRO
L13: AÑO:
S14: =S8-0.01 -> -1.1 | T14: ¿Tiene usted el título de maestro/profesor de escuela?
A15: =A12-0.01 -> -1.05 | B15: ¿Quién lo/a nombró director/a? | U15: 1 | V15: SI
B16: 1 | C16: MINISTERIO DE EDUCACIÓN (CENTRAL) | U16: 2 | V16: NO | W16: ► | X16: =S29 -> -1.13
B17: 2 | C17: SEDE REGIONAL/ESTATAL DEL MINISTERIO DE EDUCACIÓN | S17: =S14-0.01 -> -1.11 | T17: ¿Su título de maestro/prefosor, es en algún área específica?
B18: 3 | C18: LA COMUNIDAD DE PADRES | U18: 1 | V18: SI
B19: 4 | C19: EL LIDER COMUNITARIO | U19: 2 | V19: NO | Y19: ► | Z19: =S29 -> -1.13
B20: 5 | C20: EL DUEÑO/A DEL ESTABLECIMIENTO | S20: =S17-0.01 -> -1.12 | T20: ¿En qué áreas/materias está usted titulado como maestro/profesor?
B21: 6 | C21: { OTRO 1 } | T21: 1 | U21: MATEMÁTICAS | Y21: 8 | Z21: MÚSICA
B22: 7 | C22: { OTRO 2 } | T22: 2 | U22: CASTELLANO | Y22: 9 | Z22: INGLÉS
B23: 8 | C23: OTRO | T23: 3 | U23: CIENCIAS | Y23: 10 | Z23: { OTRO 1 }
T24: 4 | U24: FÍSICA | Y24: 11 | Z24: { OTRO 2 }
A25: =A15-0.01 -> -1.06 | B25: ¿Cuál es el último NIVEL Y CURSO más alto de instrucción que usted aprobó? | T25: 5 | U25: FILOSOFÍA | Y25: 12 | Z25: { OTRO 3 }
T26: 6 | U26: MANUALIDADES | Y26: 13 | Z26: { OTRO 4 }
B27: NIVEL | H27: CURSO | T27: 7 | U27: EDUCACIÓN FÍSICA | Y27: 14 | Z27: OTRO
B28: 1 | C28: PRIMARIA | H28: 1 - 7 | I28: ► | J28: =S29 -> -1.13
B29: 2 | C29: SECUNDARIA | H29: 1 - 5 | I29: ► | J29: =S29 -> -1.13 | M29: NIVEL: | S29: =S20-0.01 -> -1.13 | T29: Durante el año escolar, ¿Cuántas horas por semana usted trabaja como director/a de escuela?
B30: 3 | C30: BACHILLERATO | H30: 1 - 5 | I30: ► | J30: =S29 -> -1.13
B31: 4 | C31: TERCIARIO TÉCNICO | H31: 1 - 3 | M31: CURSO: | AE31: HORAS POR SEMANA:
B32: 5 | C32: TERCIARIO COMERCIAL | H32: 1 - 3 | S32: =S29-0.01 -> -1.14 | T32: ¿En la actualidad, dicta usted clases en esta escuela?
B33: 6 | C33: UNIVERSITARIA | H33: 1 - 4 | U33: 1 | V33: SI
B34: 7 | C34: MAESTRIA/DOCTORADO | H34: 1 - 5 | U34: 2 | V34: NO | W34: ► | X34: =A43 -> -1.16
B35: 8 | C35: OTRO (ESPECIFIQUE) | J35: ► | K35: =S29 -> -1.13 | S35: =S32-0.01 -> -1.15 | T35: ¿Cuántas horas por semana dedica usted para dar clases?
AE36: HORAS POR SEMANA:
A37: =A25-0.01 -> -1.07 | B37: ¿En qué año aprobó usted ese último nivel y curso? | M37: AÑO:
A41: SECCIÓN 1: DIRECTOR/A DEL ESTABLECIMIENTO
A43: =S35-0.01 -> -1.16 | B43: ¿Está usted actualmente estudiando algún otro título técnico o comercial? | S43: =M57-0.01 -> -1.21 | T43: ¿Cuál fue sl salario del mes pasado como Director de esta escuela? (Incluya honorarios por su desempeño como maestro o profesor)
C44: 1 | D44: SI
C45: 2 | D45: NO | E45: ► | F45: =I57 -> -1.19 | U45: PARA LOS ÍTEMS QUE NO SON "EFECTIVO", PIDA ESTIMAR EL VALOR MONETARIO
W46: MONTO { $ } | AE46: MONTO { $ }
A47: =A43-0.01 -> -1.17 | B47: ¿Quál título técnico o comercial está usted estudiando actualmente? | T47: a. | U47: En efectivo | AA47: d. | AB47: Transporte
C48: 1 | D48: { TÍTULO 1 } | T48: b. | U48: Comida | AA48: e. | AB48: Otros
C49: 2 | D49: { TÍTULO 2 } | T49: c. | U49: Vivienda | AA49: f. | AB49: TOTAL
C50: 3 | D50: { TÍTULO 3 }
C51: 4 | D51: OTRO
S52: =S43-0.01 -> -1.22 | T52: Además de su trabajo como director/a, ¿tiene usted otro trabajo?
A53: =A47-0.01 -> -1.18 | B53: ¿Durante el último año escolar, asistió usted a algún curso de perfeccionamiento?
C54: 1 | D54: SI | U54: 1 | V54: SI
C55: 2 | D55: NO | E55: ► | F55: =S43 -> -1.21 | U55: 2 | V55: NO | W55: ► PRÓXIMA SECCIÓN
A57: NÚMERO CURSO | I57: =A53-0.01 -> -1.19 | M57: =I57-0.01 -> -1.2 | S57: =S52-0.01 -> -1.23 | T57: ¿Cuál de estas categorías diría usted que es la que mejor describe su otro trabajo?
I58: ¿Asistió usted a [ {CURSO PERFECCIONAMIENTO} ] durante el último año escolar? | M58: ¿Quién financió [ {CURSO PERFECCIONAMIENTO} ]? | U58: 1 | V58: AGRICULTURA
U59: 2 | V59: POR CUENTA PROPIA
U60: 3 | V60: { OTRA 1 }
U61: 4 | V61: { OTRA 2 }
M62: 1 | N62: YO MISMO/A | U62: 5 | V62: OTRO
M63: 2 | N63: LA ESCUELA
I64: 1 | K64: SI | M64: 3 | N64: { OTRO - 1 } | S64: =S57-0.01 -> -1.24 | T64: ¿En los últimos 12 meses, cuanto recibió usted en total por ese/esos otro(s) trabajo(s)?
I65: 2 | K65: NO | M65: 4 | N65: { OTRO - 2 }
I66: ► PRÓXIMO CURSO | M66: 5 | N66: { OTRO - 3 } | AC66: MONTO { $ }
A68: 1 | B68: { CURSO PERFECCIONAMIENTO 1 }
A69: 2 | B69: { CURSO PERFECCIONAMIENTO 2 } | S69: =S64-0.01 -> -1.25 | T69: Nació usted en…
A70: 3 | B70: { CURSO PERFECCIONAMIENTO 3 } | T70: LEER EN VOZ ALTA
A71: 4 | B71: { CURSO PERFECCIONAMIENTO 4 } | T71: 1 | U71: ¿la misma {Localidad}?
A72: 5 | B72: { CURSO PERFECCIONAMIENTO 5 } | T72: 2 | U72: ¿el mismo {Municilio}?
A73: 6 | B73: { CURSO PERFECCIONAMIENTO 6 } | T73: 3 | U73: ¿la misma {Provincia}?
A74: 7 | B74: { CURSO PERFECCIONAMIENTO 7 } | T74: 4 | U74: ¿la misma {Región/Estado}?
T75: 5 | U75: ¿otro país?

Sheet 2.Escuela.ORI (hidden)
A1: SECCIÓN 2: CARÁCTERÍSTICAS DEL ESTABLECIMIENTO
A2: RESPONDE: EL DIRECTOR/A O SUB-DIRECTOR/A
A3: -2.01 | B3: ¿Cuál es el tipo de este establecimiento? | S3: =A34-0.01 -> -2.06 | T3: ¿Se utiliza este establecimiento para otros propósitos?
B4: LEA EN VOZ ALTA | V4: 1 | W4: SI
B5: 1 | C5: Es público? | V5: 2 | W5: NO
B6: 2 | C6: Es privado religioso?
B7: 3 | C7: Es privado laico? | S7: =S3-0.01 -> -2.07 | T7: ¿Hay salas especiales para alumnos/as con necesidades especiales?
V8: 1 | W8: SI
A9: =A3-0.01 -> -2.02 | B9: ¿Qué religión se enseña en este establecimiento? | V9: 2 | W9: NO | X9: ► | Y9: =S13-0.01 -> -2.1
B10: 1 | C10: NINGUNA
B11: 2 | C11: CATÓLICA | S11: =S7-0.01 -> -2.08 | T11: ¿Cuántas salas especiales hay?
B12: 3 | C12: JUDÍA | AF12: NÚMERO:
B13: 4 | C13: PROTESTANTE | S13: =S11-0.01 -> -2.09 | T13: ¿Consta este establecimiento con educación pre-escolar?
B14: 5 | C14: CRISTIANA | V14: 1 | W14: SI
B15: 6 | C15: { OTRA - 1 } | V15: 2 | W15: NO
B16: 7 | C16: { OTRA - 2 }
S17: =S13-0.01 -> -2.1 | T17: ¿En qué horario está este establecimiento en funcionamiento?
A18: =A9-0.01 -> -2.03 | B18: ¿Bajo que nivel de gobierno se encuentra la administración de este establecimiento? | Z18: HH | AA18: MM | AF18: HH | AG18: MM
T19: a. | U19: En la mañana: | Y19: DESDE: | AE19: HASTA:
B20: MINISTERIO DE EDUCACIÓN….
C21: 1 | D21: NIVEL CENTRAL | T21: b. | U21: En la tarde: | Y21: DESDE: | AE21: HASTA:
C22: 2 | D22: NIVEL REGIONAL/ESTATAL
C23: 3 | D23: NIVEL PROVINCIAL | T23: c. | U23: En la noche: | Y23: DESDE: | AE23: HASTA:
C24: 4 | D24: NIVEL MUNICIPAL
B25: OTROS… | S25: =S17-0.01 -> -2.11 | T25: Respecto a la política de nuevas admisiones, acepta este establecimiento a todos los postulantes?
C26: 5 | D26: IGLESIA
C27: 6 | D27: ONG | V27: 1 | W27: SI
C28: 7 | D28: COMUNIDAD | V28: 2 | W28: NO | X28: ► | Y28: =A44 -> -2.13
C29: 8 | D29: { OTRA - 2 }
S30: =S25-0.01 -> -2.12 | T30: ¿Cuáles son los tres criterios más importantes que utilizan para admitir nuevos alumnos?
A31: =A18-0.01 -> -2.04 | B31: ¿Desde qué año está este establecimiento en funcionamiento?
N32: AÑO: | U32: 1 | V32: RENDIMIENTO ESCOLAR PREVIO
U33: 2 | V33: TEST DE ADMISIÓN | AF33: PRIMERO:
A34: =A31-0.01 -> -2.05 | B34: ¿Cuenta este este establecimiento con una acreditación del Ministerio de Educación? | U34: 3 | V34: LUGAR DE RESIDENCIA
U35: 4 | V35: ORDEN DE POSTULACIÓN | AF35: SEGUNDO:
D36: 1 | E36: SI | U36: 5 | V36: HERMANOS/AS EN EL ESTABLECIMIENTO
D37: 2 | E37: NO | U37: 6 | V37: { OTRA - 1 } | AF37: TERCERO:
U38: 7 | V38: { OTRA - 2 }
U39: 8 | V39: { OTRA - 3 }
U40: 9 | V40: OTRO
A42: SECCIÓN 2: CARÁCTERÍSTICAS DEL ESTABLECIMIENTO
A44: =S30-0.01 -> -2.13 | B44: ¿Cuál es el idioma usado por los maestros/as en las clases? | S44: =A71-0.01 -> -2.17 | T44: ¿Cuáles son las tres causas principales del ausentismo de los maestros/as?
C45: 1 | D45: CASTELLANO
C46: 2 | D46: { OTRA LENGUA - 1 } | U46: 1 | V46: ENFERMEDAD
C47: 3 | D47: { OTRA LENGUA - 2 } | U47: 2 | V47: TIENEN OTROS TRABAJOS | AF47: PRIMERO:
C48: 4 | D48: { OTRA LENGUA - 3 } | U48: 3 | V48: CUIDADO DE FAMILIARES
C49: 5 | D49: { OTRA LENGUA - 4 } | U49: 4 | V49: EL TIEMPO ES MALO | AF49: SEGUNDO:
C50: 6 | D50: { OTRA LENGUA - 5 } | U50: 5 | V50: EMBARAZO/PRE-POST NATAL
U51: 6 | V51: TRANSPORTE DIFICULTOSO | AF51: TERCERO:
A52: =A44-0.01 -> -2.14 | B52: ¿Hay alumnos/as que no entienden bien el idioma de instrucción usado en las clases? | U52: 7 | V52: { OTRA - 1 }
D53: 1 | E53: SI | U53: 8 | V53: { OTRA - 2 }
D54: 2 | E54: NO | F54: ► | G54: =A71 -> -2.16 | U54: 9 | V54: { OTRA - 3 }
U55: 10 | V55: OTRO
A56: =A52-0.01 -> -2.15 | B56: ¿Qué hacen ustedes (cuál es la política de este establecimiento) respecto a esos alumnos/as que no entienden bien el idioma de instrucción ?
S57: =S44-0.01 -> -2.18 | T57: ¿Qué hacen cuando un maestro/a está ausente?
B58: 1 | C58: SE LES ENVÍA A CLASES ESPECIALES DEL IDIOMA USADO EN LAS CLASES, EN ESTE ESTABLECIMIENTO | T58: 1 | U58: OTRO MAESTRO LO REEMPLAZA | AF58: PRIMERA MENCIÓN:
T59: 2 | U59: OTRO PERSONAL LO REEMPLAZA
T60: 3 | U60: USTED (EL/LA DIRECTORA/A) LO REEMPLAZA | AF60: SEGUNDA MENCIÓN:
B61: 2 | C61: SE LES ENVÍA A CLASES ESPECIALES DEL IDIOMA USADO EN LAS CLASES, EN OTRO ESTABLECIMIENTO
T62: 4 | U62: LOS ALUMNOS/AS PERMANECEN SOLOS EN SUS SALAS | AF62: TERCERA MENCIÓN:
B64: 3 | C64: LOS AGRUPAN Y ASIGNAN PROFESORES QUE LOS INSTRUYEN EN EL LENGUAJE QUE ENTIENDEN | T64: 5 | U64: PIDEN A LOS ALUMNOS/AS IR A JUGAR/HACER DEPORTE
T66: 6 | U66: ENVÍAN A LOS ALUMNOS A SUS CASAS
B67: 4 | C67: { OTRA - 1 } | T67: 7 | U67: { OTRO - 1 }
B68: 5 | C68: { OTRA - 2 } | T68: 8 | U68: { OTRO - 2 }
B69: 6 | C69: NO HACEN NADA | T69: 9 | U69: OTRO
A71: =A56-0.01 -> -2.16 | B71: ¿Considera usted que el ausentismo de los maestros un problema? | S71: =S57-0.01 -> -2.19 | T71: ¿Con qué frecuencia hacen reunión de Director y maestros/as de este establecimiento?
D72: 1 | E72: SI | U72: 1 | V72: UNA VEZ EN EL DÍA
D73: 2 | E73: NO | U73: 2 | V73: UNA VEZ EN EL SEMANA
U74: 3 | V74: UNA VEZ EN EL MES
U75: 4 | V75: UNA VEZ EN EL SEMESTRE
U76: 5 | V76: UNA VEZ EN EL AÑO
U77: 6 | V77: NO SE REUNEN
A80: SECCIÓN 3: CARÁCTERÍSTICAS DEL ESTABLECIMIENTO
A82: =S71-0.01 -> -2.2 | B82: ¿Se exige un mínimo de asistencia a los alumnos para ser promovidos/as? | S82: =A90-0.01 -> -2.23 | T82: ¿Dan desayuno gratis a los alumnos/as?
D83: 1 | E83: SI | V83: 1 | W83: SI
D84: 2 | E84: NO | V84: 2 | W84: NO
A86: =A82-0.01 -> -2.21 | B86: ¿Considera usted que el ausentismo de los alumnos un problema? | S86: =S82-0.01 -> -2.24 | T86: ¿Dan almuerzo gratis a los alumnos/as?
D87: 1 | E87: SI | V87: 1 | W87: SI
D88: 2 | E88: NO | V88: 2 | W88: NO
A90: =A86-0.01 -> -2.22 | B90: ¿Cuáles son las tres causas principales del ausentismo de los alumnos/as? | S90: =S86-0.01 -> -2.25 | T90: ¿Existe una cantina para los alumnos/as?
C91: 1 | D91: ENFERMEDAD | V91: 1 | W91: SI
C92: 2 | D92: TIENEN QUE AYUDAR EN SUS CASAS | N92: PRIMERO: | V92: 2 | W92: NO
C93: 3 | D93: TIENEN QUE TRABAJAR
C94: 4 | D94: CUIDADO DE FAMILIARES | N94: SEGUNDO: | S94: =S90-0.01 -> -2.26 | T94: ¿Existe una cantina para los maestros/as?
C95: 5 | D95: EL TIEMPO ES MALO | V95: 1 | W95: SI
C96: 6 | D96: TRANSPORTE DIFICULTOSO | N96: TERCERO: | V96: 2 | W96: NO
C97: 7 | D97: NO QUIEREN IR A LA ESCUELA
C98: 8 | D98: { OTRA - 1 }
C99: 9 | D99: { OTRA - 2 }
C100: 10 | D100: { OTRA - 3 }
C101: 11 | D101: OTRO

Sheet 2.Escuela
A1: SECCIÓN 2: CARÁCTERÍSTICAS DEL ESTABLECIMIENTO
A2: RESPONDE: EL DIRECTOR/A O SUB-DIRECTOR/A
A3: -2.01 | B3: ¿Cuál es el tipo de este establecimiento? | S3: =A34-0.01 -> -2.06 | T3: ¿Se utiliza este establecimiento para otros propósitos?
B4: LEA EN VOZ ALTA | V4: 1 | W4: SI
B5: 1 | C5: Es público? | V5: 2 | W5: NO
B6: 2 | C6: Es privado religioso?
B7: 3 | C7: Es privado laico? | S7: =S3-0.01 -> -2.07 | T7: ¿Hay salas especiales para alumnos/as con necesidades especiales?
V8: 1 | W8: SI
A9: =A3-0.01 -> -2.02 | B9: ¿Qué religión se enseña en este establecimiento? | V9: 2 | W9: NO | X9: ► | Y9: =S13-0.01 -> -2.1
B10: 1 | C10: NINGUNA
B11: 2 | C11: CATÓLICA | S11: =S7-0.01 -> -2.08 | T11: ¿Cuántas salas especiales hay?
B12: 3 | C12: JUDÍA | AF12: NÚMERO:
B13: 4 | C13: PROTESTANTE | S13: =S11-0.01 -> -2.09 | T13: ¿Consta este establecimiento con educación pre-escolar?
B14: 5 | C14: CRISTIANA | V14: 1 | W14: SI
B15: 6 | C15: { OTRA - 1 } | V15: 2 | W15: NO
B16: 7 | C16: { OTRA - 2 }
S17: =S13-0.01 -> -2.1 | T17: ¿En qué horario está este establecimiento en funcionamiento?
A18: =A9-0.01 -> -2.03 | B18: ¿Bajo que nivel de gobierno se encuentra la administración de este establecimiento? | Z18: HH | AA18: MM | AF18: HH | AG18: MM
T19: a. | U19: En la mañana: | Y19: DESDE: | AE19: HASTA:
B20: MINISTERIO DE EDUCACIÓN….
C21: 1 | D21: NIVEL CENTRAL | T21: b. | U21: En la tarde: | Y21: DESDE: | AE21: HASTA:
C22: 2 | D22: NIVEL REGIONAL/ESTATAL
C23: 3 | D23: NIVEL PROVINCIAL | T23: c. | U23: En la noche: | Y23: DESDE: | AE23: HASTA:
C24: 4 | D24: NIVEL MUNICIPAL
B25: OTROS… | S25: =S17-0.01 -> -2.11 | T25: Respecto a la política de nuevas admisiones, acepta este establecimiento a todos los postulantes?
C26: 5 | D26: IGLESIA
C27: 6 | D27: ONG | V27: 1 | W27: SI
C28: 7 | D28: COMUNIDAD | V28: 2 | W28: NO | X28: ► | Y28: =A44 -> -2.13
C29: 8 | D29: { OTRA - 2 }
S30: =S25-0.01 -> -2.12 | T30: ¿Cuáles son los tres criterios más importantes que utilizan para admitir nuevos alumnos?
A31: =A18-0.01 -> -2.04 | B31: ¿Desde qué año está este establecimiento en funcionamiento?
N32: AÑO: | U32: 1 | V32: RENDIMIENTO ESCOLAR PREVIO
U33: 2 | V33: TEST DE ADMISIÓN | AF33: PRIMERO:
A34: =A31-0.01 -> -2.05 | B34: ¿Cuenta este este establecimiento con una acreditación del Ministerio de Educación? | U34: 3 | V34: LUGAR DE RESIDENCIA
U35: 4 | V35: ORDEN DE POSTULACIÓN | AF35: SEGUNDO:
D36: 1 | E36: SI | U36: 5 | V36: HERMANOS/AS EN EL ESTABLECIMIENTO
D37: 2 | E37: NO | U37: 6 | V37: { OTRA - 1 } | AF37: TERCERO:
U38: 7 | V38: { OTRA - 2 }
U39: 8 | V39: { OTRA - 3 }
U40: 9 | V40: OTRO
A42: SECCIÓN 2: CARÁCTERÍSTICAS DEL ESTABLECIMIENTO
A44: =S30-0.01 -> -2.13 | B44: ¿Cuál es el idioma usado por los maestros/as en las clases? | S44: =A71-0.01 -> -2.17 | T44: ¿Cuáles son las tres causas principales del ausentismo de los maestros/as?
C45: 1 | D45: CASTELLANO
C46: 2 | D46: { OTRA LENGUA - 1 } | U46: 1 | V46: ENFERMEDAD
C47: 3 | D47: { OTRA LENGUA - 2 } | U47: 2 | V47: TIENEN OTROS TRABAJOS | AF47: PRIMERO:
C48: 4 | D48: { OTRA LENGUA - 3 } | U48: 3 | V48: CUIDADO DE FAMILIARES
C49: 5 | D49: { OTRA LENGUA - 4 } | U49: 4 | V49: EL TIEMPO ES MALO | AF49: SEGUNDO:
C50: 6 | D50: { OTRA LENGUA - 5 } | U50: 5 | V50: EMBARAZO/PRE-POST NATAL
U51: 6 | V51: TRANSPORTE DIFICULTOSO | AF51: TERCERO:
A52: =A44-0.01 -> -2.14 | B52: ¿Hay alumnos/as que no entienden bien el idioma de instrucción usado en las clases? | U52: 7 | V52: { OTRA - 1 }
D53: 1 | E53: SI | U53: 8 | V53: { OTRA - 2 }
D54: 2 | E54: NO | F54: ► | G54: =A71 -> -2.16 | U54: 9 | V54: { OTRA - 3 }
U55: 10 | V55: OTRO
A56: =A52-0.01 -> -2.15 | B56: ¿Qué hacen ustedes (cuál es la política de este establecimiento) respecto a esos alumnos/as que no entienden bien el idioma de instrucción ?
S57: =S44-0.01 -> -2.18 | T57: ¿Qué hacen cuando un maestro/a está ausente?
B58: 1 | C58: SE LES ENVÍA A CLASES ESPECIALES DEL IDIOMA USADO EN LAS CLASES, EN ESTE ESTABLECIMIENTO | T58: 1 | U58: OTRO MAESTRO LO REEMPLAZA | AF58: PRIMERA MENCIÓN:
T59: 2 | U59: OTRO PERSONAL LO REEMPLAZA
T60: 3 | U60: USTED (EL/LA DIRECTORA/A) LO REEMPLAZA | AF60: SEGUNDA MENCIÓN:
B61: 2 | C61: SE LES ENVÍA A CLASES ESPECIALES DEL IDIOMA USADO EN LAS CLASES, EN OTRO ESTABLECIMIENTO
T62: 4 | U62: LOS ALUMNOS/AS PERMANECEN SOLOS EN SUS SALAS | AF62: TERCERA MENCIÓN:
B64: 3 | C64: LOS AGRUPAN Y ASIGNAN PROFESORES QUE LOS INSTRUYEN EN EL LENGUAJE QUE ENTIENDEN | T64: 5 | U64: PIDEN A LOS ALUMNOS/AS IR A JUGAR/HACER DEPORTE
T66: 6 | U66: ENVÍAN A LOS ALUMNOS A SUS CASAS
B67: 4 | C67: { OTRA - 1 } | T67: 7 | U67: { OTRO - 1 }
B68: 5 | C68: { OTRA - 2 } | T68: 8 | U68: { OTRO - 2 }
B69: 6 | C69: NO HACEN NADA | T69: 9 | U69: OTRO
A71: =A56-0.01 -> -2.16 | B71: ¿Considera usted que el ausentismo de los maestros un problema? | S71: =S57-0.01 -> -2.19 | T71: ¿Con qué frecuencia hacen reunión de Director y maestros/as de este establecimiento?
D72: 1 | E72: SI | U72: 1 | V72: UNA VEZ EN EL DÍA
D73: 2 | E73: NO | U73: 2 | V73: UNA VEZ EN EL SEMANA
U74: 3 | V74: UNA VEZ EN EL MES
U75: 4 | V75: UNA VEZ EN EL SEMESTRE
U76: 5 | V76: UNA VEZ EN EL AÑO
U77: 6 | V77: NO SE REUNEN
A80: SECCIÓN 3: CARÁCTERÍSTICAS DEL ESTABLECIMIENTO
A82: =S71-0.01 -> -2.2 | B82: ¿Se exige un mínimo de asistencia a los alumnos para ser promovidos/as? | S82: =A90-0.01 -> -2.23 | T82: ¿Dan desayuno gratis a los alumnos/as?
D83: 1 | E83: SI | V83: 1 | W83: SI
D84: 2 | E84: NO | V84: 2 | W84: NO
A86: =A82-0.01 -> -2.21 | B86: ¿Considera usted que el ausentismo de los alumnos un problema? | S86: =S82-0.01 -> -2.24 | T86: ¿Dan almuerzo gratis a los alumnos/as?
D87: 1 | E87: SI | V87: 1 | W87: SI
D88: 2 | E88: NO | V88: 2 | W88: NO
A90: =A86-0.01 -> -2.22 | B90: ¿Cuáles son las tres causas principales del ausentismo de los alumnos/as? | S90: =S86-0.01 -> -2.25 | T90: ¿Existe una cantina para los alumnos/as?
C91: 1 | D91: ENFERMEDAD | V91: 1 | W91: SI
C92: 2 | D92: TIENEN QUE AYUDAR EN SUS CASAS | N92: PRIMERO: | V92: 2 | W92: NO
C93: 3 | D93: TIENEN QUE TRABAJAR
C94: 4 | D94: CUIDADO DE FAMILIARES | N94: SEGUNDO: | S94: =S90-0.01 -> -2.26 | T94: ¿Existe una cantina para los maestros/as?
C95: 5 | D95: EL TIEMPO ES MALO | V95: 1 | W95: SI
C96: 6 | D96: TRANSPORTE DIFICULTOSO | N96: TERCERO: | V96: 2 | W96: NO
C97: 7 | D97: NO QUIEREN IR A LA ESCUELA
C98: 8 | D98: { OTRA - 1 }
C99: 9 | D99: { OTRA - 2 }
C100: 10 | D100: { OTRA - 3 }
C101: 11 | D101: OTRO

Sheet 3.Cursos.ORI (hidden)
A1: SECCIÓN 3: CURSOS
A3: NÚMERO DE LÍNEA | B3: GRADO
D4: COPIE DE LOS REGISTROS DEL ESTABLECIMIENTO EL NÚMERO DE ALUMNOS POR GRADO, SEXO Y CLASE. ESPECIFIQUE, EN CADA CASO, EL NÚMERO DE REPITENTES
D6: CLASE A | H6: CLASE B | L6: CLASE C | P6: CLASE D
D7: HOMBRES | F7: MUJERES | H7: HOMBRES | J7: MUJERES | L7: HOMBRES | N7: MUJERES | P7: HOMBRES | R7: MUJERES
D8: -3.01 | E8: =D8-0.01 -> -3.02 | F8: -3.03 | G8: -3.04 | H8: -3.05 | I8: -3.06 | J8: -3.07 | K8: -3.08 | L8: -3.09 | M8: -3.1 | N8: -3.11 | O8: -3.12 | P8: -3.13 | Q8: -3.14 | R8: -3.15 | S8: -3.16
D9: TOTAL | E9: # REPI-TENTES | F9: TOTAL | G9: # REPI-TENTES | H9: TOTAL | I9: # REPI-TENTES | J9: TOTAL | K9: # REPI-TENTES | L9: TOTAL | M9: # REPI-TENTES | N9: TOTAL | O9: # REPI-TENTES | P9: TOTAL | Q9: # REPI-TENTES | R9: TOTAL | S9: # REPI-TENTES
A11: 1 | B11: GRADO 1
A12: 2 | B12: GRADO 2
A13: 3 | B13: GRADO 3
A14: 4 | B14: GRADO 4
A15: 5 | B15: GRADO 5
A16: 6 | B16: GRADO 6
A17: 7 | B17: GRADO 7
A18: 8 | B18: GRADO 8
A19: 9 | B19: GRADO 9
A20: 10 | B20: GRADO 10
A21: 11 | B21: GRADO 11
A22: 12 | B22: GRADO 12

Sheet 3.Cursos
A1: SECCIÓN 3: CURSOS
A3: NÚMERO DE LÍNEA | B3: GRADO
D4: COPIE DE LOS REGISTROS DEL ESTABLECIMIENTO EL NÚMERO DE ALUMNOS POR GRADO, SEXO Y CLASE. ESPECIFIQUE, EN CADA CASO, EL NÚMERO DE REPITENTES
D6: CLASE A | H6: CLASE B | L6: CLASE C | P6: CLASE D
D7: HOMBRES | F7: MUJERES | H7: HOMBRES | J7: MUJERES | L7: HOMBRES | N7: MUJERES | P7: HOMBRES | R7: MUJERES
D8: -3.01 | E8: =D8-0.01 -> -3.02 | F8: -3.03 | G8: -3.04 | H8: -3.05 | I8: -3.06 | J8: -3.07 | K8: -3.08 | L8: -3.09 | M8: -3.1 | N8: -3.11 | O8: -3.12 | P8: -3.13 | Q8: -3.14 | R8: -3.15 | S8: -3.16
D9: TOTAL | E9: # REPI-TENTES | F9: TOTAL | G9: # REPI-TENTES | H9: TOTAL | I9: # REPI-TENTES | J9: TOTAL | K9: # REPI-TENTES | L9: TOTAL | M9: # REPI-TENTES | N9: TOTAL | O9: # REPI-TENTES | P9: TOTAL | Q9: # REPI-TENTES | R9: TOTAL | S9: # REPI-TENTES
A11: 1 | B11: GRADO 1
A12: 2 | B12: GRADO 2
A13: 3 | B13: GRADO 3
A14: 4 | B14: GRADO 4
A15: 5 | B15: GRADO 5
A16: 6 | B16: GRADO 6
A17: 7 | B17: GRADO 7
A18: 8 | B18: GRADO 8
A19: 9 | B19: GRADO 9
A20: 10 | B20: GRADO 10
A21: 11 | B21: GRADO 11
A22: 12 | B22: GRADO 12

Sheet 4.ListaMaestros.ORI (hidden)
A1: SECCIÓN 4: LISTA DE MAESTROS
A2: INSTRUCCIONES: | I2: ETIQUETA DE NÚMEROS ALEATORIOS | AD2: INSTRUCCIONES PARA LA COLUMNA | AE2: =AH9 -> -4.09
A3: COMPLETE PRIMERO LAS PREGUNTAS (4.01) A (4.08) PARA TODOS LOS MAESTROS Y EN SEGUIDA PROCEDA A SELECCIONAR A { n } DE ELLOS, SIGUIENDO LAS INSTRUCCIONES CONTENIDAS EN EL MANUAL | R3: SOLO LOS MAESTROS/AS PRESENTES SON ELEGIBLES PARA LA ENCUESTA DE MAESTROS | Y3: ESCRIBA "1" FRENTE AL PRIMER MAESTRO SELECCIONADO
Y4: ESCRIBA "2" FRENTE AL SEGUNDO MAESTRO SELECCIONADO
Y5: ESCRIBA "3" FRENTE AL TERCER MAESTRO SELECCIONADO
Y7: DEJE LAS OTRAS CELDAS DE LA COLUMNA EN BLANCO
A9: CÓDIGO DE IDENTIFICACIÓN DEL MAESTRO | B9: -4.01 | I9: =B9-0.01 -> -4.02 | L9: =I9-0.01 -> -4.03 | O9: =L9-0.01 -> -4.04 | S9: =O9-0.01 -> -4.05 | Y9: =S9-0.01 -> -4.06 | AB9: =Y9-0.01 -> -4.07 | AF9: =AB9-0.01 -> -4.08 | AH9: =AF9-0.01 -> -4.09
B10: COPIE LA LISTA DE LOS TODOS LOS MAESTROS, DE LOS REGISTROS DEL ESTABLECIMIENTO | I10: ANOTE EL SEXO DEL MAESTRO /A | L10: ¿Qué edad tiene [MAESTRO/A]? | O10: ¿Hace cuántos años/meses que [MAESTRO/A] trabaja en este establecimiento? | S10: ¿Bajo qué modalidad contractual trabaja [MAESTRO /A ] en este establecimiento? | Y10: ¿Cuántas horas a la semana trabaja [MAESTRO/A] en este establecimiento? | AB10: ¿Cuál es el salario de bolsillo (bruto) mensual de [MAESTRO/A] | AF10: ¿Está ...[MAESTRO]... presente n la escuela hoy? | AH10: NÚMERO DE SELECCIÓN MAESTRO/A
S13: 1 | T13: CONTRATO INDEFINIDO A TIEMPO COMPLETO
S15: 2 | T15: CONTRATO A TIEMPO PARCIAL
S17: 3 | T17: NO TIENE NINGÚN ARREGLO FORMAL
S19: 4 | T19: { OTRO - 1 }
I20: 1 | J20: HOMBRE | S20: 5 | T20: { OTRO - 2 } | AF20: 1 | AG20: SI
I21: 2 | J21: MUJER | S21: 6 | T21: { OTRO - 3 } | AF21: 2 | AG21: NO
L22: EDAD EN AÑOS | S22: 7 | T22: OTRO | Y22: HORAS POR SEMANA | AB22: MONTO
B23: NOMBRE DEL MAESTRO | O23: AÑOS | Q23: MESES | AB23: { $ }
A24: 1
A25: 2
A26: 3
A27: 4
A28: 5
A29: 6
A30: 7
A31: 8
A32: 9
A33: 10
A34: 11
A35: 12
A36: 13
A37: 14
A38: 15
A39: 16

Sheet 4.ListaMaestros
A1: SECCIÓN 4: LISTA DE MAESTROS
A2: INSTRUCCIONES: | I2: ETIQUETA DE NÚMEROS ALEATORIOS | AD2: INSTRUCCIONES PARA LA COLUMNA | AE2: =AH9 -> -4.09
A3: COMPLETE PRIMERO LAS PREGUNTAS (4.01) A (4.08) PARA TODOS LOS MAESTROS Y EN SEGUIDA PROCEDA A SELECCIONAR A { n } DE ELLOS, SIGUIENDO LAS INSTRUCCIONES CONTENIDAS EN EL MANUAL | R3: SOLO LOS MAESTROS/AS PRESENTES SON ELEGIBLES PARA LA ENCUESTA DE MAESTROS | Y3: ESCRIBA "1" FRENTE AL PRIMER MAESTRO SELECCIONADO
Y4: ESCRIBA "2" FRENTE AL SEGUNDO MAESTRO SELECCIONADO
Y5: ESCRIBA "3" FRENTE AL TERCER MAESTRO SELECCIONADO
Y7: DEJE LAS OTRAS CELDAS DE LA COLUMNA EN BLANCO
A9: CÓDIGO DE IDENTIFICACIÓN DEL MAESTRO | B9: -4.01 | I9: =B9-0.01 -> -4.02 | L9: =I9-0.01 -> -4.03 | O9: =L9-0.01 -> -4.04 | S9: =O9-0.01 -> -4.05 | Y9: =S9-0.01 -> -4.06 | AB9: =Y9-0.01 -> -4.07 | AF9: =AB9-0.01 -> -4.08 | AH9: =AF9-0.01 -> -4.09
B10: COPIE LA LISTA DE LOS TODOS LOS MAESTROS, DE LOS REGISTROS DEL ESTABLECIMIENTO | I10: ANOTE EL SEXO DEL MAESTRO /A | L10: ¿Qué edad tiene [MAESTRO/A]? | O10: ¿Hace cuántos años/meses que [MAESTRO/A] trabaja en este establecimiento? | S10: ¿Bajo qué modalidad contractual trabaja [MAESTRO /A ] en este establecimiento? | Y10: ¿Cuántas horas a la semana trabaja [MAESTRO/A] en este establecimiento? | AB10: ¿Cuál es el salario de bolsillo (bruto) mensual de [MAESTRO/A] | AF10: ¿Está ...[MAESTRO]... presente n la escuela hoy? | AH10: NÚMERO DE SELECCIÓN MAESTRO/A
S13: 1 | T13: CONTRATO INDEFINIDO A TIEMPO COMPLETO
S15: 2 | T15: CONTRATO A TIEMPO PARCIAL
S17: 3 | T17: NO TIENE NINGÚN ARREGLO FORMAL
S19: 4 | T19: { OTRO - 1 }
I20: 1 | J20: HOMBRE | S20: 5 | T20: { OTRO - 2 } | AF20: 1 | AG20: SI
I21: 2 | J21: MUJER | S21: 6 | T21: { OTRO - 3 } | AF21: 2 | AG21: NO
L22: EDAD EN AÑOS | S22: 7 | T22: OTRO | Y22: HORAS POR SEMANA | AB22: MONTO
B23: NOMBRE DEL MAESTRO | O23: AÑOS | Q23: MESES | AB23: { $ }
A24: 1
A25: 2
A26: 3
A27: 4
A28: 5
A29: 6
A30: 7
A31: 8
A32: 9
A33: 10
A34: 11
A35: 12
A36: 13
A37: 14
A38: 15
A39: 16

Sheet 5.ListaAlumnos.ORI (hidden)
A1: SECCIÓN 5: LISTA DE ALUMNOS DEL GRADO/CURSO {xx}, CLASE "A"
A2: INSTRUCCIONES: | K2: ETIQUETA DE NÚMEROS ALEATORIOS | AD2: INSTRUCCIONES PARA LA COLUMNA | AE2: =N9 -> -5.05
A3: COMPLETE PRIMERO LAS PREGUNTAS (5.01) A (5.04) PARA TODOS LOS ALUMNOS Y EN SEGUIDA PROCEDA A SELECCIONAR A { m } DE ELLOS, SIGUIENDO LAS INSTRUCCIONES CONTENIDAS EN EL MANUAL
S4: SOLO LOS ALUMNOS/AS PRESENTES SON ELEGIBLES PARA LA ENCUESTA DE ALUMNOS | Y4: ESCRIBA "1" FRENTE AL PRIMER ALUMNO SELECCIONADO
Y5: ESCRIBA "2" FRENTE AL SEGUNDO ALUMNO SELECCIONADO
Y6: ESCRIBA "3" FRENTE AL TERCER ALUMNO SELECCIONADO
Y8: DEJE LAS OTRAS CELDAS DE LA COLUMNA EN BLANCO
A9: CÓDIGO DE IDENTIFICACIÓN DEL ALUMNO | B9: -5.01 | G9: =B9-0.01 -> -5.02 | J9: =G9-0.01 -> -5.03 | L9: =J9-0.01 -> -5.04 | N9: =L9-0.01 -> -5.05
B10: COPIE LA LISTA DE LOS ALUMNOS DE DE LOS REGISTROS DEL ESTABLECIMIENTO | G10: ANOTE EL SEXO DEL ALUMNO /A | J10: ¿Qué edad tiene [ALUMNO/A]? | L10: ¿Está ...[ALUMNO]... presente n la escuela hoy?
N11: NÚMERO DE SELECCIÓN ALUMNO/A
G16: 1 | H16: HOMBRE
G17: 2 | H17: MUJER | L17: 1 | M17: SI
B18: NOMBRE DEL ALUMNO | J18: EDAD EN AÑOS | L18: 2 | M18: NO
A20: 1
A21: =A20+1 -> 2
A22: 3
A23: 4
A24: 5
A25: 6
A26: 7
A27: 8
A28: 9
A29: 10
A30: 11
A31: 12
A32: 13
A33: 14
A34: 15
A35: 16
A36: 17
A37: 18
A38: 19
A39: 20
A40: =A39+1 -> 21
A41: =A40+1 -> 22
A42: 23
A43: 24
A44: 25
A45: 26
A46: 27
A47: 28
A48: 29
A49: 30
A50: 31
A51: 32
A52: 33
A53: 34
A54: 35
A55: 36
A56: 37
A57: 38
A58: 39
A59: 40

Sheet 5.ListaAlumnos
A1: SECCIÓN 5: LISTA DE ALUMNOS DEL GRADO/CURSO {xx}, CLASE "A"
A2: INSTRUCCIONES: | K2: ETIQUETA DE NÚMEROS ALEATORIOS | AD2: INSTRUCCIONES PARA LA COLUMNA | AE2: =N9 -> -5.05
A3: COMPLETE PRIMERO LAS PREGUNTAS (5.01) A (5.04) PARA TODOS LOS ALUMNOS Y EN SEGUIDA PROCEDA A SELECCIONAR A { m } DE ELLOS, SIGUIENDO LAS INSTRUCCIONES CONTENIDAS EN EL MANUAL
S4: SOLO LOS ALUMNOS/AS PRESENTES SON ELEGIBLES PARA LA ENCUESTA DE ALUMNOS | Y4: ESCRIBA "1" FRENTE AL PRIMER ALUMNO SELECCIONADO
Y5: ESCRIBA "2" FRENTE AL SEGUNDO ALUMNO SELECCIONADO
Y6: ESCRIBA "3" FRENTE AL TERCER ALUMNO SELECCIONADO
Y8: DEJE LAS OTRAS CELDAS DE LA COLUMNA EN BLANCO
A9: CÓDIGO DE IDENTIFICACIÓN DEL ALUMNO | B9: -5.01 | G9: =B9-0.01 -> -5.02 | J9: =G9-0.01 -> -5.03 | L9: =J9-0.01 -> -5.04 | N9: =L9-0.01 -> -5.05
B10: COPIE LA LISTA DE LOS ALUMNOS DE DE LOS REGISTROS DEL ESTABLECIMIENTO | G10: ANOTE EL SEXO DEL ALUMNO /A | J10: ¿Qué edad tiene [ALUMNO/A]? | L10: ¿Está ...[ALUMNO]... presente n la escuela hoy?
N11: NÚMERO DE SELECCIÓN ALUMNO/A
G16: 1 | H16: HOMBRE
G17: 2 | H17: MUJER | L17: 1 | M17: SI
B18: NOMBRE DEL ALUMNO | J18: EDAD EN AÑOS | L18: 2 | M18: NO
A20: 1
A21: =A20+1 -> 2
A22: 3
A23: 4
A24: 5
A25: 6
A26: 7
A27: 8
A28: 9
A29: 10
A30: 11
A31: 12
A32: 13
A33: 14
A34: 15
A35: 16
A36: 17
A37: 18
A38: 19
A39: 20
A40: =A39+1 -> 21
A41: =A40+1 -> 22
A42: 23
A43: 24
A44: 25
A45: 26
A46: 27
A47: 28
A48: 29
A49: 30
A50: 31
A51: 32
A52: 33
A53: 34
A54: 35
A55: 36
A56: 37
A57: 38
A58: 39
A59: 40

Sheet 6.Maestro_1.ORI (hidden)
A1: SECCIÓN 6: MAESTRO SELECCIONADO | N1: 1
A3: =-6.01 -> -6.01 | B3: NOMBRE DEL MAESTRO: | S3: =A3-0.01 -> -6.02 | U3: CÓDIGO DE IDENTIFICACIÓN DEL MAESTRO:
A6: =S3-0.01 -> -6.03 | B6: ¿Cuál es su estado civil? | S6: =A21-0.01 -> -6.06 | T6: ¿Enseña usted las siguientes asignaturas en este establecimiento?
B7: 1 | C7: SOLTERO/A | X7: 1 | Y7: SI
B8: 2 | C8: CASADO/A | X8: 2 | Y8: NO
B9: 3 | C9: CONVIVIENTE O CONCUBINO(A)
B10: 4 | C10: DIVORCIADO/A O SEPARADO/A | T10: 1 | U10: ¿Matemáticas? | AA10: =T17+1 -> 9 | AB10: ¿Ciencias?
B11: 5 | C11: VIUDO/A | T11: =T10+1 -> 2 | U11: ¿Castellano? | AA11: =AA10+1 -> 10 | AB11: ¿Física?
T12: 3 | U12: ¿Manualidades? | AA12: 11 | AB12: ¿Filosofía?
A13: =A6-0.01 -> -6.04 | B13: Nació usted en… | T13: 4 | U13: ¿Educación Física? | AA13: 12 | AB13: ¿Inglés?
B14: LEER EN VOZ ALTA | T14: 5 | U14: ¿Música? | AA14: 13 | AB14: ¿Otro idioma extranjero?
B15: 1 | C15: ¿la misma {Localidad}? | T15: 6 | U15: { OTRA ASIGNATURA - 1 } | AA15: 14 | AB15: { OTRA ASIGNATURA - 4 }
B16: 2 | C16: ¿el mismo {Municilio}? | T16: 7 | U16: { OTRA ASIGNATURA - 2 } | AA16: 15 | AB16: { OTRA ASIGNATURA - 5 }
B17: 3 | C17: ¿la misma {Provincia}? | T17: 8 | U17: { OTRA ASIGNATURA - 3 } | AA17: 16 | AB17: { OTRA ASIGNATURA - 6 }
B18: 4 | C18: ¿la misma {Región/Estado}?
B19: 5 | C19: ¿otro país?
S20: =S6-0.01 -> -6.07 | T20: ¿En qué idioma da usted sus clases?
A21: =A13-0.01 -> -6.05 | B21: ¿A qué cursos o grados da usted clases, en este establecimiento? | T21: EXCLUIR CLASES DE IDIOMAS EXTRANJEROS
F22: 1 | G22: SI | U22: 1 | V22: CASTELLANO
F23: 2 | G23: NO | U23: 2 | V23: { OTRA LENGUA - 1 }
U24: 3 | V24: { OTRA LENGUA - 2 }
B25: 1 | C25: ¿Primero? | G25: =B28+1 -> 5 | H25: ¿ { GRADO } ? | L25: =G28+1 -> 9 | M25: ¿ { GRADO } ? | U25: 4 | V25: { OTRA LENGUA - 3 }
B26: 2 | C26: ¿Segundo? | G26: =G25+1 -> 6 | H26: ¿ { GRADO } ? | L26: =L25+1 -> 10 | M26: ¿ { GRADO } ? | U26: 5 | V26: { OTRA LENGUA - 4 }
B27: 3 | C27: ¿Tercero? | G27: =G26+1 -> 7 | H27: ¿ { GRADO } ? | L27: =L26+1 -> 11 | M27: ¿ { GRADO } ? | U27: 6 | V27: { OTRA LENGUA - 5 }
B28: 4 | C28: ¿Cuarto? | G28: =G27+1 -> 8 | H28: ¿ { GRADO } ? | L28: =L27+1 -> 12 | M28: ¿ { GRADO } ?
S29: =S20-0.01 -> -6.08 | T29: ¿Cuántas horas dedica usted por semana en las siguientes tareas, en este establecimiento?
T30: LEER EN VOZ ALTA | AE30: HORAS POR SEMANA
W31: a.- | X31: Enseñar en las salas de clases
W32: b.- | X32: Preparar las clases
W33: c.- | X33: Corregir tests
W34: d.- | X34: Realizar tareas administrativas
W35: e.- | X35: Realizar otras tareas
A38: SECCIÓN 6: MAESTRO SELECCIONADO | N38: 1
A40: =S29-0.01 -> -6.09 | B40: ¿Cuál es el último NIVEL Y CURSO más alto de instrucción que usted aprobó? | S40: =A70-0.01 -> -6.14 | T40: ¿En qué áreas/materias está usted titulado como maestro/profesor?
T41: 1 | U41: MATEMÁTICAS | Z41: 8 | AA41: MÚSICA | AE41: 1.-
B42: NIVEL | H42: CURSO | T42: 2 | U42: CASTELLANO | Z42: 9 | AA42: INGLÉS
B43: 1 | C43: PRIMARIA | H43: 1 - 7 | T43: 3 | U43: CIENCIAS | Z43: 10 | AA43: { OTRO 1 } | AE43: 2.-
B44: 2 | C44: SECUNDARIA | H44: 1 - 5 | M44: NIVEL: | T44: 4 | U44: FÍSICA | Z44: 11 | AA44: { OTRO 2 }
B45: 3 | C45: BACHILLERATO | H45: 1 - 5 | T45: 5 | U45: FILOSOFÍA | Z45: 12 | AA45: { OTRO 3 }
B46: 4 | C46: TERCIARIO TÉCNICO | H46: 1 - 3 | M46: CURSO: | T46: 6 | U46: MANUALIDADES | Z46: 13 | AA46: { OTRO 4 }
B47: 5 | C47: TERCIARIO COMERCIAL | H47: 1 - 3 | T47: 7 | U47: EDUCACIÓN FÍSICA | Z47: 14 | AA47: OTRO
B48: 6 | C48: UNIVERSITARIA | H48: 1 - 4
B49: 7 | C49: MAESTRIA/DOCTORADO | H49: 1 - 5 | S49: =S40-0.01 -> -6.15 | T49: ¿Durante el último año escolar, asistió usted a algún curso de perfeccionamiento?
B50: 8 | C50: OTRO (ESPECIFIQUE) | U50: 1 | V50: SI
U51: 2 | V51: NO | W51: ► | X51: =A77 -> -6.18
A52: =A40-0.01 -> -6.1 | B52: ¿En qué año aprobó usted ese último nivel y curso?
M53: AÑO: | S53: NÚMERO CURSO | AA53: =S49-0.01 -> -6.16 | AE53: =AA53-0.01 -> -6.17
AA54: ¿Asistió usted a [ {CURSO PERFECCIONAMIENTO} ] durante el último año escolar? | AE54: ¿Quién financió [ {CURSO PERFECCIONAMIENTO} ]?
A55: =A52-0.01 -> -6.11 | B55: ¿Quién lo/a nombró maestro/a de este establecimiento?
B56: 1 | C56: EL/LA maestroA/A
B57: 2 | C57: MINISTERIO DE EDUCACIÓN (CENTRAL)
B58: 3 | C58: SEDE REGIONAL/ESTATAL DEL MINISTERIO DE EDUCACIÓN | AE58: 1 | AF58: YO MISMO/A
B59: 4 | C59: LA COMUNIDAD DE PADRES | AE59: 2 | AF59: LA ESCUELA
B60: 5 | C60: EL LIDER COMUNITARIO | AA60: 1 | AC60: SI | AE60: 3
B61: 6 | C61: EL DUEÑO/A DEL ESTABLECIMIENTO | AA61: 2 | AC61: NO | AE61: 4
B62: 7 | C62: { OTRO 1 } | AA62: ► PRÓXIMO CURSO | AE62: 5
B63: 8 | C63: { OTRO 2 }
B64: 9 | C64: OTRO | S64: 1 | T64: Pedagogía
S65: 2 | T65: Materias específicas
A66: =A55-0.01 -> -6.12 | B66: ¿Tiene usted el título de maestro/profesor de escuela? | S66: 3 | T66: Idiomas
C67: 1 | D67: SI | S67: 4 | T67: { CURSO PERFECCIONAMIENTO 1 }
C68: 2 | D68: NO | E68: ► | F68: =S49 -> -6.15 | S68: 5 | T68: { CURSO PERFECCIONAMIENTO 2 }
S69: 6 | T69: { CURSO PERFECCIONAMIENTO 3 }
A70: =A66-0.01 -> -6.13 | B70: ¿Su título de maestro/prefosor, es en algún área específica? | S70: 7 | T70: { CURSO PERFECCIONAMIENTO 4 }
C71: 1 | D71: SI | S71: 8 | T71: { CURSO PERFECCIONAMIENTO 5 }
C72: 2 | D72: NO | G72: ► | H72: =A88 -> -6.2
A75: SECCIÓN 6: MAESTRO SELECCIONADO | N75: 1
A77: =AE53-0.01 -> -6.18 | B77: ¿Cuál fue sl salario del mes pasado como maestro de este establecimiento? | S77: =A105-0.01 -> -6.24 | T77: ¿Recibe usted sugerencias sobre su modo de enseñar en este establecimiento de parte de…
B78: PARA LOS ÍTEMS QUE NO SON "EFECTIVO", PIDA ESTIMAR EL VALOR MONETARIO | AA78: 1 | AB78: SI
F79: MONTO { $ } | N79: MONTO { $ } | AA79: 2 | AB79: NO
B80: a. | C80: En efectivo | J80: d. | K80: Transporte
B81: b. | C81: Comida | J81: e. | K81: Otros | T81: a.- | U81: ¿del Director/a?
B82: c. | C82: Vivienda | J82: f. | K82: TOTAL | T82: b.- | U82: ¿de los otros maestros/as?
T83: c.- | U83: ¿de los padres?
A84: =A77-0.01 -> -6.19 | B84: ¿Da usted clases en otro establecimiento educacional? | T84: d.- | U84: { OTRO }
C85: 1 | D85: SI
C86: 2 | D86: NO | E86: ► | F86: =A92 -> -6.21 | S86: =S77-0.01 -> -6.25 | T86: ¿Es usted evaluado por el Director, al menos una vez cada año?
U87: 1 | V87: SI
A88: =A84-0.01 -> -6.2 | B88: ¿Cuántas horas por semana usted trabaja como maestro/a en ese otro (esos otros) establecimiento(s)? | U88: 2 | V88: NO
M90: HORAS POR SEMANA:
A92: =A88-0.01 -> -6.21 | B92: Además de su trabajo como maestro/a, ¿tiene usted otro trabajo?
C94: 1 | D94: SI
C95: 2 | D95: NO | E95: ► | F95: =S77 -> -6.24
A97: =A92-0.01 -> -6.22 | B97: ¿Cuál de estas categorías diría usted que es la que mejor describe su otro trabajo?
B98: LEER EN VOZ ALTA
C99: 1 | D99: Agricultura
C100: 2 | D100: Por cuenta propia
C101: 3 | D101: { OTRA 1 }
C102: 4 | D102: { OTRA 2 }
C103: 5 | D103: OTRO
A105: =A97-0.01 -> -6.23 | B105: ¿En los últimos 12 meses, cuanto recibió usted en total por ese/esos otro(s) trabajo(s)?
K107: MONTO { $ }

Sheet 6.Maestro_1
A1: SECCIÓN 6: MAESTRO SELECCIONADO | N1: 1
A3: =-6.01 -> -6.01 | B3: NOMBRE DEL MAESTRO: | S3: =A3-0.01 -> -6.02 | U3: CÓDIGO DE IDENTIFICACIÓN DEL MAESTRO:
A6: =S3-0.01 -> -6.03 | B6: ¿Cuál es su estado civil? | S6: =A21-0.01 -> -6.06 | T6: ¿Enseña usted las siguientes asignaturas en este establecimiento?
B7: 1 | C7: SOLTERO/A | X7: 1 | Y7: SI
B8: 2 | C8: CASADO/A | X8: 2 | Y8: NO
B9: 3 | C9: CONVIVIENTE O CONCUBINO(A)
B10: 4 | C10: DIVORCIADO/A O SEPARADO/A | T10: 1 | U10: ¿Matemáticas? | AA10: =T17+1 -> 9 | AB10: ¿Ciencias?
B11: 5 | C11: VIUDO/A | T11: =T10+1 -> 2 | U11: ¿Castellano? | AA11: =AA10+1 -> 10 | AB11: ¿Física?
T12: 3 | U12: ¿Manualidades? | AA12: 11 | AB12: ¿Filosofía?
A13: =A6-0.01 -> -6.04 | B13: Nació usted en… | T13: 4 | U13: ¿Educación Física? | AA13: 12 | AB13: ¿Inglés?
B14: LEER EN VOZ ALTA | T14: 5 | U14: ¿Música? | AA14: 13 | AB14: ¿Otro idioma extranjero?
B15: 1 | C15: ¿la misma {Localidad}? | T15: 6 | U15: { OTRA ASIGNATURA - 1 } | AA15: 14 | AB15: { OTRA ASIGNATURA - 4 }
B16: 2 | C16: ¿el mismo {Municilio}? | T16: 7 | U16: { OTRA ASIGNATURA - 2 } | AA16: 15 | AB16: { OTRA ASIGNATURA - 5 }
B17: 3 | C17: ¿la misma {Provincia}? | T17: 8 | U17: { OTRA ASIGNATURA - 3 } | AA17: 16 | AB17: { OTRA ASIGNATURA - 6 }
B18: 4 | C18: ¿la misma {Región/Estado}?
B19: 5 | C19: ¿otro país?
S20: =S6-0.01 -> -6.07 | T20: ¿En qué idioma da usted sus clases?
A21: =A13-0.01 -> -6.05 | B21: ¿A qué cursos o grados da usted clases, en este establecimiento? | T21: EXCLUIR CLASES DE IDIOMAS EXTRANJEROS
F22: 1 | G22: SI | U22: 1 | V22: CASTELLANO
F23: 2 | G23: NO | U23: 2 | V23: { OTRA LENGUA - 1 }
U24: 3 | V24: { OTRA LENGUA - 2 }
B25: 1 | C25: ¿Primero? | G25: =B28+1 -> 5 | H25: ¿ { GRADO } ? | L25: =G28+1 -> 9 | M25: ¿ { GRADO } ? | U25: 4 | V25: { OTRA LENGUA - 3 }
B26: 2 | C26: ¿Segundo? | G26: =G25+1 -> 6 | H26: ¿ { GRADO } ? | L26: =L25+1 -> 10 | M26: ¿ { GRADO } ? | U26: 5 | V26: { OTRA LENGUA - 4 }
B27: 3 | C27: ¿Tercero? | G27: =G26+1 -> 7 | H27: ¿ { GRADO } ? | L27: =L26+1 -> 11 | M27: ¿ { GRADO } ? | U27: 6 | V27: { OTRA LENGUA - 5 }
B28: 4 | C28: ¿Cuarto? | G28: =G27+1 -> 8 | H28: ¿ { GRADO } ? | L28: =L27+1 -> 12 | M28: ¿ { GRADO } ?
S29: =S20-0.01 -> -6.08 | T29: ¿Cuántas horas dedica usted por semana en las siguientes tareas, en este establecimiento?
T30: LEER EN VOZ ALTA | AE30: HORAS POR SEMANA
W31: a.- | X31: Enseñar en las salas de clases
W32: b.- | X32: Preparar las clases
W33: c.- | X33: Corregir tests
W34: d.- | X34: Realizar tareas administrativas
W35: e.- | X35: Realizar otras tareas
A38: SECCIÓN 6: MAESTRO SELECCIONADO | N38: 1
A40: =S29-0.01 -> -6.09 | B40: ¿Cuál es el último NIVEL Y CURSO más alto de instrucción que usted aprobó? | S40: =A70-0.01 -> -6.14 | T40: ¿En qué áreas/materias está usted titulado como maestro/profesor?
T41: 1 | U41: MATEMÁTICAS | Z41: 8 | AA41: MÚSICA | AE41: 1.-
B42: NIVEL | H42: CURSO | T42: 2 | U42: CASTELLANO | Z42: 9 | AA42: INGLÉS
B43: 1 | C43: PRIMARIA | H43: 1 - 7 | T43: 3 | U43: CIENCIAS | Z43: 10 | AA43: { OTRO 1 } | AE43: 2.-
B44: 2 | C44: SECUNDARIA | H44: 1 - 5 | M44: NIVEL: | T44: 4 | U44: FÍSICA | Z44: 11 | AA44: { OTRO 2 }
B45: 3 | C45: BACHILLERATO | H45: 1 - 5 | T45: 5 | U45: FILOSOFÍA | Z45: 12 | AA45: { OTRO 3 }
B46: 4 | C46: TERCIARIO TÉCNICO | H46: 1 - 3 | M46: CURSO: | T46: 6 | U46: MANUALIDADES | Z46: 13 | AA46: { OTRO 4 }
B47: 5 | C47: TERCIARIO COMERCIAL | H47: 1 - 3 | T47: 7 | U47: EDUCACIÓN FÍSICA | Z47: 14 | AA47: OTRO
B48: 6 | C48: UNIVERSITARIA | H48: 1 - 4
B49: 7 | C49: MAESTRIA/DOCTORADO | H49: 1 - 5 | S49: =S40-0.01 -> -6.15 | T49: ¿Durante el último año escolar, asistió usted a algún curso de perfeccionamiento?
B50: 8 | C50: OTRO (ESPECIFIQUE) | U50: 1 | V50: SI
U51: 2 | V51: NO | W51: ► | X51: =A77 -> -6.18
A52: =A40-0.01 -> -6.1 | B52: ¿En qué año aprobó usted ese último nivel y curso?
M53: AÑO: | S53: NÚMERO CURSO | AA53: =S49-0.01 -> -6.16 | AE53: =AA53-0.01 -> -6.17
AA54: ¿Asistió usted a [ {CURSO PERFECCIONAMIENTO} ] durante el último año escolar? | AE54: ¿Quién financió [ {CURSO PERFECCIONAMIENTO} ]?
A55: =A52-0.01 -> -6.11 | B55: ¿Quién lo/a nombró maestro/a de este establecimiento?
B56: 1 | C56: EL/LA maestroA/A
B57: 2 | C57: MINISTERIO DE EDUCACIÓN (CENTRAL)
B58: 3 | C58: SEDE REGIONAL/ESTATAL DEL MINISTERIO DE EDUCACIÓN | AE58: 1 | AF58: YO MISMO/A
B59: 4 | C59: LA COMUNIDAD DE PADRES | AE59: 2 | AF59: LA ESCUELA
B60: 5 | C60: EL LIDER COMUNITARIO | AA60: 1 | AC60: SI | AE60: 3
B61: 6 | C61: EL DUEÑO/A DEL ESTABLECIMIENTO | AA61: 2 | AC61: NO | AE61: 4
B62: 7 | C62: { OTRO 1 } | AA62: ► PRÓXIMO CURSO | AE62: 5
B63: 8 | C63: { OTRO 2 }
B64: 9 | C64: OTRO | S64: 1 | T64: Pedagogía
S65: 2 | T65: Materias específicas
A66: =A55-0.01 -> -6.12 | B66: ¿Tiene usted el título de maestro/profesor de escuela? | S66: 3 | T66: Idiomas
C67: 1 | D67: SI | S67: 4 | T67: { CURSO PERFECCIONAMIENTO 1 }
C68: 2 | D68: NO | E68: ► | F68: =S49 -> -6.15 | S68: 5 | T68: { CURSO PERFECCIONAMIENTO 2 }
S69: 6 | T69: { CURSO PERFECCIONAMIENTO 3 }
A70: =A66-0.01 -> -6.13 | B70: ¿Su título de maestro/prefosor, es en algún área específica? | S70: 7 | T70: { CURSO PERFECCIONAMIENTO 4 } | AA70: 2
C71: 1 | D71: SI | S71: 8 | T71: { CURSO PERFECCIONAMIENTO 5 }
C72: 2 | D72: NO | G72: ► | H72: =A88 -> -6.2
A75: SECCIÓN 6: MAESTRO SELECCIONADO | N75: 1
A77: =AE53-0.01 -> -6.18 | B77: ¿Cuál fue sl salario del mes pasado como maestro de este establecimiento? | S77: =A105-0.01 -> -6.24 | T77: ¿Recibe usted sugerencias sobre su modo de enseñar en este establecimiento de parte de…
B78: PARA LOS ÍTEMS QUE NO SON "EFECTIVO", PIDA ESTIMAR EL VALOR MONETARIO | AA78: 1 | AB78: SI
F79: MONTO { $ } | N79: MONTO { $ } | AA79: 2 | AB79: NO
B80: a. | C80: En efectivo | J80: d. | K80: Transporte
B81: b. | C81: Comida | J81: e. | K81: Otros | T81: a.- | U81: ¿del Director/a?
B82: c. | C82: Vivienda | J82: f. | K82: TOTAL | T82: b.- | U82: ¿de los otros maestros/as?
T83: c.- | U83: ¿de los padres?
A84: =A77-0.01 -> -6.19 | B84: ¿Da usted clases en otro establecimiento educacional? | T84: d.- | U84: { OTRO }
C85: 1 | D85: SI
C86: 2 | D86: NO | E86: ► | F86: =A92 -> -6.21 | S86: =S77-0.01 -> -6.25 | T86: ¿Es usted evaluado por el Director, al menos una vez cada año?
U87: 1 | V87: SI
A88: =A84-0.01 -> -6.2 | B88: ¿Cuántas horas por semana usted trabaja como maestro/a en ese otro (esos otros) establecimiento(s)? | U88: 2 | V88: NO
M90: HORAS POR SEMANA:
A92: =A88-0.01 -> -6.21 | B92: Además de su trabajo como maestro/a, ¿tiene usted otro trabajo?
C94: 1 | D94: SI
C95: 2 | D95: NO | E95: ► | F95: =S77 -> -6.24
A97: =A92-0.01 -> -6.22 | B97: ¿Cuál de estas categorías diría usted que es la que mejor describe su otro trabajo?
B98: LEER EN VOZ ALTA
C99: 1 | D99: Agricultura
C100: 2 | D100: Por cuenta propia
C101: 3 | D101: { OTRA 1 }
C102: 4 | D102: { OTRA 2 }
C103: 5 | D103: OTRO
A105: =A97-0.01 -> -6.23 | B105: ¿En los últimos 12 meses, cuanto recibió usted en total por ese/esos otro(s) trabajo(s)?
K107: MONTO { $ }

Sheet 7.Alumno_1.ORI (hidden)
A1: SECCIÓN 7: ALUMNO SELECCIONADO | O1: 1
A3: -7.01 | B3: NOMBRE DEL ALUMNO: | T3: =A3-0.01 -> -7.02 | V3: CÓDIGO DE IDENTIFICACIÓN DEL ALUMNO:
A5: =T3-0.01 -> -7.03 | B5: ¿Cuántos hermanos y hermanas tienes? | M5: =A26-0.01 -> -7.1 | N5: ¿Tu padre sabe leer? | Y5: =M26-0.01 -> -7.15 | Z5: ¿Tu madre sabe leer?
I6: NÚMERO HERMANOS/AS: | O6: 1 | P6: SI | AA6: 1 | AB6: SI
A7: =A5-0.01 -> -7.04 | B7: ¿Qué edad tenías cuando entraste a primer grado? | O7: 2 | P7: NO | AA7: 2 | AB7: NO
I8: EDAD: | M8: =M5-0.01 -> -7.11 | N8: ¿Tu padre sabe escribir? | Y8: =Y5-0.01 -> -7.16 | Z8: ¿Tu madre sabe escribir?
A9: =A7-0.01 -> -7.05 | B9: ¿Has repetido algún grado/curso? | O9: 1 | P9: SI | AA9: 1 | AB9: SI
C10: 1 | D10: SI | O10: 2 | P10: NO | AA10: 2 | AB10: NO
C11: 2 | D11: NO | E11: ► | F11: =A15 -> -7.07 | M11: =M8-0.01 -> -7.12 | N11: ¿En qué trabaja tu padre? Trabaja en…. | Y11: =Y8-0.01 -> -7.17 | Z11: ¿En qué trabaja tu madre? Trabaja en….
A12: =A9-0.01 -> -7.06 | B12: ¿Cuántos grados/cursos has repetido, en total? | U12: 1 | V12: SI | AG12: 1 | AH12: SI
I13: NÚMERO DE VECES: | U13: 2 | V13: NO | AG13: 2 | AH13: NO
N14: 1 | O14: ¿en el campo? | Z14: 1 | AA14: ¿en el campo?
A15: =A12-0.01 -> -7.07 | B15: ¿Dónde naciste? En… | N15: 2 | O15: ¿tiene su propio negocio? | Z15: 2 | AA15: ¿tiene su propio negocio?
B16: LEER EN VOZ ALTA | N16: 3 | O16: { OTRA ACTIVIDAD - 1 } | Z16: 3 | AA16: { OTRA ACTIVIDAD - 1 }
B17: 1 | C17: ¿la misma {Localidad}? | N17: 4 | O17: { OTRA ACTIVIDAD - 2 } | Z17: 4 | AA17: { OTRA ACTIVIDAD - 2 }
B18: 2 | C18: ¿el mismo {Municilio}? | N18: 5 | O18: { OTRA ACTIVIDAD - 3 } | Z18: 5 | AA18: { OTRA ACTIVIDAD - 3 }
B19: 3 | C19: ¿la misma {Provincia}? | N19: 6 | O19: { OTRA ACTIVIDAD - 4 } | Z19: 6 | AA19: { OTRA ACTIVIDAD - 4 }
B20: 4 | C20: ¿la misma {Región/Estado}? | N20: 7 | O20: { OTRA ACTIVIDAD - 5 } | Z20: 7 | AA20: { OTRA ACTIVIDAD - 5 }
B21: 5 | C21: ¿otro país? | N21: 8 | O21: NO TRABAJA | Z21: 8 | AA21: NO TRABAJA
A22: PADRE | M22: MADRE
A23: =A15-0.01 -> -7.08 | B23: ¿Fue tu padre a la escuela alguna vez? | M23: =M11-0.01 -> -7.13 | N23: ¿Fue tu madre a la escuela alguna vez? | Y23: =Y11-0.01 -> -7.18 | Z23: ¿Cuánto tiempo te toma llegar a la escuela desde tu casa?
C24: 1 | D24: SI | O24: 1 | P24: SI | AG24: MINUTOS:
C25: 2 | D25: NO | E25: ► | F25: =M5 -> -7.1 | O25: 2 | P25: NO | Q25: ► | R25: =Y5 -> -7.15
A26: =A23-0.01 -> -7.09 | B26: ¿Cuál es el último NIVEL Y CURSO más alto de instrucción que aprobó tu padre? | M26: =M23-0.01 -> -7.14 | N26: ¿Cuál es el último NIVEL Y CURSO más alto de instrucción que aprobó tu madre? | Y26: =Y23-0.01 -> -7.19 | Z26: ¿Cuál fue el primer idioma que hablaste cuando eras chico?
AA27: 1 | AB27: CASTELLANO
C28: NIVEL: | I28: CURSO: | O28: NIVEL: | U28: CURSO: | AA28: 2 | AB28: { OTRA LENGUA - 1 }
B29: 1 | C29: PRIMARIA | H29: 1 - 7 | N29: 1 | O29: PRIMARIA | T29: 1 - 7 | AA29: 3 | AB29: { OTRA LENGUA - 2 }
B30: 2 | C30: SECUNDARIA | H30: 1 - 5 | J30: ► | N30: 2 | O30: SECUNDARIA | T30: 1 - 5 | V30: ► | AA30: 4 | AB30: { OTRA LENGUA - 3 }
B31: 3 | C31: BACHILLERATO | H31: 1 - 5 | N31: 3 | O31: BACHILLERATO | T31: 1 - 5 | AA31: 5 | AB31: { OTRA LENGUA - 4 }
B32: 4 | C32: TERCIARIO TÉCNICO | H32: 1 - 3 | J32: =M11 -> -7.12 | N32: 4 | O32: TERCIARIO TÉCNICO | T32: 1 - 3 | V32: =Y11 -> -7.17 | AA32: 6 | AB32: { OTRA LENGUA - 5 }
B33: 5 | C33: TERCIARIO COMERCIAL | H33: 1 - 3 | N33: 5 | O33: TERCIARIO COMERCIAL | T33: 1 - 3
B34: 6 | C34: UNIVERSITARIA | H34: 1 - 4 | N34: 6 | O34: UNIVERSITARIA | T34: 1 - 4
B35: 7 | C35: MAESTRIA/DOCTORADO | H35: 1 - 5 | N35: 7 | O35: MAESTRIA/DOCTORADO | T35: 1 - 5
B36: 8 | C36: OTRO (ESPECIFIQUE) | N36: 8 | O36: OTRO (ESPECIFIQUE)
A38: SECCIÓN 7: ALUMNO SELECCIONADO | O38: 1
A40: =Y26-0.01 -> -7.2 | B40: ¿Recibes beca para tus estudios este año? | M40: =A61-0.01 -> -7.27 | N40: ¿Hay alguien en tu casa que tenga: | Y40: =M40-0.01 -> -7.28 | Z40: ¿Faltaste a la escuela algún día de la semana pasada?
C41: 1 | D41: SI | S41: 1 | T41: SI | AA41: 1 | AB41: SI
C42: 2 | D42: NO | S42: 2 | T42: NO | AA42: 2 | AB42: NO | AC42: ► | AD42: =Y60 -> -7.31
A43: =A40-0.01 -> -7.21 | B43: ¿Tienen electricidad en tu casa?
C44: 1 | D44: SI | N44: 1 | O44: ¿vacas? | Y44: =Y40-0.01 -> -7.29 | Z44: ¿Cuántos días faltaste a la escuela la semana pasada?
C45: 2 | D45: NO | N45: =N44+1 -> 2 | O45: ¿caballos? | AG45: NÚMERO DE DÍAS:
A46: =A43-0.01 -> -7.22 | B46: ¿Tienen baño dentro en tu casa? | N46: =N45+1 -> 3 | O46: ¿cerdos?
C47: 1 | D47: SI | N47: =N46+1 -> 4 | O47: ¿aves? | Y47: =Y44-0.01 -> -7.3 | Z47: ¿Por qué faltaste a la escuela la semana pasada?
C48: 2 | D48: NO | N48: =N47+1 -> 5 | O48: { OTRO ANIMAL - 1 } | Z48: 1 | AA48: ESTUVO ENFERMO
A49: =A46-0.01 -> -7.23 | B49: ¿Hay una pieza/habitación que se usa solamente para cocinar en tu casa? | N49: =N48+1 -> 6 | O49: { OTRO ANIMAL - 2 } | Z49: 2 | AA49: TUVO QUE AYUDAR EN EL CAMPO
N50: 7 | O50: ¿Televisión? | Z50: 3 | AA50: TUVO QUE AYUDAR CON LOS ANIMALES
C51: 1 | D51: SI | N51: 8 | O51: ¿Radio? | Z51: 4 | AA51: TUVO QUE CUIDAR FAMILIARES
C52: 2 | D52: NO | N52: 9 | O52: ¿Teléfono móvil? | Z52: 5 | AA52: HABÍA MAL TIEMPO
A53: =A49-0.01 -> -7.24 | B53: ¿En tu casa, tienen piezas/habitaciones que se usan solamente para dormir? | N53: 10 | O53: ¿Bicicleta? | Z53: 6 | AA53: NO HABÍA TRANSPORTE
N54: 11 | O54: ¿Moto? | Z54: 7 | AA54: NO QUISO IR
C55: 1 | D55: SI | N55: =N54+1 -> 12 | O55: ¿Auto? | Z55: 8 | AA55: { OTRA - 1 }
C56: 2 | D56: NO | E56: ► | F56: =A61 -> -7.26 | N56: =N55+1 -> 13 | O56: { OTRO - 1 } | Z56: 9 | AA56: { OTRA - 2 }
A57: =A53-0.01 -> -7.25 | B57: ¿Cuántas de esas piezas/habitaciones que se usan solamente para dormir hay en tu casa? | N57: =N56+1 -> 14 | O57: { OTRO - 2 } | Z57: 10 | AA57: { OTRA - 3 }
Z58: 11 | AA58: OTRO
I59: NÚMERO:
Y60: =Y47-0.01 -> -7.31 | Z60: ¿Tomaste desayuno hoy en la mañana, antes de venir a la escuela?
A61: =A57-0.01 -> -7.26 | B61: ¿Tienen agua dentro de la casa?
C62: 1 | D62: SI | AA62: 1 | AB62: SI
C63: 2 | D63: NO | AA63: 2 | AB63: NO

Sheet 7.Alumno_1
A1: SECCIÓN 7: ALUMNO SELECCIONADO | O1: 1
A3: -7.01 | B3: NOMBRE DEL ALUMNO: | T3: =A3-0.01 -> -7.02 | V3: CÓDIGO DE IDENTIFICACIÓN DEL ALUMNO:
A5: =T3-0.01 -> -7.03 | B5: ¿Cuántos hermanos y hermanas tienes? | M5: =A26-0.01 -> -7.1 | N5: ¿Tu padre sabe leer? | Y5: =M26-0.01 -> -7.15 | Z5: ¿Tu madre sabe leer?
I6: NÚMERO HERMANOS/AS: | O6: 1 | P6: SI | AA6: 1 | AB6: SI
A7: =A5-0.01 -> -7.04 | B7: ¿Qué edad tenías cuando entraste a primer grado? | O7: 2 | P7: NO | AA7: 2 | AB7: NO
I8: EDAD: | M8: =M5-0.01 -> -7.11 | N8: ¿Tu padre sabe escribir? | Y8: =Y5-0.01 -> -7.16 | Z8: ¿Tu madre sabe escribir?
A9: =A7-0.01 -> -7.05 | B9: ¿Has repetido algún grado/curso? | O9: 1 | P9: SI | AA9: 1 | AB9: SI
C10: 1 | D10: SI | O10: 2 | P10: NO | AA10: 2 | AB10: NO
C11: 2 | D11: NO | E11: ► | F11: =A15 -> -7.07 | M11: =M8-0.01 -> -7.12 | N11: ¿En qué trabaja tu padre? Trabaja en…. | Y11: =Y8-0.01 -> -7.17 | Z11: ¿En qué trabaja tu madre? Trabaja en….
A12: =A9-0.01 -> -7.06 | B12: ¿Cuántos grados/cursos has repetido, en total? | U12: 1 | V12: SI | AG12: 1 | AH12: SI
I13: NÚMERO DE VECES: | U13: 2 | V13: NO | AG13: 2 | AH13: NO
N14: 1 | O14: ¿en el campo? | Z14: 1 | AA14: ¿en el campo?
A15: =A12-0.01 -> -7.07 | B15: ¿Dónde naciste? En… | N15: 2 | O15: ¿tiene su propio negocio? | Z15: 2 | AA15: ¿tiene su propio negocio?
B16: LEER EN VOZ ALTA | N16: 3 | O16: { OTRA ACTIVIDAD - 1 } | Z16: 3 | AA16: { OTRA ACTIVIDAD - 1 }
B17: 1 | C17: ¿la misma {Localidad}? | N17: 4 | O17: { OTRA ACTIVIDAD - 2 } | Z17: 4 | AA17: { OTRA ACTIVIDAD - 2 }
B18: 2 | C18: ¿el mismo {Municilio}? | N18: 5 | O18: { OTRA ACTIVIDAD - 3 } | Z18: 5 | AA18: { OTRA ACTIVIDAD - 3 }
B19: 3 | C19: ¿la misma {Provincia}? | N19: 6 | O19: { OTRA ACTIVIDAD - 4 } | Z19: 6 | AA19: { OTRA ACTIVIDAD - 4 }
B20: 4 | C20: ¿la misma {Región/Estado}? | N20: 7 | O20: { OTRA ACTIVIDAD - 5 } | Z20: 7 | AA20: { OTRA ACTIVIDAD - 5 }
B21: 5 | C21: ¿otro país? | N21: 8 | O21: NO TRABAJA | Z21: 8 | AA21: NO TRABAJA
A22: PADRE | M22: MADRE
A23: =A15-0.01 -> -7.08 | B23: ¿Fue tu padre a la escuela alguna vez? | M23: =M11-0.01 -> -7.13 | N23: ¿Fue tu madre a la escuela alguna vez? | Y23: =Y11-0.01 -> -7.18 | Z23: ¿Cuánto tiempo te toma llegar a la escuela desde tu casa?
C24: 1 | D24: SI | O24: 1 | P24: SI | AG24: MINUTOS:
C25: 2 | D25: NO | E25: ► | F25: =M5 -> -7.1 | O25: 2 | P25: NO | Q25: ► | R25: =Y5 -> -7.15
A26: =A23-0.01 -> -7.09 | B26: ¿Cuál es el último NIVEL Y CURSO más alto de instrucción que aprobó tu padre? | M26: =M23-0.01 -> -7.14 | N26: ¿Cuál es el último NIVEL Y CURSO más alto de instrucción que aprobó tu madre? | Y26: =Y23-0.01 -> -7.19 | Z26: ¿Cuál fue el primer idioma que hablaste cuando eras chico?
AA27: 1 | AB27: CASTELLANO
C28: NIVEL: | I28: CURSO: | O28: NIVEL: | U28: CURSO: | AA28: 2 | AB28: { OTRA LENGUA - 1 }
B29: 1 | C29: PRIMARIA | H29: 1 - 7 | N29: 1 | O29: PRIMARIA | T29: 1 - 7 | AA29: 3 | AB29: { OTRA LENGUA - 2 }
B30: 2 | C30: SECUNDARIA | H30: 1 - 5 | J30: ► | N30: 2 | O30: SECUNDARIA | T30: 1 - 5 | V30: ► | AA30: 4 | AB30: { OTRA LENGUA - 3 }
B31: 3 | C31: BACHILLERATO | H31: 1 - 5 | N31: 3 | O31: BACHILLERATO | T31: 1 - 5 | AA31: 5 | AB31: { OTRA LENGUA - 4 }
B32: 4 | C32: TERCIARIO TÉCNICO | H32: 1 - 3 | J32: =M11 -> -7.12 | N32: 4 | O32: TERCIARIO TÉCNICO | T32: 1 - 3 | V32: =Y11 -> -7.17 | AA32: 6 | AB32: { OTRA LENGUA - 5 }
B33: 5 | C33: TERCIARIO COMERCIAL | H33: 1 - 3 | N33: 5 | O33: TERCIARIO COMERCIAL | T33: 1 - 3
B34: 6 | C34: UNIVERSITARIA | H34: 1 - 4 | N34: 6 | O34: UNIVERSITARIA | T34: 1 - 4
B35: 7 | C35: MAESTRIA/DOCTORADO | H35: 1 - 5 | N35: 7 | O35: MAESTRIA/DOCTORADO | T35: 1 - 5
B36: 8 | C36: OTRO (ESPECIFIQUE) | N36: 8 | O36: OTRO (ESPECIFIQUE)
A38: SECCIÓN 7: ALUMNO SELECCIONADO | O38: 1
A40: =Y26-0.01 -> -7.2 | B40: ¿Recibes beca para tus estudios este año? | M40: =A61-0.01 -> -7.27 | N40: ¿Hay alguien en tu casa que tenga: | Y40: =M40-0.01 -> -7.28 | Z40: ¿Faltaste a la escuela algún día de la semana pasada?
C41: 1 | D41: SI | S41: 1 | T41: SI | AA41: 1 | AB41: SI
C42: 2 | D42: NO | S42: 2 | T42: NO | AA42: 2 | AB42: NO | AC42: ► | AD42: =Y60 -> -7.31
A43: =A40-0.01 -> -7.21 | B43: ¿Tienen electricidad en tu casa?
C44: 1 | D44: SI | N44: 1 | O44: ¿vacas? | Y44: =Y40-0.01 -> -7.29 | Z44: ¿Cuántos días faltaste a la escuela la semana pasada?
C45: 2 | D45: NO | N45: =N44+1 -> 2 | O45: ¿caballos? | AG45: NÚMERO DE DÍAS:
A46: =A43-0.01 -> -7.22 | B46: ¿Tienen baño dentro en tu casa? | N46: =N45+1 -> 3 | O46: ¿cerdos?
C47: 1 | D47: SI | N47: =N46+1 -> 4 | O47: ¿aves? | Y47: =Y44-0.01 -> -7.3 | Z47: ¿Por qué faltaste a la escuela la semana pasada?
C48: 2 | D48: NO | N48: =N47+1 -> 5 | O48: { OTRO ANIMAL - 1 } | Z48: 1 | AA48: ESTUVO ENFERMO
A49: =A46-0.01 -> -7.23 | B49: ¿Hay una pieza/habitación que se usa solamente para cocinar en tu casa? | N49: =N48+1 -> 6 | O49: { OTRO ANIMAL - 2 } | Z49: 2 | AA49: TUVO QUE AYUDAR EN EL CAMPO
N50: 7 | O50: ¿Televisión? | Z50: 3 | AA50: TUVO QUE AYUDAR CON LOS ANIMALES
C51: 1 | D51: SI | N51: 8 | O51: ¿Radio? | Z51: 4 | AA51: TUVO QUE CUIDAR FAMILIARES
C52: 2 | D52: NO | N52: 9 | O52: ¿Teléfono móvil? | Z52: 5 | AA52: HABÍA MAL TIEMPO
A53: =A49-0.01 -> -7.24 | B53: ¿En tu casa, tienen piezas/habitaciones que se usan solamente para dormir? | N53: 10 | O53: ¿Bicicleta? | Z53: 6 | AA53: NO HABÍA TRANSPORTE
N54: 11 | O54: ¿Moto? | Z54: 7 | AA54: NO QUISO IR
C55: 1 | D55: SI | N55: =N54+1 -> 12 | O55: ¿Auto? | Z55: 8 | AA55: { OTRA - 1 }
C56: 2 | D56: NO | E56: ► | F56: =A61 -> -7.26 | N56: =N55+1 -> 13 | O56: { OTRO - 1 } | Z56: 9 | AA56: { OTRA - 2 }
A57: =A53-0.01 -> -7.25 | B57: ¿Cuántas de esas piezas/habitaciones que se usan solamente para dormir hay en tu casa? | N57: =N56+1 -> 14 | O57: { OTRO - 2 } | Z57: 10 | AA57: { OTRA - 3 }
Z58: 11 | AA58: OTRO
I59: NÚMERO:
Y60: =Y47-0.01 -> -7.31 | Z60: ¿Tomaste desayuno hoy en la mañana, antes de venir a la escuela?
A61: =A57-0.01 -> -7.26 | B61: ¿Tienen agua dentro de la casa?
C62: 1 | D62: SI | AA62: 1 | AB62: SI
C63: 2 | D63: NO | AA63: 2 | AB63: NO

Sheet Messages (hidden)
C1: No hay mensajes

Sheet Resource (hidden)
A1: ENGLISH | B1: FRANÇAIS | C1: ESPAÑOL
A2: Variable Properties | B2: Propriétés de la variable | C2: Propiedades de la variable
A3: Data entry range for the variable | B3: Rang d'entrée de données pour la variable | C3: Rango de entrada de datos de la variable
A4: Variable type | B4: Type de variable | C4: Tipo de la variable
A5: Quantitative | B5: Quantitative | C5: Cuantitativa
A6: Qualitative | B6: Qualitative | C6: Cualitativa
A7: Typographic | B7: Typographique | C7: Tipográfica
A8: Chronographic | B8: Chronographique | C8: Cronográfica
A9: Variable range | B9: Rang de la variable | C9: Rango de la variable
A10: Minimum: | B10: Minimum: | C10: Mínimo
A11: Maximum: | B11: Maximum: | C11: Máximo
A12: Variable categories | B12: Categories de la variable | C12: Categorías de la variable
A13: Category: | B13: Categorie: | C13: Categoría:
A14: Add | B14: Ajouter | C14: Agregar
A15: Remove | B15: Supprimer | C15: Eliminar
A16: Code: | B16: Code: | C16: Código:
A17: Name: | B17: Nom: | C17: Nombre:
A18: OK | B18: OK | C18: Aceptar
A19: Cancel | B19: Annuler | C19: Cancelar
A20: RT: | B20: CE: | C20: CR:
A21: New RT | B21: Nouvelle CE | C21: Nueva CR
A22: Name is blank. | B22: Nom est en blanc. | C22: El nombre está en blanco.
A23: A variable with this name already exists. | B23: Une variable avec ce nom existe dej | C23: Una variable con este nombre ya existe.
A24: Name is blank. | C24: El nombre está en blanco.
A25: Size | C25: Largo
A26: Invalid entry. | C26: Entrada inválida
A27: The minimum cannot be greater than the maximum. | C27: El mínimo no puede ser mayor que el máximo.
A28: Are you sure? | C28: ¿Está seguro?
A29: Dictionary | C29: Diccionario
A30: Variable: | C30: Variable:
A31: Create new variable in RT | C31: Crear nueva variable en la CR
A32: Record Type | C32: Clase de Registro
A33: < Back | C33: < Atrás
A34: Next > | C34: Siguiente >
A35: Finish | C35: Terminar
A36: Name | C36: Nombre
A37: Description | C37: Descripción
A38: Unconditional skip | C38: Salto incondicional
A39: No | C39: No
A40: Yes | C40: Sí
A41: <Empty slot> | C41: <Casilla vacía>
A42: Enter a description for the new Record Type | C42: Ingrese una descripción para la nueva Clase de Registro
A43: Create… | C43: Crear…
A44: You cannot remove the first range unless you remove the subsequent ranges | C44: No se puede eliminar el primer rango sin haber eliminado los rangos subsiguientes
A45: Shape… | C45: Forma…
A46: &RT | C46: &CR
A47: Create or edit a Record Type definition (Ctrl+Shift+R) | C47: Crear o editar una definición de Clase de Registro (Ctrl+Shift+R)
A48: V&AR | C48: V&AR
A49: Create or edit a Variable definition (Ctrl+Shift+V) | C49: Crear o editar una definición de Variable (Ctrl+Shift+V)
A50: &DIC | C50: &DIC
A51: Edit the contents of the dictionary (Ctrl+Shift+D) | C51: Editar el contenido del diccionario (Ctrl+Shift+D)
A52: There are no Record Types defined. | C52: No hay Clases de Registro definidas.
A53: Choose the Record Type of the variable: | C53: Escoja la Clase de Registro de la variable:
A54: Enter a name for the variable: | C54: Ingrese un nombre para la variable:
A55: Enter a description for the variable: | C55: Ingrese una descripción para la variable:
A56: Choose the type of the variable: | C56: Escoja el tipo de la variable:
A57: Enter the total size for the variable: | C57: Ingrese el largo total de la variable:
A58: Enter the number of decimals for the variable: | C58: Ingrese la cantidad de decimales de la variable:
A59: Cond. | C59: Cond.
A60: If variable | C60: Si la variable
A61: in RT | C61: en la CR
A62: ranges from | C62: va desde
A63: to | C63: hasta
A64: skip to | C64: salta a
A65: in RT | C65: en la CR
A66: Another condition | C66: Otra condición
A67: Numeric ranges | C67: Rangos numéricos
A68: Categories | C68: Categorías
A69: Enter the numeric ranges that are valid for the variable: | C69: Ingrese los rangos numéricos que son válidos para la variable:
A70: Enter the category codes and names for the variable: | C70: Ingrese los códigos y nombres de las categorías para la variable:
A71: Summary | C71: Resumen
A72: Variable in RT | C72: Variable en la CR
A73: Type | C73: Tipo
A74: Temporary Dictionary | C74: Diccionario Temporal
A75: Type: | C75: Tipo:
A76: Total size: | C76: Largo total:
A77: Decimals: | C77: Decimales:
A78: Apply | C78: Aplicar
A79: Restore | C79: Restaurar
A80: There are no variables defined. | C80: No hay variables definidas.
A81: Out of range: press Yes to force the entry, No to retry, or Cancel to restore the cell value. | C81: Fuera de rango: pulse Sí para forzar la entrada, No para reintentar, o Cancelar para restaurar el valor de la celda.
A82: File not found. | C82: No se encuentra el archivo.
A83: External File | C83: Archivo Externo
A84: Category code: | C84: Código de la categoría:
A85: Category name: | C85: Nombre de la categoría:
A86: Position | C86: Posición
A87: Length | C87: Largo
A88: Ext. File… | C88: Arch. Ext…
A89: File name: | C89: Nombre del archivo:
A90: Choose an external file | C90: Escoja un archivo externo
A91: &Skips | C91: &Saltos
A92: Edit variable in RT | C92: Editar variable en la CR
A93: You must select a data entry cell for the variable you want to edit. | C93: Se debe seleccionar una celda de entrada de datos para la variable que se quiere editar.
A94: Skips | C94: Saltos
A95: Sheet | C95: Hoja
A96: Row | C96: Fila
A97: Column | C97: Columna
A98: Lines | C98: Líneas
A99: Data entry range offsets | C99: Offsets del rango de entrada de datos
A100: Record Type Shape | C100: Forma de la Clase de Registro
A101: Me | C101: Me
A102: End of RT | C102: End of RT
A103: RT | C103: CR
A104: Variable | C104: Variable
A105: Observation | C105: Observación
A106: From | C106: Desde
A107: To | C107: Hasta
A108: Variable | C108: Variable
A109: If | C109: Si
A110: Ranges | C110: Va
A111: Jump to | C111: Salta a
A112: You must select a data entry cell for the Record Type you want to check. | C112: Se debe seleccionar una celda de entrada de datos para la Clase de Registro que se quiere corregir.
A113: Designer toolbar | C113: Barra del Diseñador
A114: Operator toolbar | C114: Barra del Operador
A115: &Check | C115: &Chequeo
A116: Check data entry (Ctrl+Shift+C) | C116: Chequea la entrada de datos (Ctrl+Shift+C)
A117: Inter | C117: Inter
A118: Check data entry across Record Types (Ctrl+Shift+E) | C118: Corrige la entrada de datos a través de las Clases de Registro (Ctrl+Shift+E)
A119: Variable | C119: Variable
A120: is not blank, in spite of variable | C120: no está en blanco, a pesar que la variable
A121: in | C121: en
A122: being | C122: es
A123: for record with code | C123: para el registro con código
A124: is blank | C124: está en blanco
A125: Do you wish to continue checking this record? | C125: ¿Quiere seguir corrigiendo este registro?
A126: - to continue checking the same record, click Yes, | C126: - para seguir corrigiendo el mismo registro, presione Sí,
A127: - to go on checking from the next record, click No, | C127: - para continuar corrigiendo desde el siguiente registro, presione No,
A128: - to quit checking, click Cancel. | C128: - para dejar de corregir, presione Cancelar.
A129: Initial conditions for | C129: Condiciones iniciales para
A130: Preprinted | C130: Preimpresa
A131: Range… | C131: Rango…
A132: Copy | C132: Copiar
A133: Delete | C133: Eliminar
A134: Use the keyboard to select the first cell of the data entry range, then click here. | C134: Use el teclado para seleccionar la primera celda del rango de entrada de datos, y luego presione aquí.
A135: Distribute | C135: Distribuir
A136: Creates the data entry program for the operator (Ctrl+Shift+I) | C136: Crear el programa de entrada de datos para el operador (Ctrl+Shift+I)
A137: Create new Record Type | C137: Crear nueva Clase de Registro
A138: Enter a 3-digit code for the Record Type: | C138: Ingrese un código de 3 dígitos para la Clase de Registro:
A139: Enter a description for the Record Type: | C139: Ingrese una descripción para la Clase de Registro:
A140: Code | C140: Código
A141: Description | C141: Descripción
A142: Code: | C142: Código:
A143: Description: | C143: Descripción:
A144: blank | C144: en blanco
A145: This will save your work and create the Data Entry Program for the operator. | C145: Esto guardará su trabajo y creará el Programa de Entrada de Datos para el operador.
A146: Do you wish to continue? | C146: ¿Desea continuar?
A147: Duplicate name in Record Type: | C147: Nombre repetido en la Clase de Registro:
A148: already has name | C148: ya tiene el nombre
A149: You must define a Shape for the Record Type first. | C149: Debe definir la Forma de la Clase de Registro primero.
A150: Duplicate Record Type code: | C150: Código de Clase de Registro repetido:
A151: already has code | C151: ya tiene el código
A152: Record Type | C152: Clase de Registro
A153: Range | C153: Rango
A154: Skips… | C154: Saltos…
A155: Continue? | C155: ¿Continuar?
A156: Date format: | C156: Formato de fecha:
A157: Invalid date format. | C157: Formato de fecha inválido.
A158: Date does not exist. | C158: La fecha no existe.
A159: Date format | C159: Formato de fecha
A160: Enter the date formats for the variable, as it should be shown on the screen and written to the file: | C160: Ingrese los formatos cronográficos de la variable, tanto para mostrar en pantalla como para escribir al archivo:
A161: Screen format: | C161: Formato de pantalla:
A162: File format: | C162: Formato de archivo:
A163: Date ranges | C163: Rangos cronográficos
A164: Enter the date ranges that are valid for the variable (Write the dates using the screen format): | C164: Ingrese los rangos cronográficos que son válidos para la variable (Escriba la fecha utilizando el formato de pantalla):
A165: Date is out of range. | C165: La fecha está fuera de rango.
A166: ="'*** Start of code block ***" -> '*** Start of code block *** | C166: ="'*** Inicio del bloque de código ***" -> '*** Inicio del bloque de código ***
A167: ="'*** End of code block ***" -> '*** End of code block *** | C167: ="'*** Fin del bloque de código ***" -> '*** Fin del bloque de código ***
A168: Questionnaire ID cannot contain blanks. | C168: Identificador del cuestionario no puede contener blancos.
A169: Identifiers: | C169: Identificadores:
A170: Invalid code | C170: Código invalido
A171: Text too long | C171: Texto demasiado largo
A172: Move up | C172: Subir
A173: Move down | C173: Bajar
A174: Options… | C174: Opciones…
A175: Options for variable | C175: Opciones para la variable
A176: Address: | C176: Dirección:
A177: Data entry range | C177: Rango de entrada de datos
A178: Number of identifiers | C178: Cantidad de identificadores
A179: Number of records | C179: Cantidad de registros
A180: Enter the number of identifiers for the Record Type: | C180: Ingrese la cantidad de identificadores para la Clase de Registro:
A181: Enter the number of records for the Record Type: | C181: Ingrese la cantidad de registros para la Clase de Registro:
A182: Identifiers | C182: Identificadores
A183: Records | C183: Registros
A184: &Open | C184: &Abrir
A185: Open an existent questionnaire | C185: Abrir un cuestionario existente
A186: &Save | C186: &Guardar
A187: Save the current questionnaire | C187: Guardar el cuestionario actual
A188: This file contains invalid records. | C188: Este archivo contiene registros inválidos.
A189: Edit… | C189: Editar…
A190: Record Types: | C190: Clases de Registro:
A191: Variables: | C191: Variables:
A192: Allow blanks | C192: Permitir blancos
A193: Data folder not found. | C193: No se encontró la carpeta de datos.
A194: Data folder does not exist. Do you wish to create it? | C194: Carpeta de datos no existe. ¿Desea crearla?
A195: Data folder could not be created. Specify the complete path. | C195: Carpeta de datos no pudo ser creada. Especifique la ruta completa.
A196: Invalid folder name. | C196: Nombre de carpeta inválido.
A197: Data folder | C197: Carpeta de datos
A198: Enter the complete name of the folder where you want to store the data: | C198: Ingrese el nombre completo de la carpeta donde desea guardar los datos:
A199: Data entry program configuration | C199: Configuración del programa de entrada de datos
A200: Data | C200: Datos
... 153 more rows

Sheet Parameters (hidden)
A1: DATAENTRYCELLBGCOLOR | B1: PRINTEDCELLBGCOLOR | C1: FORCEDCELLBGCOLOR | D1: DATESCREENFORMATS | E1: DATEFILEFORMATS | F1: LANGUAGE | G1: BLACK
D2: MM-DD-YYYY | E2: MM-DD-YYYY | F2: 3 | G2: *
D3: MM-DD-YYYY hh:mm | E3: MM-DD-YYYY hh:mm
D4: MM-DD-YYYY hh:mm:ss | E4: MM-DD-YYYY hh:mm:ss
D5: DD-MM-YYYY | E5: DD-MM-YYYY
D6: DD-MM-YYYY hh:mm | E6: DD-MM-YYYY hh:mm
D7: DD-MM-YYYY hh:mm:ss | E7: DD-MM-YYYY hh:mm:ss
D8: MM-YYYY | E8: MM-YYYY
D9: MM-DD-YY | E9: MM-DD-YY
D10: MM-DD-YY hh:mm | E10: MM-DD-YY hh:mm
D11: MM-DD-YY hh:mm:ss | E11: MM-DD-YY hh:mm:ss
D12: DD-MM-YY | E12: DD-MM-YY
D13: DD-MM-YY hh:mm | E13: DD-MM-YY hh:mm
D14: DD-MM-YY hh:mm:ss | E14: DD-MM-YY hh:mm:ss
D15: MM-YY | E15: MM-YY
D16: MM/DD/YYYY | E16: MM/DD/YYYY
D17: MM/DD/YYYY hh:mm | E17: MM/DD/YYYY hh:mm
D18: MM/DD/YYYY hh:mm:ss | E18: MM/DD/YYYY hh:mm:ss
D19: DD/MM/YYYY | E19: DD/MM/YYYY
D20: DD/MM/YYYY hh:mm | E20: DD/MM/YYYY hh:mm
D21: DD/MM/YYYY hh:mm:ss | E21: DD/MM/YYYY hh:mm:ss
D22: MM/YYYY | E22: MM/YYYY
D23: MM/DD/YY | E23: MM/DD/YY
D24: MM/DD/YY hh:mm | E24: MM/DD/YY hh:mm
D25: MM/DD/YY hh:mm:ss | E25: MM/DD/YY hh:mm:ss
D26: DD/MM/YY | E26: DD/MM/YY
D27: DD/MM/YY hh:mm | E27: DD/MM/YY hh:mm
D28: DD/MM/YY hh:mm:ss | E28: DD/MM/YY hh:mm:ss
D29: MM/YY | E29: MM/YY
E30: MMDDYYYY
E31: MMDDYYYYhhmm
E32: MMDDYYYYhhmmss
E33: DDMMYYYY
E34: DDMMYYYYhhmm
E35: DDMMYYYYhhmmss
E36: MMYYYY
E37: MMDDYY
E38: MMDDYYhhmm
E39: MMDDYYhhmmss
E40: DDMMYY
E41: DDMMYYhhmm
E42: DDMMYYhhmmss
E43: MMYY
E44: YYYYMMDD
E45: YYYYMMDDhhmm
E46: YYYYMMDDhhmmss
E47: YYYYDDMM
E48: YYYYDDMMhhmm
E49: YYYYDDMMhhmmss
E50: YYYYMM
E51: YYMMDD
E52: YYMMDDhhmm
E53: YYMMDDhhmmss
E54: YYDDMM
E55: YYDDMMhhmm
E56: YYDDMMhhmmss
E57: YYMM

Sheet Dictionary (hidden)
C1: 4 | F1: c:\PeI_PED\Educ\Datos\ | G1: 1 | H1: "E" & id_escuela
A2: 1 | B2: 001: Escuela | C2: 290 | D2: 0 | E2: 1
A3: id_escuela | B3: ID Escuela | C3: FALSE | D3: FALSE | E3: 0 | F3: 4 | G3: 0 | H3: 1~ | I3: 300~ | J3: Portada~ | K3: 5~ | L3: 29~ | M3: 1~
A4: s00_p01 | B4: Nombre del Establecimiento | C4: FALSE | D4: FALSE | E4: 2 | F4: 50 | G4: 0 | J4: Portada~ | K4: 5~ | L4: 11~ | M4: 1~
A5: s00_p02 | B5: Región/Estado | C5: FALSE | D5: FALSE | E5: 0 | F5: 3 | G5: 0 | H5: 0~ | I5: 999~ | J5: Portada~ | K5: 9~ | L5: 16~ | M5: 1~
A6: s00_p03 | B6: Provincia | C6: FALSE | D6: FALSE | E6: 0 | F6: 3 | G6: 0 | H6: 0~ | I6: 999~ | J6: Portada~ | K6: 11~ | L6: 16~ | M6: 1~
A7: s00_p04 | B7: Municipio | C7: FALSE | D7: FALSE | E7: 0 | F7: 3 | G7: 0 | H7: 0~ | I7: 999~ | J7: Portada~ | K7: 13~ | L7: 16~ | M7: 1~
A8: s00_p05 | B8: Localidad | C8: FALSE | D8: FALSE | E8: 0 | F8: 3 | G8: 0 | H8: 0~ | I8: 999~ | J8: Portada~ | K8: 15~ | L8: 16~ | M8: 1~
A9: s00_p06 | B9: Zona/Barrio | C9: FALSE | D9: FALSE | E9: 2 | F9: 50 | G9: 0 | J9: Portada~ | K9: 17~ | L9: 7~ | M9: 1~
A10: s00_p07 | B10: Calle | C10: FALSE | D10: FALSE | E10: 2 | F10: 50 | G10: 0 | J10: Portada~ | K10: 19~ | L10: 7~ | M10: 1~
A11: s00_p08 | B11: Número | C11: FALSE | D11: FALSE | E11: 2 | F11: 50 | G11: 0 | J11: Portada~ | K11: 21~ | L11: 7~ | M11: 1~
A12: s00_p09 | B12: Otras Referencias | C12: FALSE | D12: FALSE | E12: 2 | F12: 50 | G12: 0 | J12: Portada~ | K12: 23~ | L12: 8~ | M12: 1~
A13: s00_p10_g | B13: 06: Latitud Geográfica (grados) | C13: FALSE | D13: FALSE | E13: 0 | F13: 2 | G13: 0 | H13: 0~ | I13: 56~ | J13: Portada~ | K13: 26~ | L13: 6~ | M13: 1~
A14: s00_p10_m | B14: 06: Latitud Geográfica (minutos) | C14: FALSE | D14: FALSE | E14: 0 | F14: 2 | G14: 0 | H14: 0~ | I14: 59~ | J14: Portada~ | K14: 26~ | L14: 9~ | M14: 1~
A15: s00_p10_s | B15: 06: Latitud Geográfica (segundos) | C15: FALSE | D15: FALSE | E15: 0 | F15: 5 | G15: 2 | H15: 0~ | I15: 59~ | J15: Portada~ | K15: 26~ | L15: 12~ | M15: 1~
A16: s00_p11_g | B16: 07: Longitud Geográfica (grados) | C16: FALSE | D16: FALSE | E16: 0 | F16: 2 | G16: 0 | H16: 0~ | I16: 99~ | J16: Portada~ | K16: 28~ | L16: 6~ | M16: 1~
A17: s00_p11_m | B17: 07: Longitud Geográfica (minutos) | C17: FALSE | D17: FALSE | E17: 0 | F17: 2 | G17: 0 | H17: 0~ | I17: 59~ | J17: Portada~ | K17: 28~ | L17: 9~ | M17: 1~
A18: s00_p11_s | B18: 07: Longitud Geográfica (segundos) | C18: FALSE | D18: FALSE | E18: 0 | F18: 5 | G18: 2 | H18: 0~ | I18: 59~ | J18: Portada~ | K18: 28~ | L18: 12~ | M18: 1~
A19: s00_p12 | B19: Tipo | C19: FALSE | D19: FALSE | E19: 1 | F19: 1 | G19: 0 | H19: 1~2~3~4~5~6~ | I19: PRIMARIA~SECUNDARIA~AMBAS, PRIMARIA Y SECUNDARIA~SECUNDARIA TÉCNICA~OPCIÓN 5~OPCIÓN 6~ | J19: Portada~ | K19: 9~ | L19: 26~ | M19: 1~
A20: s00_p13 | B20: Nombre del director/a | C20: FALSE | D20: FALSE | E20: 2 | F20: 50 | G20: 0 | J20: Portada~ | K20: 19~ | L20: 22~ | M20: 1~
A21: s00_p14_1 | B21: Teléfono 1 | C21: FALSE | D21: FALSE | E21: 0 | F21: 9 | G21: 0 | H21: 1111111~ | I21: 9999999~ | J21: Portada~ | K21: 23~ | L21: 25~ | M21: 1~
A22: s00_p14_2 | B22: Teléfono 2 | C22: TRUE | D22: FALSE | E22: 0 | F22: 9 | G22: 0 | H22: 1111111~ | I22: 9999999~ | J22: Portada~ | K22: 25~ | L22: 25~ | M22: 1~
A23: s00_p14 | B23: Teléfono 3 | C23: TRUE | D23: FALSE | E23: 0 | F23: 9 | G23: 0 | H23: 1111111~ | I23: 9999999~ | J23: Portada~ | K23: 28~ | L23: 25~ | M23: 1~
A24: s00_p15 | B24: Encuestador/a | C24: FALSE | D24: FALSE | E24: 0 | F24: 3 | G24: 0 | H24: 1~ | I24: 40~ | J24: Portada~ | K24: 34~ | L24: 12~ | M24: 1~
A25: s00_p16 | B25: Supervisor | C25: FALSE | D25: FALSE | E25: 0 | F25: 2 | G25: 0 | H25: 1~ | I25: 20~ | J25: Portada~ | K25: 36~ | L25: 12~ | M25: 1~
A26: s00_p17 | B26: Otro Personal 1 | C26: TRUE | D26: FALSE | E26: 0 | F26: 2 | G26: 0 | H26: 1~ | I26: 10~ | J26: Portada~ | K26: 38~ | L26: 12~ | M26: 1~
A27: s00_p18 | B27: Otro Personal 2 | C27: TRUE | D27: FALSE | E27: 0 | F27: 2 | G27: 0 | H27: 1~ | I27: 10~ | J27: Portada~ | K27: 40~ | L27: 12~ | M27: 1~
A28: s00_p19 | B28: Otro Personal 3 | C28: TRUE | D28: FALSE | E28: 0 | F28: 2 | G28: 0 | H28: 1~ | I28: 10~ | J28: Portada~ | K28: 42~ | L28: 12~ | M28: 1~
A29: s00_p20_1_d | B29: Fecha Visita (día) | C29: FALSE | D29: FALSE | E29: 0 | F29: 2 | G29: 0 | H29: 1~ | I29: 31~ | J29: Portada~ | K29: 38~ | L29: 18~ | M29: 1~
A30: s00_p20_1_m | B30: Fecha visita 1 (mes) | C30: FALSE | D30: FALSE | E30: 0 | F30: 2 | G30: 0 | H30: 1~ | I30: 12~ | J30: Portada~ | K30: 38~ | L30: 19~ | M30: 1~
A31: s00_p20_1_a | B31: Fecha visita 1 (año) | C31: FALSE | D31: FALSE | E31: 0 | F31: 4 | G31: 0 | H31: 2012~ | I31: 2020~ | J31: Portada~ | K31: 38~ | L31: 20~ | M31: 1~
A32: s00_p20_1_r | B32: Resultado visita 1 | C32: FALSE | D32: FALSE | E32: 1 | F32: 1 | G32: 0 | H32: 1~2~3~4~5~6~ | I32: COMPLETA~PARCIAL~RECHAZO~NO CONTACTÓ~NO LO ENCONTRÓ~OTRO~ | J32: Portada~ | K32: 38~ | L32: 22~ | M32: 1~
A33: s00_p20_1_i_h | B33: Hora inicio visita 1 (horas) | C33: FALSE | D33: FALSE | E33: 0 | F33: 2 | G33: 0 | H33: 0~ | I33: 23~ | J33: Portada~ | K33: 38~ | L33: 23~ | M33: 1~
A34: s00_p20_1_i_m | B34: Hora inicio visita 1 (minutos) | C34: FALSE | D34: FALSE | E34: 0 | F34: 2 | G34: 0 | H34: 0~ | I34: 59~ | J34: Portada~ | K34: 38~ | L34: 24~ | M34: 1~
A35: s00_p20_1_f_h | B35: Hora fin visita 1 (horas) | C35: FALSE | D35: FALSE | E35: 0 | F35: 2 | G35: 0 | H35: 0~ | I35: 23~ | J35: Portada~ | K35: 38~ | L35: 25~ | M35: 1~
A36: s00_p20_1_f_m | B36: Hora fin visita 1 (minutos) | C36: FALSE | D36: FALSE | E36: 0 | F36: 2 | G36: 0 | H36: 0~ | I36: 59~ | J36: Portada~ | K36: 38~ | L36: 26~ | M36: 1~
A37: s00_p20_2_d | B37: Fecha Visita 2 (día) | C37: TRUE | D37: FALSE | E37: 0 | F37: 2 | G37: 0 | H37: 1~ | I37: 31~ | J37: Portada~ | K37: 39~ | L37: 18~ | M37: 1~
A38: s00_p20_2_m | B38: Fecha visita 2 (mes) | C38: TRUE | D38: FALSE | E38: 0 | F38: 2 | G38: 0 | H38: 1~ | I38: 12~ | J38: Portada~ | K38: 39~ | L38: 19~ | M38: 1~
A39: s00_p20_2_a | B39: Fecha visita 2 (año) | C39: TRUE | D39: FALSE | E39: 0 | F39: 4 | G39: 0 | H39: 2012~ | I39: 2020~ | J39: Portada~ | K39: 39~ | L39: 20~ | M39: 1~
A40: s00_p20_2_r | B40: Resultado visita 2 | C40: TRUE | D40: FALSE | E40: 1 | F40: 1 | G40: 0 | H40: 1~2~3~4~5~6~ | I40: COMPLETA~PARCIAL~RECHAZO~NO CONTACTÓ~NO LO ENCONTRÓ~OTRO~ | J40: Portada~ | K40: 39~ | L40: 22~ | M40: 1~
A41: s00_p20_2_i_h | B41: Hora inicio visita 2 (horas) | C41: TRUE | D41: FALSE | E41: 0 | F41: 2 | G41: 0 | H41: 0~ | I41: 23~ | J41: Portada~ | K41: 39~ | L41: 23~ | M41: 1~
A42: s00_p20_2_i_m | B42: Hora inicio visita 2 (minutos) | C42: TRUE | D42: FALSE | E42: 0 | F42: 2 | G42: 0 | H42: 0~ | I42: 59~ | J42: Portada~ | K42: 39~ | L42: 24~ | M42: 1~
A43: s00_p20_2_f_h | B43: Hora fin visita 2 (horas) | C43: TRUE | D43: FALSE | E43: 0 | F43: 2 | G43: 0 | H43: 0~ | I43: 23~ | J43: Portada~ | K43: 39~ | L43: 25~ | M43: 1~
A44: s00_p20_2_f_m | B44: Hora fin visita 2 (minutos) | C44: TRUE | D44: FALSE | E44: 0 | F44: 2 | G44: 0 | H44: 0~ | I44: 59~ | J44: Portada~ | K44: 39~ | L44: 26~ | M44: 1~
A45: s00_p20_3_d | B45: Fecha Visita 3 (día) | C45: TRUE | D45: FALSE | E45: 0 | F45: 2 | G45: 0 | H45: 1~ | I45: 31~ | J45: Portada~ | K45: 40~ | L45: 18~ | M45: 1~
A46: s00_p20_3_m | B46: Fecha visita 3 (mes) | C46: TRUE | D46: FALSE | E46: 0 | F46: 2 | G46: 0 | H46: 1~ | I46: 12~ | J46: Portada~ | K46: 40~ | L46: 19~ | M46: 1~
A47: s00_p20_3_a | B47: Fecha visita 3 (año) | C47: TRUE | D47: FALSE | E47: 0 | F47: 4 | G47: 0 | H47: 2012~ | I47: 2020~ | J47: Portada~ | K47: 40~ | L47: 20~ | M47: 1~
A48: s00_p20_3_r | B48: Resultado visita 3 | C48: TRUE | D48: FALSE | E48: 1 | F48: 1 | G48: 0 | H48: 1~2~3~4~5~6~ | I48: COMPLETA~PARCIAL~RECHAZO~NO CONTACTÓ~NO LO ENCONTRÓ~OTRO~ | J48: Portada~ | K48: 40~ | L48: 22~ | M48: 1~
A49: s00_p20_3_i_h | B49: Hora inicio visita 3 (horas) | C49: TRUE | D49: FALSE | E49: 0 | F49: 2 | G49: 0 | H49: 0~ | I49: 23~ | J49: Portada~ | K49: 40~ | L49: 23~ | M49: 1~
A50: s00_p20_3_i_m | B50: Hora inicio visita 3 (minutos) | C50: TRUE | D50: FALSE | E50: 0 | F50: 2 | G50: 0 | H50: 0~ | I50: 59~ | J50: Portada~ | K50: 40~ | L50: 24~ | M50: 1~
A51: s00_p20_3_f_h | B51: Hora fin visita 3 (horas) | C51: TRUE | D51: FALSE | E51: 0 | F51: 2 | G51: 0 | H51: 0~ | I51: 23~ | J51: Portada~ | K51: 40~ | L51: 25~ | M51: 1~
A52: s00_p20_3_f_m | B52: Hora fin visita 3 (minutos) | C52: TRUE | D52: FALSE | E52: 0 | F52: 2 | G52: 0 | H52: 0~ | I52: 59~ | J52: Portada~ | K52: 40~ | L52: 26~ | M52: 1~
A53: s00_p20_4_d | B53: Fecha Visita 4 (día) | C53: TRUE | D53: FALSE | E53: 0 | F53: 2 | G53: 0 | H53: 1~ | I53: 31~ | J53: Portada~ | K53: 41~ | L53: 18~ | M53: 1~
A54: s00_p20_4_m | B54: Fecha visita 4 (mes) | C54: TRUE | D54: FALSE | E54: 0 | F54: 2 | G54: 0 | H54: 1~ | I54: 12~ | J54: Portada~ | K54: 41~ | L54: 19~ | M54: 1~
A55: s00_p20_4_a | B55: Fecha visita 4 (año) | C55: TRUE | D55: FALSE | E55: 0 | F55: 4 | G55: 0 | H55: 2012~ | I55: 2020~ | J55: Portada~ | K55: 41~ | L55: 20~ | M55: 1~
A56: s00_p20_4_r | B56: Resultado visita 4 | C56: TRUE | D56: FALSE | E56: 1 | F56: 1 | G56: 0 | H56: 1~2~3~4~5~6~ | I56: COMPLETA~PARCIAL~RECHAZO~NO CONTACTÓ~NO LO ENCONTRÓ~OTRO~ | J56: Portada~ | K56: 41~ | L56: 22~ | M56: 1~
A57: s00_p20_4_i_h | B57: Hora inicio visita 4 (horas) | C57: TRUE | D57: FALSE | E57: 0 | F57: 2 | G57: 0 | H57: 0~ | I57: 23~ | J57: Portada~ | K57: 41~ | L57: 23~ | M57: 1~
A58: s00_p20_4_i_m | B58: Hora inicio visita 4 (minutos) | C58: TRUE | D58: FALSE | E58: 0 | F58: 2 | G58: 0 | H58: 0~ | I58: 59~ | J58: Portada~ | K58: 41~ | L58: 24~ | M58: 1~
A59: s00_p20_4_f_h | B59: Hora fin visita 4 (horas) | C59: TRUE | D59: FALSE | E59: 0 | F59: 2 | G59: 0 | H59: 0~ | I59: 23~ | J59: Portada~ | K59: 41~ | L59: 25~ | M59: 1~
A60: s00_p20_4_f_m | B60: Hora fin visita 4 (minutos) | C60: TRUE | D60: FALSE | E60: 0 | F60: 2 | G60: 0 | H60: 0~ | I60: 59~ | J60: Portada~ | K60: 41~ | L60: 26~ | M60: 1~
A61: s00_p22 | B61: Idioma de la entrevista | C61: FALSE | D61: FALSE | E61: 1 | F61: 1 | G61: 0 | H61: 1~2~3~4~5~6~ | I61: CASTELLANO~OPCIÓN 2~OPCIÓN 3~OPCIÓN 4~OPCIÓN 5~OPCIÓN 6~ | J61: Portada~ | K61: 34~ | L61: 34~ | M61: 1~
A62: s01_p01 | B62: (1,01): Edad del director | C62: FALSE | D62: FALSE | E62: 0 | F62: 2 | G62: 0 | H62: 20~ | I62: 85~ | J62: 1.Director~ | K62: 5~ | L62: 13~ | M62: 1~
A63: s01_p02 | B63: (1,02): Sexo del Director | C63: FALSE | D63: FALSE | E63: 1 | F63: 1 | G63: 0 | H63: 1~2~ | I63: HOMBRE~MIJER~ | J63: 1.Director~ | K63: 7~ | L63: 14~ | M63: 1~
A64: s01_p03 | B64: (1,03): Año de ingreso al establecimiento | C64: FALSE | D64: FALSE | E64: 0 | F64: 4 | G64: 0 | H64: 1930~ | I64: 2012~ | J64: 1.Director~ | K64: 11~ | L64: 13~ | M64: 1~
A65: s01_p04 | B65: (1,04): Año que fue nombrado Director | C65: FALSE | D65: FALSE | E65: 0 | F65: 4 | G65: 0 | H65: 1930~ | I65: 2012~ | J65: 1.Director~ | K65: 13~ | L65: 13~ | M65: 1~
A66: s01_p05 | B66: (1,05): ¿Quién lo nombró director? | C66: FALSE | D66: FALSE | E66: 1 | F66: 1 | G66: 0 | H66: 1~2~3~4~5~6~7~8~ | I66: MINISTERIO DE EDUCACIÓN (CENTRAL)~SEDE REGIONAL/ESTATAL DEL MINISTERIO DE EDUCACIÓN~LA COMUNIDAD DE PADRES~EL LIDER COMUNITARIO~EL DUEÑO/A DEL ESTABLECIMIENTO~OPCIÓN 6~OPCIÓN 7~OTRO~ | J66: 1.Director~ | K66: 15~ | L66: 14~ | M66: 1~
A67: s01_p06_n | B67: (1,06): Nivel más alto que aprobó | C67: FALSE | D67: FALSE | E67: 1 | F67: 1 | G67: 0 | H67: 1~2~3~4~5~6~7~8~ | I67: PRIMARIA~SECUNDARIA~BACHILLERATO~TERCIARIO TÉCNICO~TERCIARIO COMERCIAL~UNIVERSITARIA~MAESTRIA/DOCTORADO~OTRO (ESPECIFIQUE)~ | J67: 1.Director~ | K67: 29~ | L67: 14~ | M67: 1~
A68: s01_p06_c | B68: (1,06): Curso más alto que aprobó | C68: FALSE | D68: FALSE | E68: 0 | F68: 1 | G68: 0 | H68: 1~ | I68: 7~ | J68: 1.Director~ | K68: 31~ | L68: 14~ | M68: 1~ | N68: 001~001~ | O68: s01_p06_n~s01_p06_n~ | P68: ~~ | Q68: 1~4~ | R68: 3~7~ | S68: s01_p13~s01_p07~
A69: s01_p06_otro | B69: (1,06): Otra | C69: FALSE | D69: FALSE | E69: 2 | F69: 50 | G69: 0 | J69: 1.Director~ | K69: 35~ | L69: 7~ | M69: 1~ | N69: 001~ | O69: s01_p06_n~ | P69: ~ | Q69: 8~ | R69: 8~ | S69: s01_p13~
A70: s01_p07 | B70: (1,07): Año de aprobación | C70: FALSE | D70: FALSE | E70: 0 | F70: 4 | G70: 0 | H70: 1950~ | I70: 2012~ | J70: 1.Director~ | K70: 37~ | L70: 14~ | M70: 1~
A71: s01_p08 | B71: (1,08): ¿Hizo algún curso de administración? | C71: FALSE | D71: FALSE | E71: 1 | F71: 1 | G71: 0 | H71: 1~2~ | I71: SI~NO~ | J71: 1.Director~ | K71: 5~ | L71: 32~ | M71: 1~ | N71: 001~ | O71: s01_p08~ | P71: ~ | Q71: 2~ | R71: 2~ | S71: s01_p10~
A72: s01_p09 | B72: (1,09): Área del curso de administración | C72: FALSE | D72: FALSE | E72: 1 | F72: 1 | G72: 0 | H72: 1~2~3~ | I72: ADMINISTRACIÓN DE ESTABLECIMIENTOS EDUCACIONALES~ADMINISTRACIÓN DE EMPRESAS~OTRO~ | J72: 1.Director~ | K72: 9~ | L72: 32~ | M72: 1~
A73: s01_p10 | B73: (1,10): ¿Tiene título de profesor de escuela? | C73: FALSE | D73: FALSE | E73: 1 | F73: 1 | G73: 0 | H73: 1~2~ | I73: SI~NO~ | J73: 1.Director~ | K73: 15~ | L73: 32~ | M73: 1~ | N73: 001~ | O73: s01_p10~ | P73: ~ | Q73: 2~ | R73: 2~ | S73: s01_p13~
A74: s01_p11 | B74: (1,11): ¿El título es de algún área? | C74: FALSE | D74: FALSE | E74: 1 | F74: 1 | G74: 0 | H74: 1~2~ | I74: SI~NO~ | J74: 1.Director~ | K74: 18~ | L74: 32~ | M74: 1~ | N74: 001~ | O74: s01_p11~ | P74: ~ | Q74: 2~ | R74: 2~ | S74: s01_p13~
A75: s01_p12 | B75: (1,12): Áreas en donde está titulado | C75: FALSE | D75: FALSE | E75: 1 | F75: 2 | G75: 0 | H75: 01~02~03~04~05~06~07~08~09~10~11~12~13~14~ | I75: MATEMÁTICAS~CASTELLANO~CIENCIAS~FÍSICA~FILOSOFÍA~MANUALIDADES~EDUCACIÓN FÍSICA~MÚSICA~INGLÉS~OPCIÓN 10~OPCIÓN 11~OPCIÓN 12~OPCIÓN 13~OTRO~ | J75: 1.Director~ | K75: 21~ | L75: 32~ | M75: 1~
A76: s01_p13 | B76: (1,13): Horas a la semana que trabaja | C76: FALSE | D76: FALSE | E76: 0 | F76: 2 | G76: 0 | H76: 0~ | I76: 60~ | J76: 1.Director~ | K76: 31~ | L76: 32~ | M76: 1~
A77: s01_p14 | B77: (1,14): ¿Dicta clases en la escuela? | C77: FALSE | D77: FALSE | E77: 1 | F77: 1 | G77: 0 | H77: 1~2~ | I77: SI~NO~ | J77: 1.Director~ | K77: 33~ | L77: 32~ | M77: 1~ | N77: 001~ | O77: s01_p14~ | P77: ~ | Q77: 2~ | R77: 2~ | S77: s01_p16~
A78: s01_p15 | B78: (1,15): Horas a la semana que dicta clases | C78: FALSE | D78: FALSE | E78: 0 | F78: 2 | G78: 0 | H78: 0~ | I78: 60~ | J78: 1.Director~ | K78: 36~ | L78: 32~ | M78: 1~
A79: s01_p16 | B79: (1,16): ¿Está estudiando otro título? | C79: FALSE | D79: FALSE | E79: 1 | F79: 1 | G79: 0 | H79: 1~2~ | I79: SI~NO~ | J79: 1.Director~ | K79: 44~ | L79: 14~ | M79: 1~ | N79: 001~ | O79: s01_p16~ | P79: ~ | Q79: 2~ | R79: 2~ | S79: s01_p19_1~
A80: s01_p17 | B80: (1,17): ¿Qué título estudia? | C80: FALSE | D80: FALSE | E80: 1 | F80: 1 | G80: 0 | H80: 1~2~3~4~ | I80: OPCIÓN 1~OPCIÓN 2~OPCIÓN 3~OTRO~ | J80: 1.Director~ | K80: 48~ | L80: 14~ | M80: 1~
A81: s01_p18 | B81: (1,18): ¿Asistió a algún curso de perfeccionamiento? | C81: FALSE | D81: FALSE | E81: 1 | F81: 1 | G81: 0 | H81: 1~2~ | I81: SI~NO~ | J81: 1.Director~ | K81: 54~ | L81: 14~ | M81: 1~ | N81: 001~ | O81: s01_p18~ | P81: ~ | Q81: 2~ | R81: 2~ | S81: s01_p21_a~
A82: s01_p19_1 | B82: (1,19): ¿Asistió a (curso perfeccionamiento 1)? | C82: FALSE | D82: FALSE | E82: 1 | F82: 1 | G82: 0 | H82: 1~2~ | I82: SI~NO~ | J82: 1.Director~ | K82: 68~ | L82: 9~ | M82: 1~ | N82: 001~ | O82: s01_p19_1~ | P82: ~ | Q82: 2~ | R82: 2~ | S82: s01_p19_2~
A83: s01_p20_1 | B83: (1,20): ¿Quién financió (curso perfeccionamiento 1)? | C83: FALSE | D83: FALSE | E83: 1 | F83: 1 | G83: 0 | H83: 1~2~3~4~5~ | I83: YO MISMO/A~LA ESCUELA~OPCIÓN 3~OPCIÓN 4~OPCIÓN 5~ | J83: 1.Director~ | K83: 68~ | L83: 13~ | M83: 1~
A84: s01_p19_2 | B84: (1,19): ¿Asistió a (curso perfeccionamiento 2)? | C84: FALSE | D84: FALSE | E84: 1 | F84: 1 | G84: 0 | H84: 1~2~ | I84: SI~NO~ | J84: 1.Director~ | K84: 69~ | L84: 9~ | M84: 1~ | N84: 001~ | O84: s01_p19_2~ | P84: ~ | Q84: 2~ | R84: 2~ | S84: s01_p19_3~
A85: s01_p20_2 | B85: (1,20): ¿Quién financió (curso perfeccionamiento 2)? | C85: FALSE | D85: FALSE | E85: 1 | F85: 1 | G85: 0 | H85: 1~2~3~4~5~ | I85: YO MISMO/A~LA ESCUELA~OPCIÓN 3~OPCIÓN 4~OPCIÓN 5~ | J85: 1.Director~ | K85: 69~ | L85: 13~ | M85: 1~
A86: s01_p19_3 | B86: (1,19): ¿Asistió a (curso perfeccionamiento 3)? | C86: FALSE | D86: FALSE | E86: 1 | F86: 1 | G86: 0 | H86: 1~2~ | I86: SI~NO~ | J86: 1.Director~ | K86: 70~ | L86: 9~ | M86: 1~ | N86: 001~ | O86: s01_p19_3~ | P86: ~ | Q86: 2~ | R86: 2~ | S86: s01_p19_4~
A87: s01_p20_3 | B87: (1,20): ¿Quién financió (curso perfeccionamiento 3)? | C87: FALSE | D87: FALSE | E87: 1 | F87: 1 | G87: 0 | H87: 1~2~3~4~5~ | I87: YO MISMO/A~LA ESCUELA~OPCIÓN 3~OPCIÓN 4~OPCIÓN 5~ | J87: 1.Director~ | K87: 70~ | L87: 13~ | M87: 1~
A88: s01_p19_4 | B88: (1,19): ¿Asistió a (curso perfeccionamiento 4)? | C88: FALSE | D88: FALSE | E88: 1 | F88: 1 | G88: 0 | H88: 1~2~ | I88: SI~NO~ | J88: 1.Director~ | K88: 71~ | L88: 9~ | M88: 1~ | N88: 001~ | O88: s01_p19_4~ | P88: ~ | Q88: 2~ | R88: 2~ | S88: s01_p19_5~
A89: s01_p20_4 | B89: (1,20): ¿Quién financió (curso perfeccionamiento 4)? | C89: FALSE | D89: FALSE | E89: 1 | F89: 1 | G89: 0 | H89: 1~2~3~4~5~ | I89: YO MISMO/A~LA ESCUELA~OPCIÓN 3~OPCIÓN 4~OPCIÓN 5~ | J89: 1.Director~ | K89: 71~ | L89: 13~ | M89: 1~
A90: s01_p19_5 | B90: (1,19): ¿Asistió a (curso perfeccionamiento 5)? | C90: FALSE | D90: FALSE | E90: 1 | F90: 1 | G90: 0 | H90: 1~2~ | I90: SI~NO~ | J90: 1.Director~ | K90: 72~ | L90: 9~ | M90: 1~ | N90: 001~ | O90: s01_p19_5~ | P90: ~ | Q90: 2~ | R90: 2~ | S90: s01_p19_6~
A91: s01_p20_5 | B91: (1,20): ¿Quién financió (curso perfeccionamiento 5)? | C91: FALSE | D91: FALSE | E91: 1 | F91: 1 | G91: 0 | H91: 1~2~3~4~5~ | I91: YO MISMO/A~LA ESCUELA~OPCIÓN 3~OPCIÓN 4~OPCIÓN 5~ | J91: 1.Director~ | K91: 72~ | L91: 13~ | M91: 1~
A92: s01_p19_6 | B92: (1,19): ¿Asistió a (curso perfeccionamiento 6)? | C92: FALSE | D92: FALSE | E92: 1 | F92: 1 | G92: 0 | H92: 1~2~ | I92: SI~NO~ | J92: 1.Director~ | K92: 73~ | L92: 9~ | M92: 1~ | N92: 001~ | O92: s01_p19_6~ | P92: ~ | Q92: 2~ | R92: 2~ | S92: s01_p19_7~
A93: s01_p20_6 | B93: (1,20): ¿Quién financió (curso perfeccionamiento 6)? | C93: FALSE | D93: FALSE | E93: 1 | F93: 1 | G93: 0 | H93: 1~2~3~4~5~ | I93: YO MISMO/A~LA ESCUELA~OPCIÓN 3~OPCIÓN 4~OPCIÓN 5~ | J93: 1.Director~ | K93: 73~ | L93: 13~ | M93: 1~
A94: s01_p19_7 | B94: (1,19): ¿Asistió a (curso perfeccionamiento 7)? | C94: FALSE | D94: FALSE | E94: 1 | F94: 1 | G94: 0 | H94: 1~2~ | I94: SI~NO~ | J94: 1.Director~ | K94: 74~ | L94: 9~ | M94: 1~ | N94: 001~ | O94: s01_p19_7~ | P94: ~ | Q94: 2~ | R94: 2~ | S94: s01_p21_a~
A95: s01_p20_7 | B95: (1,20): ¿Quién financió (curso perfeccionamiento 7)? | C95: FALSE | D95: FALSE | E95: 1 | F95: 1 | G95: 0 | H95: 1~2~3~4~5~ | I95: YO MISMO/A~LA ESCUELA~OPCIÓN 3~OPCIÓN 4~OPCIÓN 5~ | J95: 1.Director~ | K95: 74~ | L95: 13~ | M95: 1~
A96: s01_p21_a | B96: (1,21): Salario como Director en efectivo | C96: FALSE | D96: FALSE | E96: 0 | F96: 5 | G96: 0 | H96: 0~ | I96: 99999~ | J96: 1.Director~ | K96: 47~ | L96: 23~ | M96: 1~
A97: s01_p21_b | B97: (1,21): Salario como Director en comida | C97: FALSE | D97: FALSE | E97: 0 | F97: 5 | G97: 0 | H97: 0~ | I97: 99999~ | J97: 1.Director~ | K97: 48~ | L97: 23~ | M97: 1~
A98: s01_p21_c | B98: (1,21): Salario como Director en vivienda | C98: FALSE | D98: FALSE | E98: 0 | F98: 5 | G98: 0 | H98: 0~ | I98: 99999~ | J98: 1.Director~ | K98: 49~ | L98: 23~ | M98: 1~
A99: s01_p21_d | B99: (1,21): Salario como Director en transporte | C99: FALSE | D99: FALSE | E99: 0 | F99: 5 | G99: 0 | H99: 0~ | I99: 99999~ | J99: 1.Director~ | K99: 47~ | L99: 31~ | M99: 1~
A100: s01_p21_e | B100: (1,21): Salario como Director en otros | C100: FALSE | D100: FALSE | E100: 0 | F100: 5 | G100: 0 | H100: 0~ | I100: 99999~ | J100: 1.Director~ | K100: 48~ | L100: 31~ | M100: 1~
A101: s01_p21_f | B101: (1,21): Salario como Director en total | C101: FALSE | D101: FALSE | E101: 0 | F101: 6 | G101: 0 | H101: 0~ | I101: 500000~ | J101: 1.Director~ | K101: 49~ | L101: 31~ | M101: 1~
A102: s01_p22 | B102: (1,22): ¿Tiene otro trabajo? | C102: FALSE | D102: FALSE | E102: 1 | F102: 1 | G102: 0 | H102: 1~2~ | I102: SI~NO~ | J102: 1.Director~ | K102: 54~ | L102: 32~ | M102: 1~ | N102: 001~ | O102: s01_p22~ | P102: ~ | Q102: 2~ | R102: 2~ | S102: s02_p01~
A103: s01_p23 | B103: (1,23): Categoría que describe el otro trabajo | C103: FALSE | D103: FALSE | E103: 1 | F103: 1 | G103: 0 | H103: 1~2~3~4~5~ | I103: AGRICULTURA~POR CUENTA PROPIA~OPCIÓN 3~OPCIÓN 4~OTRO~ | J103: 1.Director~ | K103: 58~ | L103: 32~ | M103: 1~
A104: s01_p24 | B104: (1,24): Salario del último año por otro trabajo | C104: FALSE | D104: FALSE | E104: 0 | F104: 5 | G104: 0 | H104: 0~ | I104: 99999~ | J104: 1.Director~ | K104: 66~ | L104: 30~ | M104: 1~
A105: s01_p25 | B105: (1,25): ¿Usted nació en ...? | C105: FALSE | D105: FALSE | E105: 1 | F105: 1 | G105: 0 | H105: 1~2~3~4~5~ | I105: ¿la misma {Localidad}?~¿el mismo {Municilio}?~¿la misma {Provincia}?~¿la misma {Región/Estado}?~¿otro país?~ | J105: 1.Director~ | K105: 69~ | L105: 32~ | M105: 1~
A106: s02_p01 | B106: (2,01): Tipo de establecimieto | C106: FALSE | D106: FALSE | E106: 1 | F106: 1 | G106: 0 | H106: 1~2~3~ | I106: Es público?~Es privado religioso?~Es privado laico?~ | J106: 2.Escuela~ | K106: 4~ | L106: 15~ | M106: 1~
A107: s02_p02 | B107: (2,02): Religión que se enseña | C107: FALSE | D107: FALSE | E107: 1 | F107: 1 | G107: 0 | H107: 1~2~3~4~5~6~7~ | I107: NINGUNA~CATÓLICA~JUDÍA~PROTESTANTE~CRISTIANA~OPCIÓN 6~OPCIÓN 7~ | J107: 2.Escuela~ | K107: 10~ | L107: 15~ | M107: 1~
A108: s02_p03 | B108: (2,03): Nivel de gobierno de la administración | C108: FALSE | D108: FALSE | E108: 1 | F108: 1 | G108: 0 | H108: 1~2~3~4~5~6~7~8~ | I108: NIVEL CENTRAL~NIVEL REGIONAL/ESTATAL~NIVEL PROVINCIAL~NIVEL MUNICIPAL~IGLESIA~ONG~COMUNIDAD~OPCIÓN 8~ | J108: 2.Escuela~ | K108: 19~ | L108: 15~ | M108: 1~
A109: s02_p04 | B109: (2,04): Año de funcionamiento | C109: FALSE | D109: FALSE | E109: 0 | F109: 4 | G109: 0 | H109: 1950~ | I109: 2012~ | J109: 2.Escuela~ | K109: 32~ | L109: 15~ | M109: 1~
A110: s02_p05 | B110: (2,05): ¿Tienen acreditación del ministerio? | C110: FALSE | D110: FALSE | E110: 1 | F110: 1 | G110: 0 | H110: 1~2~ | I110: SI~NO~ | J110: 2.Escuela~ | K110: 36~ | L110: 15~ | M110: 1~
A111: s02_p06 | B111: (2,06): ¿Usa el establecimiento para otros fines? | C111: FALSE | D111: FALSE | E111: 1 | F111: 1 | G111: 0 | H111: 1~2~ | I111: SI~NO~ | J111: 2.Escuela~ | K111: 4~ | L111: 33~ | M111: 1~
A112: s02_p07 | B112: (2,06): ¿Hay salas para alumnos especiales? | C112: FALSE | D112: FALSE | E112: 1 | F112: 1 | G112: 0 | H112: 1~2~ | I112: SI~NO~ | J112: 2.Escuela~ | K112: 8~ | L112: 33~ | M112: 1~
A113: s02_p08 | B113: (2,08): ¿Cuántas salas especiales hay? | C113: FALSE | D113: FALSE | E113: 0 | F113: 1 | G113: 0 | H113: 1~ | I113: 9~ | J113: 2.Escuela~ | K113: 12~ | L113: 33~ | M113: 1~
A114: s02_p09 | B114: (2,09): ¿Cuentan con educación pre escolar? | C114: FALSE | D114: FALSE | E114: 1 | F114: 1 | G114: 0 | H114: 1~2~ | I114: SI~NO~ | J114: 2.Escuela~ | K114: 14~ | L114: 33~ | M114: 1~
A115: s02_p10_a_d_h | B115: (2,10): Horario de apertura (mañana, horas) | C115: FALSE | D115: FALSE | E115: 0 | F115: 2 | G115: 0 | H115: 6~ | I115: 23~ | J115: 2.Escuela~ | K115: 19~ | L115: 26~ | M115: 1~
A116: s02_p10_a_d_m | B116: (2,10): Horario de apertura (mañana, minutos) | C116: FALSE | D116: FALSE | E116: 0 | F116: 2 | G116: 0 | H116: 0~ | I116: 59~ | J116: 2.Escuela~ | K116: 19~ | L116: 27~ | M116: 1~
A117: s02_p10_a_h_h | B117: (2,10): Horario de cierre (mañana, horas) | C117: FALSE | D117: FALSE | E117: 0 | F117: 2 | G117: 0 | H117: 6~ | I117: 23~ | J117: 2.Escuela~ | K117: 19~ | L117: 32~ | M117: 1~
A118: s02_p10_a_h_m | B118: (2,10): Horario de cierre (mañana, minutos) | C118: FALSE | D118: FALSE | E118: 0 | F118: 2 | G118: 0 | H118: 0~ | I118: 59~ | J118: 2.Escuela~ | K118: 19~ | L118: 33~ | M118: 1~
A119: s02_p10_b_d_h | B119: (2,10): Horario de apertura (tarde, horas) | C119: FALSE | D119: FALSE | E119: 0 | F119: 2 | G119: 0 | H119: 6~ | I119: 23~ | J119: 2.Escuela~ | K119: 21~ | L119: 26~ | M119: 1~
A120: s02_p10_b_d_m | B120: (2,10): Horario de apertura (tarde, minutos) | C120: FALSE | D120: FALSE | E120: 0 | F120: 2 | G120: 0 | H120: 0~ | I120: 59~ | J120: 2.Escuela~ | K120: 21~ | L120: 27~ | M120: 1~
A121: s02_p10_b_h_h | B121: (2,10): Horario de cierre (tarde, horas) | C121: FALSE | D121: FALSE | E121: 0 | F121: 2 | G121: 0 | H121: 6~ | I121: 23~ | J121: 2.Escuela~ | K121: 21~ | L121: 32~ | M121: 1~
A122: s02_p10_b_h_m | B122: (2,10): Horario de cierre (tarde, minutos) | C122: FALSE | D122: FALSE | E122: 0 | F122: 2 | G122: 0 | H122: 0~ | I122: 59~ | J122: 2.Escuela~ | K122: 21~ | L122: 33~ | M122: 1~
A123: s02_p10_c_d_h | B123: (2,10): Horario de apertura (noche, horas) | C123: FALSE | D123: FALSE | E123: 0 | F123: 2 | G123: 0 | H123: 6~ | I123: 23~ | J123: 2.Escuela~ | K123: 23~ | L123: 26~ | M123: 1~
A124: s02_p10_c_d_m | B124: (2,10): Horario de apertura (noche, minutos) | C124: FALSE | D124: FALSE | E124: 0 | F124: 2 | G124: 0 | H124: 0~ | I124: 59~ | J124: 2.Escuela~ | K124: 23~ | L124: 27~ | M124: 1~
A125: s02_p10_c_h_h | B125: (2,10): Horario de cierre (noche, horas) | C125: FALSE | D125: FALSE | E125: 0 | F125: 2 | G125: 0 | H125: 6~ | I125: 23~ | J125: 2.Escuela~ | K125: 23~ | L125: 32~ | M125: 1~
A126: s02_p10_c_h_m | B126: (2,10): Horario de cierre (noche, minutos) | C126: FALSE | D126: FALSE | E126: 0 | F126: 2 | G126: 0 | H126: 0~ | I126: 59~ | J126: 2.Escuela~ | K126: 23~ | L126: 33~ | M126: 1~
A127: s02_p11 | B127: (2,11): ¿Aceptan a todos los postulantes? | C127: FALSE | D127: FALSE | E127: 1 | F127: 1 | G127: 0 | H127: 1~2~ | I127: SI~NO~ | J127: 2.Escuela~ | K127: 27~ | L127: 33~ | M127: 1~
A128: s02_p12_1 | B128: (2,12): Criterio más importante para admisión 1 | C128: FALSE | D128: FALSE | E128: 1 | F128: 1 | G128: 0 | H128: 1~2~3~4~5~6~7~8~9~ | I128: RENDIMIENTO ESCOLAR PREVIO~TEST DE ADMISIÓN~LUGAR DE RESIDENCIA~ORDEN DE POSTULACIÓN~HERMANOS/AS EN EL ESTABLECIMIENTO~OPCIÓN 6~OPCIÓN 7~OPCIÓN 8~OTRO~ | J128: 2.Escuela~ | K128: 33~ | L128: 33~ | M128: 1~
A129: s02_p12_2 | B129: (2,12): Criterio más importante para admisión 2 | C129: FALSE | D129: FALSE | E129: 1 | F129: 1 | G129: 0 | H129: 1~2~3~4~5~6~7~8~9~ | I129: RENDIMIENTO ESCOLAR PREVIO~TEST DE ADMISIÓN~LUGAR DE RESIDENCIA~ORDEN DE POSTULACIÓN~HERMANOS/AS EN EL ESTABLECIMIENTO~OPCIÓN 6~OPCIÓN 7~OPCIÓN 8~OTRO~ | J129: 2.Escuela~ | K129: 35~ | L129: 33~ | M129: 1~
A130: s02_p12_3 | B130: (2,12): Criterio más importante para admisión 3 | C130: FALSE | D130: FALSE | E130: 1 | F130: 1 | G130: 0 | H130: 1~2~3~4~5~6~7~8~9~ | I130: RENDIMIENTO ESCOLAR PREVIO~TEST DE ADMISIÓN~LUGAR DE RESIDENCIA~ORDEN DE POSTULACIÓN~HERMANOS/AS EN EL ESTABLECIMIENTO~OPCIÓN 6~OPCIÓN 7~OPCIÓN 8~OTRO~ | J130: 2.Escuela~ | K130: 37~ | L130: 33~ | M130: 1~
A131: s02_p13 | B131: (2,13): Idioma usado en clases | C131: FALSE | D131: FALSE | E131: 1 | F131: 1 | G131: 0 | H131: 1~2~3~4~5~6~ | I131: CASTELLANO~OPCIÓN 2~OPCIÓN 3~OPCIÓN 4~OPCIÓN 5~OPCIÓN 6~ | J131: 2.Escuela~ | K131: 45~ | L131: 15~ | M131: 1~
A132: s02_p14 | B132: (2,14): ¿Hay alumnos que no entienden idioma? | C132: FALSE | D132: FALSE | E132: 1 | F132: 1 | G132: 0 | H132: 1~2~ | I132: SI~NO~ | J132: 2.Escuela~ | K132: 53~ | L132: 15~ | M132: 1~ | N132: 001~ | O132: s02_p14~ | P132: ~ | Q132: 2~ | R132: 2~ | S132: s02_p16~
A133: s02_p15 | B133: (2,14): Acción a alumno que no entiende idioma | C133: FALSE | D133: FALSE | E133: 1 | F133: 1 | G133: 0 | H133: 1~2~3~4~5~6~ | I133: SE LES ENVÍA A CLASES ESPECIALES DEL IDIOMA USADO EN LAS CLASES, EN ESTE ESTABLECIMIENTO~SE LES ENVÍA A CLASES ESPECIALES DEL IDIOMA USADO EN LAS CLASES, EN OTRO ESTABLECIMIENTO~LOS AGRUPAN Y ASIGNAN PROFESORES QUE LOS INSTRUYEN EN EL LENGUAJE QUE ENTIENDEN~OPCIÓN 4~OPCIÓN 5~NO HACEN NADA~ | J133: 2.Escuela~ | K133: 58~ | L133: 15~ | M133: 1~
A134: s02_p16 | B134: (2,16): ¿Ausentismo de maestros es problema? | C134: FALSE | D134: FALSE | E134: 1 | F134: 1 | G134: 0 | H134: 1~2~ | I134: SI~NO~ | J134: 2.Escuela~ | K134: 72~ | L134: 15~ | M134: 1~
A135: s02_p17_1 | B135: (2,17): Causa de ausentismo de maestros 1 | C135: FALSE | D135: FALSE | E135: 1 | F135: 2 | G135: 0 | H135: 01~02~03~04~05~06~07~08~09~10~ | I135: ENFERMEDAD~TIENEN OTROS TRABAJOS~CUIDADO DE FAMILIARES~EL TIEMPO ES MALO~EMBARAZO/PRE-POST NATAL~TRANSPORTE DIFICULTOSO~OPCIÓN 7~OPCIÓN 8~OPCIÓN 9~OTRO~ | J135: 2.Escuela~ | K135: 47~ | L135: 33~ | M135: 1~
A136: s2_p17_2 | B136: (2,17): Causa de ausentismo de maestros 2 | C136: FALSE | D136: FALSE | E136: 1 | F136: 2 | G136: 0 | H136: 01~02~03~04~05~06~07~08~09~10~ | I136: ENFERMEDAD~TIENEN OTROS TRABAJOS~CUIDADO DE FAMILIARES~EL TIEMPO ES MALO~EMBARAZO/PRE-POST NATAL~TRANSPORTE DIFICULTOSO~OPCIÓN 7~OPCIÓN 8~OPCIÓN 9~OTRO~ | J136: 2.Escuela~ | K136: 49~ | L136: 33~ | M136: 1~
A137: s02_p17_3 | B137: (2,17): Causa de ausentismo de maestros 3 | C137: FALSE | D137: FALSE | E137: 1 | F137: 2 | G137: 0 | H137: 01~02~03~04~05~06~07~08~09~10~ | I137: ENFERMEDAD~TIENEN OTROS TRABAJOS~CUIDADO DE FAMILIARES~EL TIEMPO ES MALO~EMBARAZO/PRE-POST NATAL~TRANSPORTE DIFICULTOSO~OPCIÓN 7~OPCIÓN 8~OPCIÓN 9~OTRO~ | J137: 2.Escuela~ | K137: 51~ | L137: 33~ | M137: 1~
A138: s02_p18_1 | B138: (2,18): ¿Qué hacen cuando maestro falta? 1 | C138: FALSE | D138: FALSE | E138: 1 | F138: 1 | G138: 0 | H138: 1~2~3~4~5~6~7~8~9~ | I138: OTRO MAESTRO LO REEMPLAZA~OTRO PERSONAL LO REEMPLAZA~USTED (EL/LA DIRECTORA/A) LO REEMPLAZA~LOS ALUMNOS/AS PERMANECEN SOLOS EN SUS SALAS~PIDEN A LOS ALUMNOS/AS IR A JUGAR/HACER DEPORTE~ENVÍAN A LOS ALUMNOS A SUS CASAS~OPCIÓN 7~OPCIÓN 8~OTRO~ | J138: 2.Escuela~ | K138: 58~ | L138: 33~ | M138: 1~
A139: s02_p18_2 | B139: (2,18): ¿Qué hacen cuando maestro falta? 2 | C139: FALSE | D139: FALSE | E139: 1 | F139: 1 | G139: 0 | H139: 1~2~3~4~5~6~7~8~9~ | I139: OTRO MAESTRO LO REEMPLAZA~OTRO PERSONAL LO REEMPLAZA~USTED (EL/LA DIRECTORA/A) LO REEMPLAZA~LOS ALUMNOS/AS PERMANECEN SOLOS EN SUS SALAS~PIDEN A LOS ALUMNOS/AS IR A JUGAR/HACER DEPORTE~ENVÍAN A LOS ALUMNOS A SUS CASAS~OPCIÓN 7~OPCIÓN 8~OTRO~ | J139: 2.Escuela~ | K139: 60~ | L139: 33~ | M139: 1~
A140: s02_p18_3 | B140: (2,18): ¿Qué hacen cuando maestro falta? 3 | C140: FALSE | D140: FALSE | E140: 1 | F140: 1 | G140: 0 | H140: 1~2~3~4~5~6~7~8~9~ | I140: OTRO MAESTRO LO REEMPLAZA~OTRO PERSONAL LO REEMPLAZA~USTED (EL/LA DIRECTORA/A) LO REEMPLAZA~LOS ALUMNOS/AS PERMANECEN SOLOS EN SUS SALAS~PIDEN A LOS ALUMNOS/AS IR A JUGAR/HACER DEPORTE~ENVÍAN A LOS ALUMNOS A SUS CASAS~OPCIÓN 7~OPCIÓN 8~OTRO~ | J140: 2.Escuela~ | K140: 62~ | L140: 33~ | M140: 1~
A141: s02_p19 | B141: (2,19): Frecuencia de reuniones director-maestro | C141: FALSE | D141: FALSE | E141: 1 | F141: 1 | G141: 0 | H141: 1~2~3~4~5~6~ | I141: UNA VEZ EN EL DÍA~UNA VEZ EN EL SEMANA~UNA VEZ EN EL MES~UNA VEZ EN EL SEMESTRE~UNA VEZ EN EL AÑO~NO SE REUNEN~ | J141: 2.Escuela~ | K141: 72~ | L141: 33~ | M141: 1~
A142: s02_p20 | B142: (2,20): ¿Exigen asistencia para promoción de alumno? | C142: FALSE | D142: FALSE | E142: 1 | F142: 1 | G142: 0 | H142: 1~2~ | I142: SI~NO~ | J142: 2.Escuela~ | K142: 83~ | L142: 15~ | M142: 1~
A143: s02_p21 | B143: (2,21): ¿Ausentismo de alumnos es problema? | C143: FALSE | D143: FALSE | E143: 1 | F143: 1 | G143: 0 | H143: 1~2~ | I143: SI~NO~ | J143: 2.Escuela~ | K143: 87~ | L143: 15~ | M143: 1~
A144: s02_p22_1 | B144: (2,22): Causas de ausentismo en alumnos 1 | C144: FALSE | D144: FALSE | E144: 1 | F144: 2 | G144: 0 | H144: 01~02~03~04~05~06~07~08~09~10~11~ | I144: ENFERMEDAD~TIENEN QUE AYUDAR EN SUS CASAS~TIENEN QUE TRABAJAR~CUIDADO DE FAMILIARES~EL TIEMPO ES MALO~TRANSPORTE DIFICULTOSO~NO QUIEREN IR A LA ESCUELA~OPCIÓN 8~OPCIÓN 9~OPCIÓN 10~OTRO~ | J144: 2.Escuela~ | K144: 92~ | L144: 15~ | M144: 1~
A145: s02_p22_2 | B145: (2,22): Causas de ausentismo en alumnos 2 | C145: FALSE | D145: FALSE | E145: 1 | F145: 2 | G145: 0 | H145: 01~02~03~04~05~06~07~08~09~10~11~ | I145: ENFERMEDAD~TIENEN QUE AYUDAR EN SUS CASAS~TIENEN QUE TRABAJAR~CUIDADO DE FAMILIARES~EL TIEMPO ES MALO~TRANSPORTE DIFICULTOSO~NO QUIEREN IR A LA ESCUELA~OPCIÓN 8~OPCIÓN 9~OPCIÓN 10~OTRO~ | J145: 2.Escuela~ | K145: 94~ | L145: 15~ | M145: 1~
A146: s02_p22_3 | B146: (2,22): Causas de ausentismo en alumnos 3 | C146: FALSE | D146: FALSE | E146: 1 | F146: 2 | G146: 0 | H146: 01~02~03~04~05~06~07~08~09~10~11~ | I146: ENFERMEDAD~TIENEN QUE AYUDAR EN SUS CASAS~TIENEN QUE TRABAJAR~CUIDADO DE FAMILIARES~EL TIEMPO ES MALO~TRANSPORTE DIFICULTOSO~NO QUIEREN IR A LA ESCUELA~OPCIÓN 8~OPCIÓN 9~OPCIÓN 10~OTRO~ | J146: 2.Escuela~ | K146: 96~ | L146: 15~ | M146: 1~
A147: s02_p23 | B147: (2,23): ¿Dan desayuno gratis a alumnos? | C147: FALSE | D147: FALSE | E147: 1 | F147: 1 | G147: 0 | H147: 1~2~ | I147: SI~NO~ | J147: 2.Escuela~ | K147: 83~ | L147: 33~ | M147: 1~
A148: s02_p24 | B148: (2,24): ¿Dan almuerzo gratis a alumnos? | C148: FALSE | D148: FALSE | E148: 1 | F148: 1 | G148: 0 | H148: 1~2~ | I148: SI~NO~ | J148: 2.Escuela~ | K148: 87~ | L148: 33~ | M148: 1~
A149: s02_p25 | B149: (2,25): ¿Existe una cantina para alumnos? | C149: FALSE | D149: FALSE | E149: 1 | F149: 1 | G149: 0 | H149: 1~2~ | I149: SI~NO~ | J149: 2.Escuela~ | K149: 91~ | L149: 33~ | M149: 1~
A150: s02_p26 | B150: (2,26): ¿Existe una cantina para maestros? | C150: FALSE | D150: FALSE | E150: 1 | F150: 1 | G150: 0 | H150: 1~2~ | I150: SI~NO~ | J150: 2.Escuela~ | K150: 95~ | L150: 33~ | M150: 1~
A151: s06_p01 | B151: (6,01): Nombre del maestro | C151: FALSE | D151: FALSE | E151: 2 | F151: 50 | G151: 0 | J151: 6.Maestro_1~ | K151: 3~ | L151: 7~ | M151: 1~
A152: s06_p02 | B152: (6,02): Código de identificación del maestro | C152: FALSE | D152: FALSE | E152: 0 | F152: 2 | G152: 0 | H152: 0~ | I152: 99~ | J152: 6.Maestro_1~ | K152: 3~ | L152: 31~ | M152: 1~
A153: s06_p03 | B153: (6,03): Estado civil del maestro | C153: FALSE | D153: FALSE | E153: 1 | F153: 1 | G153: 0 | H153: 1~2~3~4~5~ | I153: SOLTERO/A~CASADO/A~CONVIVIENTE O CONCUBINO(A)~DIVORCIADO/A O SEPARADO/A~VIUDO/A~ | J153: 6.Maestro_1~ | K153: 7~ | L153: 14~ | M153: 1~
A154: s06_p04 | B154: (6,04): ¿Dónde nació el maestro? | C154: FALSE | D154: FALSE | E154: 1 | F154: 1 | G154: 0 | H154: 1~2~3~4~5~ | I154: ¿la misma {Localidad}?~¿el mismo {Municilio}?~¿la misma {Provincia}?~¿la misma {Región/Estado}?~¿otro país?~ | J154: 6.Maestro_1~ | K154: 13~ | L154: 14~ | M154: 1~
A155: s06_p05_1 | B155: (6,05): ¿Da clases a primer grado? | C155: FALSE | D155: FALSE | E155: 1 | F155: 1 | G155: 0 | H155: 1~2~ | I155: SI~NO~ | J155: 6.Maestro_1~ | K155: 25~ | L155: 6~ | M155: 1~
A156: s06_p05_2 | B156: (6,05): ¿Da clases a segundo grado? | C156: FALSE | D156: FALSE | E156: 1 | F156: 1 | G156: 0 | H156: 1~2~ | I156: SI~NO~ | J156: 6.Maestro_1~ | K156: 26~ | L156: 6~ | M156: 1~
A157: s06_p05_3 | B157: (6,05): ¿Da clases a tercer grado? | C157: FALSE | D157: FALSE | E157: 1 | F157: 1 | G157: 0 | H157: 1~2~ | I157: SI~NO~ | J157: 6.Maestro_1~ | K157: 27~ | L157: 6~ | M157: 1~
A158: s06_p05_4 | B158: (6,05): ¿Da clases a cuarto grado? | C158: FALSE | D158: FALSE | E158: 1 | F158: 1 | G158: 0 | H158: 1~2~ | I158: SI~NO~ | J158: 6.Maestro_1~ | K158: 28~ | L158: 6~ | M158: 1~
A159: s06_p05_5 | B159: (6,05): ¿Da clases a (otro grado 5)? | C159: FALSE | D159: FALSE | E159: 1 | F159: 1 | G159: 0 | H159: 1~2~ | I159: SI~NO~ | J159: 6.Maestro_1~ | K159: 25~ | L159: 11~ | M159: 1~
A160: s06_p05_6 | B160: (6,05): ¿Da clases a (otro grado 6)? | C160: FALSE | D160: FALSE | E160: 1 | F160: 1 | G160: 0 | H160: 1~2~ | I160: SI~NO~ | J160: 6.Maestro_1~ | K160: 26~ | L160: 11~ | M160: 1~
A161: s06_p05_7 | B161: (6,05): ¿Da clases a (otro grado 7)? | C161: FALSE | D161: FALSE | E161: 1 | F161: 1 | G161: 0 | H161: 1~2~ | I161: SI~NO~ | J161: 6.Maestro_1~ | K161: 27~ | L161: 11~ | M161: 1~
A162: s06_p05_8 | B162: (6,05): ¿Da clases a (otro grado 8)? | C162: FALSE | D162: FALSE | E162: 1 | F162: 1 | G162: 0 | H162: 1~2~ | I162: SI~NO~ | J162: 6.Maestro_1~ | K162: 28~ | L162: 11~ | M162: 1~
A163: s06_p05_9 | B163: (6,05): ¿Da clases a (otro grado 9)? | C163: FALSE | D163: FALSE | E163: 1 | F163: 1 | G163: 0 | H163: 1~2~ | I163: SI~NO~ | J163: 6.Maestro_1~ | K163: 25~ | L163: 16~ | M163: 1~
A164: s06_p05_10 | B164: (6,05): ¿Da clases a (otro grado 10)? | C164: FALSE | D164: FALSE | E164: 1 | F164: 1 | G164: 0 | H164: 1~2~ | I164: SI~NO~ | J164: 6.Maestro_1~ | K164: 26~ | L164: 16~ | M164: 1~
A165: s06_p05_11 | B165: (6,05): ¿Da clases a (otro grado 11)? | C165: FALSE | D165: FALSE | E165: 1 | F165: 1 | G165: 0 | H165: 1~2~ | I165: SI~NO~ | J165: 6.Maestro_1~ | K165: 27~ | L165: 16~ | M165: 1~
A166: s06_p05_12 | B166: (6,05): ¿Da clases a (otro grado 12)? | C166: FALSE | D166: FALSE | E166: 1 | F166: 1 | G166: 0 | H166: 1~2~ | I166: SI~NO~ | J166: 6.Maestro_1~ | K166: 28~ | L166: 16~ | M166: 1~
A167: s06_p06_1 | B167: (6,06): ¿Enseña matemáticas? | C167: FALSE | D167: FALSE | E167: 1 | F167: 1 | G167: 0 | H167: 1~2~ | I167: SI~NO~ | J167: 6.Maestro_1~ | K167: 10~ | L167: 26~ | M167: 1~
A168: s06_p06_2 | B168: (6,06): ¿Enseña castellano? | C168: FALSE | D168: FALSE | E168: 1 | F168: 1 | G168: 0 | H168: 1~2~ | I168: SI~NO~ | J168: 6.Maestro_1~ | K168: 11~ | L168: 26~ | M168: 1~
A169: s06_p06_3 | B169: (6,06): ¿Enseña manualidades? | C169: FALSE | D169: FALSE | E169: 1 | F169: 1 | G169: 0 | H169: 1~2~ | I169: SI~NO~ | J169: 6.Maestro_1~ | K169: 12~ | L169: 26~ | M169: 1~
A170: s06_p06_4 | B170: (6,06): ¿Enseña educación física? | C170: FALSE | D170: FALSE | E170: 1 | F170: 1 | G170: 0 | H170: 1~2~ | I170: SI~NO~ | J170: 6.Maestro_1~ | K170: 13~ | L170: 26~ | M170: 1~
A171: s06_p06_5 | B171: (6,06): ¿Enseña música? | C171: FALSE | D171: FALSE | E171: 1 | F171: 1 | G171: 0 | H171: 1~2~ | I171: SI~NO~ | J171: 6.Maestro_1~ | K171: 14~ | L171: 26~ | M171: 1~
A172: s06_p06_6 | B172: (6,06): ¿Enseña (otra asignatura 1)? | C172: FALSE | D172: FALSE | E172: 1 | F172: 1 | G172: 0 | H172: 1~2~ | I172: SI~NO~ | J172: 6.Maestro_1~ | K172: 15~ | L172: 26~ | M172: 1~
A173: s06_p06_7 | B173: (6,06): ¿Enseña (otra asignatura 2)? | C173: FALSE | D173: FALSE | E173: 1 | F173: 1 | G173: 0 | H173: 1~2~ | I173: SI~NO~ | J173: 6.Maestro_1~ | K173: 16~ | L173: 26~ | M173: 1~
A174: s06_p06_8 | B174: (6,06): ¿Enseña (otra asignatura 3)? | C174: FALSE | D174: FALSE | E174: 1 | F174: 1 | G174: 0 | H174: 1~2~ | I174: SI~NO~ | J174: 6.Maestro_1~ | K174: 17~ | L174: 26~ | M174: 1~
A175: s06_p06_9 | B175: (6,06): ¿Enseña ciencias? | C175: FALSE | D175: FALSE | E175: 1 | F175: 1 | G175: 0 | H175: 1~2~ | I175: SI~NO~ | J175: 6.Maestro_1~ | K175: 10~ | L175: 33~ | M175: 1~
A176: s06_p06_10 | B176: (6,06): ¿Enseña física? | C176: FALSE | D176: FALSE | E176: 1 | F176: 1 | G176: 0 | H176: 1~2~ | I176: SI~NO~ | J176: 6.Maestro_1~ | K176: 11~ | L176: 33~ | M176: 1~
A177: s06_p06_11 | B177: (6,06): ¿Enseña filosofía? | C177: FALSE | D177: FALSE | E177: 1 | F177: 1 | G177: 0 | H177: 1~2~ | I177: SI~NO~ | J177: 6.Maestro_1~ | K177: 12~ | L177: 33~ | M177: 1~
A178: s06_p06_12 | B178: (6,06): ¿Enseña inglés? | C178: FALSE | D178: FALSE | E178: 1 | F178: 1 | G178: 0 | H178: 1~2~ | I178: SI~NO~ | J178: 6.Maestro_1~ | K178: 13~ | L178: 33~ | M178: 1~
A179: s06_p06_13 | B179: (6,06): ¿Enseña otro idioma extranjero? | C179: FALSE | D179: FALSE | E179: 1 | F179: 1 | G179: 0 | H179: 1~2~ | I179: SI~NO~ | J179: 6.Maestro_1~ | K179: 14~ | L179: 33~ | M179: 1~
A180: s06_p06_14 | B180: (6,06): ¿Enseña (otra asignatura 4)? | C180: FALSE | D180: FALSE | E180: 1 | F180: 1 | G180: 0 | H180: 1~2~ | I180: SI~NO~ | J180: 6.Maestro_1~ | K180: 15~ | L180: 33~ | M180: 1~
A181: s06_p06_15 | B181: (6,06): ¿Enseña (otra asignatura 5)? | C181: FALSE | D181: FALSE | E181: 1 | F181: 1 | G181: 0 | H181: 1~2~ | I181: SI~NO~ | J181: 6.Maestro_1~ | K181: 16~ | L181: 33~ | M181: 1~
A182: s06_p06_16 | B182: (6,06): ¿Enseña (otra asignatura 6)? | C182: FALSE | D182: FALSE | E182: 1 | F182: 1 | G182: 0 | H182: 1~2~ | I182: SI~NO~ | J182: 6.Maestro_1~ | K182: 17~ | L182: 33~ | M182: 1~
A183: s06_p07 | B183: (6,07): Idioma en el que da sus clases | C183: FALSE | D183: FALSE | E183: 1 | F183: 1 | G183: 0 | H183: 1~2~3~4~5~6~ | I183: CASTELLANO~OPCIÓN 2~OPCIÓN 3~OPCIÓN 4~OPCIÓN 5~OPCIÓN 6~ | J183: 6.Maestro_1~ | K183: 22~ | L183: 32~ | M183: 1~
A184: s06_p08_a | B184: (6,08): Horas semanales que enseña en la sala | C184: FALSE | D184: FALSE | E184: 0 | F184: 2 | G184: 0 | H184: 0~ | I184: 60~ | J184: 6.Maestro_1~ | K184: 31~ | L184: 32~ | M184: 1~
A185: s06_p08_b | B185: (6,08): Horas semanales que prepara clases | C185: FALSE | D185: FALSE | E185: 0 | F185: 2 | G185: 0 | H185: 0~ | I185: 60~ | J185: 6.Maestro_1~ | K185: 32~ | L185: 32~ | M185: 1~
A186: s06_p08_c | B186: (6,08): Horas semanales que corrige tests | C186: FALSE | D186: FALSE | E186: 0 | F186: 2 | G186: 0 | H186: 0~ | I186: 60~ | J186: 6.Maestro_1~ | K186: 33~ | L186: 32~ | M186: 1~
A187: s06_p08_d | B187: (6,08): Horas semanales que realiza tareas adm. | C187: FALSE | D187: FALSE | E187: 0 | F187: 2 | G187: 0 | H187: 0~ | I187: 60~ | J187: 6.Maestro_1~ | K187: 34~ | L187: 32~ | M187: 1~
A188: s06_p08_e | B188: (6,08): Horas semanales que realiza otras tareas | C188: FALSE | D188: FALSE | E188: 0 | F188: 2 | G188: 0 | H188: 0~ | I188: 60~ | J188: 6.Maestro_1~ | K188: 35~ | L188: 32~ | M188: 1~
A189: s06_p09_n | B189: (6,09): Más alto nivel aprobado | C189: FALSE | D189: FALSE | E189: 1 | F189: 1 | G189: 0 | H189: 1~2~3~4~5~6~7~8~ | I189: PRIMARIA~SECUNDARIA~BACHILLERATO~TERCIARIO TÉCNICO~TERCIARIO COMERCIAL~UNIVERSITARIA~MAESTRIA/DOCTORADO~OTRO (ESPECIFIQUE)~ | J189: 6.Maestro_1~ | K189: 44~ | L189: 14~ | M189: 1~
A190: s06_p09_c | B190: (6,09): Más alto curso aprobado | C190: FALSE | D190: FALSE | E190: 0 | F190: 1 | G190: 0 | H190: 1~ | I190: 7~ | J190: 6.Maestro_1~ | K190: 46~ | L190: 14~ | M190: 1~ | N190: 001~ | O190: s06_p09_n~ | P190: ~ | Q190: 1~ | R190: 7~ | S190: s06_p10~
A191: s06_p09_otra | B191: (6,09): Otra | C191: FALSE | D191: FALSE | E191: 2 | F191: 50 | G191: 0 | J191: 6.Maestro_1~ | K191: 50~ | L191: 7~ | M191: 1~
A192: s06_p10 | B192: (6,10): Año de aprobación último nivel | C192: FALSE | D192: FALSE | E192: 0 | F192: 4 | G192: 0 | H192: 1960~ | I192: 2012~ | J192: 6.Maestro_1~ | K192: 53~ | L192: 14~ | M192: 1~
A193: s06_p11 | B193: (6,11): ¿Quién lo nombró maestro? | C193: FALSE | D193: FALSE | E193: 1 | F193: 1 | G193: 0 | H193: 1~2~3~4~5~6~7~8~9~ | I193: EL/LA maestroA/A~MINISTERIO DE EDUCACIÓN (CENTRAL)~SEDE REGIONAL/ESTATAL DEL MINISTERIO DE EDUCACIÓN~LA COMUNIDAD DE PADRES~EL LIDER COMUNITARIO~EL DUEÑO/A DEL ESTABLECIMIENTO~OPCIÓN 7~OPCIÓN 8~OTRO~ | J193: 6.Maestro_1~ | K193: 55~ | L193: 14~ | M193: 1~
A194: s06_p12 | B194: (6,12): ¿Tiene título de maestro? | C194: FALSE | D194: FALSE | E194: 1 | F194: 1 | G194: 0 | H194: 1~2~ | I194: SI~NO~ | J194: 6.Maestro_1~ | K194: 67~ | L194: 14~ | M194: 1~ | N194: 001~ | O194: s06_p12~ | P194: ~ | Q194: 2~ | R194: 2~ | S194: s06_p15~
A195: s06_p13 | B195: (6,13): ¿Su título es de un área específica? | C195: FALSE | D195: FALSE | E195: 1 | F195: 1 | G195: 0 | H195: 1~2~ | I195: SI~NO~ | J195: 6.Maestro_1~ | K195: 71~ | L195: 14~ | M195: 1~ | N195: 001~ | O195: s06_p13~ | P195: ~ | Q195: 2~ | R195: 2~ | S195: s06_p20~
A196: s06_p14_1 | B196: (6,14): Área en donde está titulado 1 | C196: FALSE | D196: FALSE | E196: 1 | F196: 2 | G196: 0 | H196: 01~02~03~04~05~06~07~08~09~10~11~12~13~14~ | I196: MATEMÁTICAS~CASTELLANO~CIENCIAS~FÍSICA~FILOSOFÍA~MANUALIDADES~EDUCACIÓN FÍSICA~MÚSICA~INGLÉS~OPCIÓN 10~OPCIÓN 11~OPCIÓN 12~OPCIÓN 13~OTRO~ | J196: 6.Maestro_1~ | K196: 41~ | L196: 32~ | M196: 1~
A197: s06_p14_2 | B197: (6,14): Área en donde está titulado 2 | C197: FALSE | D197: FALSE | E197: 1 | F197: 2 | G197: 0 | H197: 01~02~03~04~05~06~07~08~09~10~11~12~13~14~ | I197: MATEMÁTICAS~CASTELLANO~CIENCIAS~FÍSICA~FILOSOFÍA~MANUALIDADES~EDUCACIÓN FÍSICA~MÚSICA~INGLÉS~OPCIÓN 10~OPCIÓN 11~OPCIÓN 12~OPCIÓN 13~OTRO~ | J197: 6.Maestro_1~ | K197: 43~ | L197: 32~ | M197: 1~
A198: s06_p15 | B198: (6,15): ¿Asistió a curso de perfeccionamiento? | C198: FALSE | D198: FALSE | E198: 1 | F198: 1 | G198: 0 | H198: 1~2~ | I198: SI~NO~ | J198: 6.Maestro_1~ | K198: 50~ | L198: 32~ | M198: 1~
A199: s06_p16_1 | B199: (6,16): ¿Asistió a pedagogía el último año? | C199: FALSE | D199: FALSE | E199: 1 | F199: 1 | G199: 0 | H199: 1~2~ | I199: SI~NO~ | J199: 6.Maestro_1~ | K199: 64~ | L199: 27~ | M199: 1~ | N199: 001~ | O199: s06_p16_1~ | P199: ~ | Q199: 2~ | R199: 2~ | S199: s06_p16_2~
A200: s06_p17_1 | B200: (6,17): ¿Quién financió pedagogía? | C200: FALSE | D200: FALSE | E200: 1 | F200: 1 | G200: 0 | H200: 1~2~ | I200: YO MISMO/A~LA ESCUELA~ | J200: 6.Maestro_1~ | K200: 64~ | L200: 31~ | M200: 1~
... 127 more rows

Sheet Dictionary_AUX (hidden)
C1: 4 | F1: c:\PeI_PED\Educ\Datos\ | G1: 1 | H1: "E" & id_escuela
A2: 1 | B2: 001: Escuela | C2: 284 | D2: 0 | E2: 1
A3: id_escuela | B3: ID Escuela | C3: FALSE | D3: FALSE | E3: 0 | F3: 4 | G3: 0 | H3: 1~ | I3: 300~ | J3: Portada~ | K3: 5~ | L3: 29~ | M3: 1~
A4: s00_p01 | B4: Nombre del Establecimiento | C4: FALSE | D4: FALSE | E4: 2 | F4: 50 | G4: 0 | J4: Portada~ | K4: 5~ | L4: 11~ | M4: 1~
A5: s00_p02 | B5: Región/Estado | C5: FALSE | D5: FALSE | E5: 0 | F5: 3 | G5: 0 | H5: 0~ | I5: 999~ | J5: Portada~ | K5: 9~ | L5: 16~ | M5: 1~
A6: s00_p03 | B6: Provincia | C6: FALSE | D6: FALSE | E6: 0 | F6: 3 | G6: 0 | H6: 0~ | I6: 999~ | J6: Portada~ | K6: 11~ | L6: 16~ | M6: 1~
A7: s00_p04 | B7: Municipio | C7: FALSE | D7: FALSE | E7: 0 | F7: 3 | G7: 0 | H7: 0~ | I7: 999~ | J7: Portada~ | K7: 13~ | L7: 16~ | M7: 1~
A8: s00_p05 | B8: Localidad | C8: FALSE | D8: FALSE | E8: 0 | F8: 3 | G8: 0 | H8: 0~ | I8: 999~ | J8: Portada~ | K8: 15~ | L8: 16~ | M8: 1~
A9: s00_p06 | B9: Zona/Barrio | C9: FALSE | D9: FALSE | E9: 2 | F9: 50 | G9: 0 | J9: Portada~ | K9: 17~ | L9: 7~ | M9: 1~
A10: s00_p07 | B10: Calle | C10: FALSE | D10: FALSE | E10: 2 | F10: 50 | G10: 0 | J10: Portada~ | K10: 19~ | L10: 7~ | M10: 1~
A11: s00_p08 | B11: Número | C11: FALSE | D11: FALSE | E11: 2 | F11: 50 | G11: 0 | J11: Portada~ | K11: 21~ | L11: 7~ | M11: 1~
A12: s00_p09 | B12: Otras Referencias | C12: FALSE | D12: FALSE | E12: 2 | F12: 50 | G12: 0 | J12: Portada~ | K12: 23~ | L12: 8~ | M12: 1~
A13: s00_p12 | B13: Tipo | C13: FALSE | D13: FALSE | E13: 1 | F13: 1 | G13: 0 | H13: 1~2~3~4~5~6~ | I13: PRIMARIA~SECUNDARIA~AMBAS, PRIMARIA Y SECUNDARIA~SECUNDARIA TÉCNICA~OPCIÓN 5~OPCIÓN 6~ | J13: Portada~ | K13: 9~ | L13: 26~ | M13: 1~
A14: s00_p13 | B14: Nombre del director/a | C14: FALSE | D14: FALSE | E14: 2 | F14: 50 | G14: 0 | J14: Portada~ | K14: 19~ | L14: 22~ | M14: 1~
A15: s00_p14_1 | B15: Teléfono 1 | C15: FALSE | D15: FALSE | E15: 0 | F15: 9 | G15: 0 | H15: 0~ | I15: 999999999~ | J15: Portada~ | K15: 23~ | L15: 25~ | M15: 1~
A16: s00_p14_2 | B16: Teléfono 2 | C16: FALSE | D16: FALSE | E16: 0 | F16: 9 | G16: 0 | H16: 0~ | I16: 999999999~ | J16: Portada~ | K16: 25~ | L16: 25~ | M16: 1~
A17: s00_p14 | B17: Teléfono 3 | C17: FALSE | D17: FALSE | E17: 0 | F17: 9 | G17: 0 | H17: 0~ | I17: 999999999~ | J17: Portada~ | K17: 28~ | L17: 25~ | M17: 1~
A18: s00_p15 | B18: Encuestador/a | C18: FALSE | D18: FALSE | E18: 0 | F18: 3 | G18: 0 | H18: 1~ | I18: 40~ | J18: Portada~ | K18: 34~ | L18: 12~ | M18: 1~
A19: s00_p16 | B19: Supervisor | C19: FALSE | D19: FALSE | E19: 0 | F19: 2 | G19: 0 | H19: 1~ | I19: 20~ | J19: Portada~ | K19: 36~ | L19: 12~ | M19: 1~
A20: s00_p17 | B20: Otro Personal 1 | C20: FALSE | D20: FALSE | E20: 0 | F20: 2 | G20: 0 | H20: 1~ | I20: 10~ | J20: Portada~ | K20: 38~ | L20: 12~ | M20: 1~
A21: s00_p18 | B21: Otro Personal 2 | C21: FALSE | D21: FALSE | E21: 0 | F21: 2 | G21: 0 | H21: 1~ | I21: 10~ | J21: Portada~ | K21: 40~ | L21: 12~ | M21: 1~
A22: s00_p19 | B22: Otro Personal 3 | C22: FALSE | D22: FALSE | E22: 0 | F22: 2 | G22: 0 | H22: 1~ | I22: 10~ | J22: Portada~ | K22: 42~ | L22: 12~ | M22: 1~
A23: s00_p20_1_d | B23: Fecha Visita (día) | C23: FALSE | D23: FALSE | E23: 0 | F23: 2 | G23: 0 | H23: 1~ | I23: 31~ | J23: Portada~ | K23: 38~ | L23: 18~ | M23: 1~
A24: s00_p20_1_m | B24: Fecha visita 1 (mes) | C24: FALSE | D24: FALSE | E24: 0 | F24: 2 | G24: 0 | H24: 1~ | I24: 12~ | J24: Portada~ | K24: 38~ | L24: 19~ | M24: 1~
A25: s00_p20_1_a | B25: Fecha visita 1 (año) | C25: FALSE | D25: FALSE | E25: 0 | F25: 4 | G25: 0 | H25: 2012~ | I25: 2020~ | J25: Portada~ | K25: 38~ | L25: 20~ | M25: 1~
A26: s00_p20_1_r | B26: Resultado visita 1 | C26: FALSE | D26: FALSE | E26: 1 | F26: 1 | G26: 0 | H26: 1~2~3~4~5~6~ | I26: COMPLETA~PARCIAL~RECHAZO~NO CONTACTÓ~NO LO ENCONTRÓ~OTRO~ | J26: Portada~ | K26: 38~ | L26: 22~ | M26: 1~
A27: s00_p20_1_i_h | B27: Hora inicio visita 1 (horas) | C27: FALSE | D27: FALSE | E27: 0 | F27: 2 | G27: 0 | H27: 0~ | I27: 23~ | J27: Portada~ | K27: 38~ | L27: 23~ | M27: 1~
A28: s00_p20_1_i_m | B28: Hora inicio visita 1 (minutos) | C28: FALSE | D28: FALSE | E28: 0 | F28: 2 | G28: 0 | H28: 0~ | I28: 59~ | J28: Portada~ | K28: 38~ | L28: 24~ | M28: 1~
A29: s00_p20_1_f_h | B29: Hora fin visita 1 (horas) | C29: FALSE | D29: FALSE | E29: 0 | F29: 2 | G29: 0 | H29: 0~ | I29: 23~ | J29: Portada~ | K29: 38~ | L29: 25~ | M29: 1~
A30: s00_p20_1_f_m | B30: Hora fin visita 1 (minutos) | C30: FALSE | D30: FALSE | E30: 0 | F30: 2 | G30: 0 | H30: 0~ | I30: 59~ | J30: Portada~ | K30: 38~ | L30: 26~ | M30: 1~
A31: s00_p20_2_d | B31: Fecha Visita 2 (día) | C31: TRUE | D31: FALSE | E31: 0 | F31: 2 | G31: 0 | H31: 1~ | I31: 31~ | J31: Portada~ | K31: 39~ | L31: 18~ | M31: 1~
A32: s00_p20_2_m | B32: Fecha visita 2 (mes) | C32: TRUE | D32: FALSE | E32: 0 | F32: 2 | G32: 0 | H32: 1~ | I32: 12~ | J32: Portada~ | K32: 39~ | L32: 19~ | M32: 1~
A33: s00_p20_2_a | B33: Fecha visita 2 (año) | C33: TRUE | D33: FALSE | E33: 0 | F33: 4 | G33: 0 | H33: 2012~ | I33: 2020~ | J33: Portada~ | K33: 39~ | L33: 20~ | M33: 1~
A34: s00_p20_2_r | B34: Resultado visita 2 | C34: TRUE | D34: FALSE | E34: 1 | F34: 1 | G34: 0 | H34: 1~2~3~4~5~6~ | I34: COMPLETA~PARCIAL~RECHAZO~NO CONTACTÓ~NO LO ENCONTRÓ~OTRO~ | J34: Portada~ | K34: 39~ | L34: 22~ | M34: 1~
A35: s00_p20_2_i_h | B35: Hora inicio visita 2 (horas) | C35: TRUE | D35: FALSE | E35: 0 | F35: 2 | G35: 0 | H35: 0~ | I35: 23~ | J35: Portada~ | K35: 39~ | L35: 23~ | M35: 1~
A36: s00_p20_2_i_m | B36: Hora inicio visita 2 (minutos) | C36: TRUE | D36: FALSE | E36: 0 | F36: 2 | G36: 0 | H36: 0~ | I36: 59~ | J36: Portada~ | K36: 39~ | L36: 24~ | M36: 1~
A37: s00_p20_2_f_h | B37: Hora fin visita 2 (horas) | C37: TRUE | D37: FALSE | E37: 0 | F37: 2 | G37: 0 | H37: 0~ | I37: 23~ | J37: Portada~ | K37: 39~ | L37: 25~ | M37: 1~
A38: s00_p20_2_f_m | B38: Hora fin visita 2 (minutos) | C38: TRUE | D38: FALSE | E38: 0 | F38: 2 | G38: 0 | H38: 0~ | I38: 59~ | J38: Portada~ | K38: 39~ | L38: 26~ | M38: 1~
A39: s00_p20_3_d | B39: Fecha Visita 3 (día) | C39: TRUE | D39: FALSE | E39: 0 | F39: 2 | G39: 0 | H39: 1~ | I39: 31~ | J39: Portada~ | K39: 40~ | L39: 18~ | M39: 1~
A40: s00_p20_3_m | B40: Fecha visita 3 (mes) | C40: TRUE | D40: FALSE | E40: 0 | F40: 2 | G40: 0 | H40: 1~ | I40: 12~ | J40: Portada~ | K40: 40~ | L40: 19~ | M40: 1~
A41: s00_p20_3_a | B41: Fecha visita 3 (año) | C41: TRUE | D41: FALSE | E41: 0 | F41: 4 | G41: 0 | H41: 2012~ | I41: 2020~ | J41: Portada~ | K41: 40~ | L41: 20~ | M41: 1~
A42: s00_p20_3_r | B42: Resultado visita 3 | C42: TRUE | D42: FALSE | E42: 1 | F42: 1 | G42: 0 | H42: 1~2~3~4~5~6~ | I42: COMPLETA~PARCIAL~RECHAZO~NO CONTACTÓ~NO LO ENCONTRÓ~OTRO~ | J42: Portada~ | K42: 40~ | L42: 22~ | M42: 1~
A43: s00_p20_3_i_h | B43: Hora inicio visita 3 (horas) | C43: TRUE | D43: FALSE | E43: 0 | F43: 2 | G43: 0 | H43: 0~ | I43: 23~ | J43: Portada~ | K43: 40~ | L43: 23~ | M43: 1~
A44: s00_p20_3_i_m | B44: Hora inicio visita 3 (minutos) | C44: TRUE | D44: FALSE | E44: 0 | F44: 2 | G44: 0 | H44: 0~ | I44: 59~ | J44: Portada~ | K44: 40~ | L44: 24~ | M44: 1~
A45: s00_p20_3_f_h | B45: Hora fin visita 3 (horas) | C45: TRUE | D45: FALSE | E45: 0 | F45: 2 | G45: 0 | H45: 0~ | I45: 23~ | J45: Portada~ | K45: 40~ | L45: 25~ | M45: 1~
A46: s00_p20_3_f_m | B46: Hora fin visita 3 (minutos) | C46: TRUE | D46: FALSE | E46: 0 | F46: 2 | G46: 0 | H46: 0~ | I46: 59~ | J46: Portada~ | K46: 40~ | L46: 26~ | M46: 1~
A47: s00_p20_4_d | B47: Fecha Visita 4 (día) | C47: TRUE | D47: FALSE | E47: 0 | F47: 2 | G47: 0 | H47: 1~ | I47: 31~ | J47: Portada~ | K47: 41~ | L47: 18~ | M47: 1~
A48: s00_p20_4_m | B48: Fecha visita 4 (mes) | C48: TRUE | D48: FALSE | E48: 0 | F48: 2 | G48: 0 | H48: 1~ | I48: 12~ | J48: Portada~ | K48: 41~ | L48: 19~ | M48: 1~
A49: s00_p20_4_a | B49: Fecha visita 4 (año) | C49: TRUE | D49: FALSE | E49: 0 | F49: 4 | G49: 0 | H49: 2012~ | I49: 2020~ | J49: Portada~ | K49: 41~ | L49: 20~ | M49: 1~
A50: s00_p20_4_r | B50: Resultado visita 4 | C50: TRUE | D50: FALSE | E50: 1 | F50: 1 | G50: 0 | H50: 1~2~3~4~5~6~ | I50: COMPLETA~PARCIAL~RECHAZO~NO CONTACTÓ~NO LO ENCONTRÓ~OTRO~ | J50: Portada~ | K50: 41~ | L50: 22~ | M50: 1~
A51: s00_p20_4_i_h | B51: Hora inicio visita 4 (horas) | C51: TRUE | D51: FALSE | E51: 0 | F51: 2 | G51: 0 | H51: 0~ | I51: 23~ | J51: Portada~ | K51: 41~ | L51: 23~ | M51: 1~
A52: s00_p20_4_i_m | B52: Hora inicio visita 4 (minutos) | C52: TRUE | D52: FALSE | E52: 0 | F52: 2 | G52: 0 | H52: 0~ | I52: 59~ | J52: Portada~ | K52: 41~ | L52: 24~ | M52: 1~
A53: s00_p20_4_f_h | B53: Hora fin visita 4 (horas) | C53: TRUE | D53: FALSE | E53: 0 | F53: 2 | G53: 0 | H53: 0~ | I53: 23~ | J53: Portada~ | K53: 41~ | L53: 25~ | M53: 1~
A54: s00_p20_4_f_m | B54: Hora fin visita 4 (minutos) | C54: TRUE | D54: FALSE | E54: 0 | F54: 2 | G54: 0 | H54: 0~ | I54: 59~ | J54: Portada~ | K54: 41~ | L54: 26~ | M54: 1~
A55: s00_p22 | B55: Idioma de la entrevista | C55: FALSE | D55: FALSE | E55: 1 | F55: 1 | G55: 0 | H55: 1~2~3~4~5~6~ | I55: CASTELLANO~OPCIÓN 2~OPCIÓN 3~OPCIÓN 4~OPCIÓN 5~OPCIÓN 6~ | J55: Portada~ | K55: 34~ | L55: 34~ | M55: 1~
A56: s01_p01 | B56: (1,01): Edad del director | C56: FALSE | D56: FALSE | E56: 0 | F56: 2 | G56: 0 | H56: 20~ | I56: 85~ | J56: 1.Director~ | K56: 5~ | L56: 13~ | M56: 1~
A57: s01_p02 | B57: (1,02): Sexo del Director | C57: FALSE | D57: FALSE | E57: 1 | F57: 1 | G57: 0 | H57: 1~2~ | I57: HOMBRE~MIJER~ | J57: 1.Director~ | K57: 7~ | L57: 14~ | M57: 1~
A58: s01_p03 | B58: (1,03): Año de ingreso al establecimiento | C58: FALSE | D58: FALSE | E58: 0 | F58: 4 | G58: 0 | H58: 1930~ | I58: 2012~ | J58: 1.Director~ | K58: 11~ | L58: 13~ | M58: 1~
A59: s01_p04 | B59: (1,04): Año que fue nombrado Director | C59: FALSE | D59: FALSE | E59: 0 | F59: 4 | G59: 0 | H59: 1930~ | I59: 2012~ | J59: 1.Director~ | K59: 13~ | L59: 13~ | M59: 1~
A60: s01_p05 | B60: (1,05): ¿Quién lo nombró director? | C60: FALSE | D60: FALSE | E60: 1 | F60: 1 | G60: 0 | H60: 1~2~3~4~5~6~7~8~ | I60: MINISTERIO DE EDUCACIÓN (CENTRAL)~SEDE REGIONAL/ESTATAL DEL MINISTERIO DE EDUCACIÓN~LA COMUNIDAD DE PADRES~EL LIDER COMUNITARIO~EL DUEÑO/A DEL ESTABLECIMIENTO~OPCIÓN 6~OPCIÓN 7~OTRO~ | J60: 1.Director~ | K60: 15~ | L60: 14~ | M60: 1~
A61: s01_p06_n | B61: (1,06): Nivel más alto que aprobó | C61: FALSE | D61: FALSE | E61: 1 | F61: 1 | G61: 0 | H61: 1~2~3~4~5~6~7~8~ | I61: PRIMARIA~SECUNDARIA~BACHILLERATO~TERCIARIO TÉCNICO~TERCIARIO COMERCIAL~UNIVERSITARIA~MAESTRIA/DOCTORADO~OTRO (ESPECIFIQUE)~ | J61: 1.Director~ | K61: 29~ | L61: 14~ | M61: 1~
A62: s01_p06_c | B62: (1,06): Curso más alto que aprobó | C62: FALSE | D62: FALSE | E62: 0 | F62: 1 | G62: 0 | H62: 1~ | I62: 7~ | J62: 1.Director~ | K62: 31~ | L62: 14~ | M62: 1~ | N62: 001~001~ | O62: s01_p06_n~s01_p06_n~ | P62: ~~ | Q62: 1~4~ | R62: 3~7~ | S62: s01_p13~s01_p07~
A63: s01_p06_otro | B63: (1,06): Otra | C63: FALSE | D63: FALSE | E63: 2 | F63: 50 | G63: 0 | J63: 1.Director~ | K63: 35~ | L63: 7~ | M63: 1~ | N63: 001~ | O63: s01_p06_n~ | P63: ~ | Q63: 8~ | R63: 8~ | S63: s01_p13~
A64: s01_p07 | B64: (1,07): Año de aprobación | C64: FALSE | D64: FALSE | E64: 0 | F64: 4 | G64: 0 | H64: 1950~ | I64: 2012~ | J64: 1.Director~ | K64: 37~ | L64: 14~ | M64: 1~
A65: s01_p08 | B65: (1,08): ¿Hizo algún curso de administración? | C65: FALSE | D65: FALSE | E65: 1 | F65: 1 | G65: 0 | H65: 1~2~ | I65: SI~NO~ | J65: 1.Director~ | K65: 5~ | L65: 32~ | M65: 1~ | N65: 001~ | O65: s01_p08~ | P65: ~ | Q65: 2~ | R65: 2~ | S65: s01_p10~
A66: s01_p09 | B66: (1,09): Área del curso de administración | C66: FALSE | D66: FALSE | E66: 1 | F66: 1 | G66: 0 | H66: 1~2~3~ | I66: ADMINISTRACIÓN DE ESTABLECIMIENTOS EDUCACIONALES~ADMINISTRACIÓN DE EMPRESAS~OTRO~ | J66: 1.Director~ | K66: 9~ | L66: 32~ | M66: 1~
A67: s01_p10 | B67: (1,10): ¿Tiene título de profesor de escuela? | C67: FALSE | D67: FALSE | E67: 1 | F67: 1 | G67: 0 | H67: 1~2~ | I67: SI~NO~ | J67: 1.Director~ | K67: 15~ | L67: 32~ | M67: 1~ | N67: 001~ | O67: s01_p10~ | P67: ~ | Q67: 2~ | R67: 2~ | S67: s01_p13~
A68: s01_p11 | B68: (1,11): ¿El título es de algún área? | C68: FALSE | D68: FALSE | E68: 1 | F68: 1 | G68: 0 | H68: 1~2~ | I68: SI~NO~ | J68: 1.Director~ | K68: 18~ | L68: 32~ | M68: 1~ | N68: 001~ | O68: s01_p11~ | P68: ~ | Q68: 2~ | R68: 2~ | S68: s01_p13~
A69: s01_p12 | B69: (1,12): Áreas en donde está titulado | C69: FALSE | D69: FALSE | E69: 1 | F69: 2 | G69: 0 | H69: 01~02~03~04~05~06~07~08~09~10~11~12~13~14~ | I69: MATEMÁTICAS~CASTELLANO~CIENCIAS~FÍSICA~FILOSOFÍA~MANUALIDADES~EDUCACIÓN FÍSICA~MÚSICA~INGLÉS~OPCIÓN 10~OPCIÓN 11~OPCIÓN 12~OPCIÓN 13~OTRO~ | J69: 1.Director~ | K69: 21~ | L69: 32~ | M69: 1~
A70: s01_p13 | B70: (1,13): Horas a la semana que trabaja | C70: FALSE | D70: FALSE | E70: 0 | F70: 2 | G70: 0 | H70: 0~ | I70: 60~ | J70: 1.Director~ | K70: 31~ | L70: 32~ | M70: 1~
A71: s01_p14 | B71: (1,14): ¿Dicta clases en la escuela? | C71: FALSE | D71: FALSE | E71: 1 | F71: 1 | G71: 0 | H71: 1~2~ | I71: SI~NO~ | J71: 1.Director~ | K71: 33~ | L71: 32~ | M71: 1~ | N71: 001~ | O71: s01_p14~ | P71: ~ | Q71: 2~ | R71: 2~ | S71: s01_p16~
A72: s01_p15 | B72: (1,15): Horas a la semana que dicta clases | C72: FALSE | D72: FALSE | E72: 0 | F72: 2 | G72: 0 | H72: 0~ | I72: 60~ | J72: 1.Director~ | K72: 36~ | L72: 32~ | M72: 1~
A73: s01_p16 | B73: (1,16): ¿Está estudiando otro título? | C73: FALSE | D73: FALSE | E73: 1 | F73: 1 | G73: 0 | H73: 1~2~ | I73: SI~NO~ | J73: 1.Director~ | K73: 44~ | L73: 14~ | M73: 1~ | N73: 001~ | O73: s01_p16~ | P73: ~ | Q73: 2~ | R73: 2~ | S73: s01_p19_1~
A74: s01_p17 | B74: (1,17): ¿Qué título estudia? | C74: FALSE | D74: FALSE | E74: 1 | F74: 1 | G74: 0 | H74: 1~2~3~4~ | I74: OPCIÓN 1~OPCIÓN 2~OPCIÓN 3~OTRO~ | J74: 1.Director~ | K74: 48~ | L74: 14~ | M74: 1~
A75: s01_p18 | B75: (1,18): ¿Asistió a algún curso de perfeccionamiento? | C75: FALSE | D75: FALSE | E75: 1 | F75: 1 | G75: 0 | H75: 1~2~ | I75: SI~NO~ | J75: 1.Director~ | K75: 54~ | L75: 14~ | M75: 1~ | N75: 001~ | O75: s01_p18~ | P75: ~ | Q75: 2~ | R75: 2~ | S75: s01_p21_a~
A76: s01_p19_1 | B76: (1,19): ¿Asistió a (curso perfeccionamiento 1)? | C76: FALSE | D76: FALSE | E76: 1 | F76: 1 | G76: 0 | H76: 1~2~ | I76: SI~NO~ | J76: 1.Director~ | K76: 68~ | L76: 9~ | M76: 1~ | N76: 001~ | O76: s01_p19_1~ | P76: ~ | Q76: 2~ | R76: 2~ | S76: s01_p19_2~
A77: s01_p20_1 | B77: (1,20): ¿Quién financió (curso perfeccionamiento 1)? | C77: FALSE | D77: FALSE | E77: 1 | F77: 1 | G77: 0 | H77: 1~2~3~4~5~ | I77: YO MISMO/A~LA ESCUELA~OPCIÓN 3~OPCIÓN 4~OPCIÓN 5~ | J77: 1.Director~ | K77: 68~ | L77: 13~ | M77: 1~
A78: s01_p19_2 | B78: (1,19): ¿Asistió a (curso perfeccionamiento 2)? | C78: FALSE | D78: FALSE | E78: 1 | F78: 1 | G78: 0 | H78: 1~2~ | I78: SI~NO~ | J78: 1.Director~ | K78: 69~ | L78: 9~ | M78: 1~ | N78: 001~ | O78: s01_p19_2~ | P78: ~ | Q78: 2~ | R78: 2~ | S78: s01_p19_3~
A79: s01_p20_2 | B79: (1,20): ¿Quién financió (curso perfeccionamiento 2)? | C79: FALSE | D79: FALSE | E79: 1 | F79: 1 | G79: 0 | H79: 1~2~3~4~5~ | I79: YO MISMO/A~LA ESCUELA~OPCIÓN 3~OPCIÓN 4~OPCIÓN 5~ | J79: 1.Director~ | K79: 69~ | L79: 13~ | M79: 1~
A80: s01_p19_3 | B80: (1,19): ¿Asistió a (curso perfeccionamiento 3)? | C80: FALSE | D80: FALSE | E80: 1 | F80: 1 | G80: 0 | H80: 1~2~ | I80: SI~NO~ | J80: 1.Director~ | K80: 70~ | L80: 9~ | M80: 1~ | N80: 001~ | O80: s01_p19_3~ | P80: ~ | Q80: 2~ | R80: 2~ | S80: s01_p19_4~
A81: s01_p20_3 | B81: (1,20): ¿Quién financió (curso perfeccionamiento 3)? | C81: FALSE | D81: FALSE | E81: 1 | F81: 1 | G81: 0 | H81: 1~2~3~4~5~ | I81: YO MISMO/A~LA ESCUELA~OPCIÓN 3~OPCIÓN 4~OPCIÓN 5~ | J81: 1.Director~ | K81: 70~ | L81: 13~ | M81: 1~
A82: s01_p19_4 | B82: (1,19): ¿Asistió a (curso perfeccionamiento 4)? | C82: FALSE | D82: FALSE | E82: 1 | F82: 1 | G82: 0 | H82: 1~2~ | I82: SI~NO~ | J82: 1.Director~ | K82: 71~ | L82: 9~ | M82: 1~ | N82: 001~ | O82: s01_p19_4~ | P82: ~ | Q82: 2~ | R82: 2~ | S82: s01_p19_5~
A83: s01_p20_4 | B83: (1,20): ¿Quién financió (curso perfeccionamiento 4)? | C83: FALSE | D83: FALSE | E83: 1 | F83: 1 | G83: 0 | H83: 1~2~3~4~5~ | I83: YO MISMO/A~LA ESCUELA~OPCIÓN 3~OPCIÓN 4~OPCIÓN 5~ | J83: 1.Director~ | K83: 71~ | L83: 13~ | M83: 1~
A84: s01_p19_5 | B84: (1,19): ¿Asistió a (curso perfeccionamiento 5)? | C84: FALSE | D84: FALSE | E84: 1 | F84: 1 | G84: 0 | H84: 1~2~ | I84: SI~NO~ | J84: 1.Director~ | K84: 72~ | L84: 9~ | M84: 1~ | N84: 001~ | O84: s01_p19_5~ | P84: ~ | Q84: 2~ | R84: 2~ | S84: s01_p19_6~
A85: s01_p20_5 | B85: (1,20): ¿Quién financió (curso perfeccionamiento 5)? | C85: FALSE | D85: FALSE | E85: 1 | F85: 1 | G85: 0 | H85: 1~2~3~4~5~ | I85: YO MISMO/A~LA ESCUELA~OPCIÓN 3~OPCIÓN 4~OPCIÓN 5~ | J85: 1.Director~ | K85: 72~ | L85: 13~ | M85: 1~
A86: s01_p19_6 | B86: (1,19): ¿Asistió a (curso perfeccionamiento 6)? | C86: FALSE | D86: FALSE | E86: 1 | F86: 1 | G86: 0 | H86: 1~2~ | I86: SI~NO~ | J86: 1.Director~ | K86: 73~ | L86: 9~ | M86: 1~ | N86: 001~ | O86: s01_p19_6~ | P86: ~ | Q86: 2~ | R86: 2~ | S86: s01_p19_7~
A87: s01_p20_6 | B87: (1,20): ¿Quién financió (curso perfeccionamiento 6)? | C87: FALSE | D87: FALSE | E87: 1 | F87: 1 | G87: 0 | H87: 1~2~3~4~5~ | I87: YO MISMO/A~LA ESCUELA~OPCIÓN 3~OPCIÓN 4~OPCIÓN 5~ | J87: 1.Director~ | K87: 73~ | L87: 13~ | M87: 1~
A88: s01_p19_7 | B88: (1,19): ¿Asistió a (curso perfeccionamiento 7)? | C88: FALSE | D88: FALSE | E88: 1 | F88: 1 | G88: 0 | H88: 1~2~ | I88: SI~NO~ | J88: 1.Director~ | K88: 74~ | L88: 9~ | M88: 1~ | N88: 001~ | O88: s01_p19_7~ | P88: ~ | Q88: 2~ | R88: 2~ | S88: s01_p21_a~
A89: s01_p20_7 | B89: (1,20): ¿Quién financió (curso perfeccionamiento 7)? | C89: FALSE | D89: FALSE | E89: 1 | F89: 1 | G89: 0 | H89: 1~2~3~4~5~ | I89: YO MISMO/A~LA ESCUELA~OPCIÓN 3~OPCIÓN 4~OPCIÓN 5~ | J89: 1.Director~ | K89: 74~ | L89: 13~ | M89: 1~
A90: s01_p21_a | B90: (1,21): Salario como Director en efectivo | C90: FALSE | D90: FALSE | E90: 0 | F90: 5 | G90: 0 | H90: 0~ | I90: 99999~ | J90: 1.Director~ | K90: 47~ | L90: 23~ | M90: 1~
A91: s01_p21_b | B91: (1,21): Salario como Director en comida | C91: FALSE | D91: FALSE | E91: 0 | F91: 5 | G91: 0 | H91: 0~ | I91: 99999~ | J91: 1.Director~ | K91: 48~ | L91: 23~ | M91: 1~
A92: s01_p21_c | B92: (1,21): Salario como Director en vivienda | C92: FALSE | D92: FALSE | E92: 0 | F92: 5 | G92: 0 | H92: 0~ | I92: 99999~ | J92: 1.Director~ | K92: 49~ | L92: 23~ | M92: 1~
A93: s01_p21_d | B93: (1,21): Salario como Director en transporte | C93: FALSE | D93: FALSE | E93: 0 | F93: 5 | G93: 0 | H93: 0~ | I93: 99999~ | J93: 1.Director~ | K93: 47~ | L93: 31~ | M93: 1~
A94: s01_p21_e | B94: (1,21): Salario como Director en otros | C94: FALSE | D94: FALSE | E94: 0 | F94: 5 | G94: 0 | H94: 0~ | I94: 99999~ | J94: 1.Director~ | K94: 48~ | L94: 31~ | M94: 1~
A95: s01_p21_f | B95: (1,21): Salario como Director en total | C95: FALSE | D95: FALSE | E95: 0 | F95: 6 | G95: 0 | H95: 0~ | I95: 500000~ | J95: 1.Director~ | K95: 49~ | L95: 31~ | M95: 1~
A96: s01_p22 | B96: (1,22): ¿Tiene otro trabajo? | C96: FALSE | D96: FALSE | E96: 1 | F96: 1 | G96: 0 | H96: 1~2~ | I96: SI~NO~ | J96: 1.Director~ | K96: 54~ | L96: 32~ | M96: 1~ | N96: 001~ | O96: s01_p22~ | P96: ~ | Q96: 2~ | R96: 2~ | S96: s02_p01~
A97: s01_p23 | B97: (1,23): Categoría que describe el otro trabajo | C97: FALSE | D97: FALSE | E97: 1 | F97: 1 | G97: 0 | H97: 1~2~3~4~5~ | I97: AGRICULTURA~POR CUENTA PROPIA~OPCIÓN 3~OPCIÓN 4~OTRO~ | J97: 1.Director~ | K97: 58~ | L97: 32~ | M97: 1~
A98: s01_p24 | B98: (1,24): Salario del último año por otro trabajo | C98: FALSE | D98: FALSE | E98: 0 | F98: 5 | G98: 0 | H98: 0~ | I98: 99999~ | J98: 1.Director~ | K98: 66~ | L98: 30~ | M98: 1~
A99: s01_p25 | B99: (1,25): ¿Usted nació en ...? | C99: FALSE | D99: FALSE | E99: 1 | F99: 1 | G99: 0 | H99: 1~2~3~4~5~ | I99: ¿la misma {Localidad}?~¿el mismo {Municilio}?~¿la misma {Provincia}?~¿la misma {Región/Estado}?~¿otro país?~ | J99: 1.Director~ | K99: 69~ | L99: 32~ | M99: 1~
A100: s02_p01 | B100: (2,01): Tipo de establecimieto | C100: FALSE | D100: FALSE | E100: 1 | F100: 1 | G100: 0 | H100: 1~2~3~ | I100: Es público?~Es privado religioso?~Es privado laico?~ | J100: 2.Escuela~ | K100: 4~ | L100: 15~ | M100: 1~
A101: s02_p02 | B101: (2,02): Religión que se enseña | C101: FALSE | D101: FALSE | E101: 1 | F101: 1 | G101: 0 | H101: 1~2~3~4~5~6~7~ | I101: NINGUNA~CATÓLICA~JUDÍA~PROTESTANTE~CRISTIANA~OPCIÓN 6~OPCIÓN 7~ | J101: 2.Escuela~ | K101: 10~ | L101: 15~ | M101: 1~
A102: s02_p03 | B102: (2,03): Nivel de gobierno de la administración | C102: FALSE | D102: FALSE | E102: 1 | F102: 1 | G102: 0 | H102: 1~2~3~4~5~6~7~8~ | I102: NIVEL CENTRAL~NIVEL REGIONAL/ESTATAL~NIVEL PROVINCIAL~NIVEL MUNICIPAL~IGLESIA~ONG~COMUNIDAD~OPCIÓN 8~ | J102: 2.Escuela~ | K102: 19~ | L102: 15~ | M102: 1~
A103: s02_p04 | B103: (2,04): Año de funcionamiento | C103: FALSE | D103: FALSE | E103: 0 | F103: 4 | G103: 0 | H103: 1950~ | I103: 2012~ | J103: 2.Escuela~ | K103: 32~ | L103: 15~ | M103: 1~
A104: s02_p05 | B104: (2,05): ¿Tienen acreditación del ministerio? | C104: FALSE | D104: FALSE | E104: 1 | F104: 1 | G104: 0 | H104: 1~2~ | I104: SI~NO~ | J104: 2.Escuela~ | K104: 36~ | L104: 15~ | M104: 1~
A105: s02_p06 | B105: (2,06): ¿Usa el establecimiento para otros fines? | C105: FALSE | D105: FALSE | E105: 1 | F105: 1 | G105: 0 | H105: 1~2~ | I105: SI~NO~ | J105: 2.Escuela~ | K105: 4~ | L105: 33~ | M105: 1~
A106: s02_p07 | B106: (2,06): ¿Hay salas para alumnos especiales? | C106: FALSE | D106: FALSE | E106: 1 | F106: 1 | G106: 0 | H106: 1~2~ | I106: SI~NO~ | J106: 2.Escuela~ | K106: 8~ | L106: 33~ | M106: 1~
A107: s02_p08 | B107: (2,08): ¿Cuántas salas especiales hay? | C107: FALSE | D107: FALSE | E107: 0 | F107: 1 | G107: 0 | H107: 1~ | I107: 9~ | J107: 2.Escuela~ | K107: 12~ | L107: 33~ | M107: 1~
A108: s02_p09 | B108: (2,09): ¿Cuentan con educación pre escolar? | C108: FALSE | D108: FALSE | E108: 1 | F108: 1 | G108: 0 | H108: 1~2~ | I108: SI~NO~ | J108: 2.Escuela~ | K108: 14~ | L108: 33~ | M108: 1~
A109: s02_p10_a_d_h | B109: (2,10): Horario de apertura (mañana, horas) | C109: FALSE | D109: FALSE | E109: 0 | F109: 2 | G109: 0 | H109: 6~ | I109: 23~ | J109: 2.Escuela~ | K109: 19~ | L109: 26~ | M109: 1~
A110: s02_p10_a_d_m | B110: (2,10): Horario de apertura (mañana, minutos) | C110: FALSE | D110: FALSE | E110: 0 | F110: 2 | G110: 0 | H110: 0~ | I110: 59~ | J110: 2.Escuela~ | K110: 19~ | L110: 27~ | M110: 1~
A111: s02_p10_a_h_h | B111: (2,10): Horario de cierre (mañana, horas) | C111: FALSE | D111: FALSE | E111: 0 | F111: 2 | G111: 0 | H111: 6~ | I111: 23~ | J111: 2.Escuela~ | K111: 19~ | L111: 32~ | M111: 1~
A112: s02_p10_a_h_m | B112: (2,10): Horario de cierre (mañana, minutos) | C112: FALSE | D112: FALSE | E112: 0 | F112: 2 | G112: 0 | H112: 0~ | I112: 59~ | J112: 2.Escuela~ | K112: 19~ | L112: 33~ | M112: 1~
A113: s02_p10_b_d_h | B113: (2,10): Horario de apertura (tarde, horas) | C113: FALSE | D113: FALSE | E113: 0 | F113: 2 | G113: 0 | H113: 6~ | I113: 23~ | J113: 2.Escuela~ | K113: 21~ | L113: 26~ | M113: 1~
A114: s02_p10_b_d_m | B114: (2,10): Horario de apertura (tarde, minutos) | C114: FALSE | D114: FALSE | E114: 0 | F114: 2 | G114: 0 | H114: 0~ | I114: 59~ | J114: 2.Escuela~ | K114: 21~ | L114: 27~ | M114: 1~
A115: s02_p10_b_h_h | B115: (2,10): Horario de cierre (tarde, horas) | C115: FALSE | D115: FALSE | E115: 0 | F115: 2 | G115: 0 | H115: 6~ | I115: 23~ | J115: 2.Escuela~ | K115: 21~ | L115: 32~ | M115: 1~
A116: s02_p10_b_h_m | B116: (2,10): Horario de cierre (tarde, minutos) | C116: FALSE | D116: FALSE | E116: 0 | F116: 2 | G116: 0 | H116: 0~ | I116: 59~ | J116: 2.Escuela~ | K116: 21~ | L116: 33~ | M116: 1~
A117: s02_p10_c_d_h | B117: (2,10): Horario de apertura (noche, horas) | C117: FALSE | D117: FALSE | E117: 0 | F117: 2 | G117: 0 | H117: 6~ | I117: 23~ | J117: 2.Escuela~ | K117: 23~ | L117: 26~ | M117: 1~
A118: s02_p10_c_d_m | B118: (2,10): Horario de apertura (noche, minutos) | C118: FALSE | D118: FALSE | E118: 0 | F118: 2 | G118: 0 | H118: 0~ | I118: 59~ | J118: 2.Escuela~ | K118: 23~ | L118: 27~ | M118: 1~
A119: s02_p10_c_h_h | B119: (2,10): Horario de cierre (noche, horas) | C119: FALSE | D119: FALSE | E119: 0 | F119: 2 | G119: 0 | H119: 6~ | I119: 23~ | J119: 2.Escuela~ | K119: 23~ | L119: 32~ | M119: 1~
A120: s02_p10_c_h_m | B120: (2,10): Horario de cierre (noche, minutos) | C120: FALSE | D120: FALSE | E120: 0 | F120: 2 | G120: 0 | H120: 0~ | I120: 59~ | J120: 2.Escuela~ | K120: 23~ | L120: 33~ | M120: 1~
A121: s02_p11 | B121: (2,11): ¿Aceptan a todos los postulantes? | C121: FALSE | D121: FALSE | E121: 1 | F121: 1 | G121: 0 | H121: 1~2~ | I121: SI~NO~ | J121: 2.Escuela~ | K121: 27~ | L121: 33~ | M121: 1~
A122: s02_p12_1 | B122: (2,12): Criterio más importante para admisión 1 | C122: FALSE | D122: FALSE | E122: 1 | F122: 1 | G122: 0 | H122: 1~2~3~4~5~6~7~8~9~ | I122: RENDIMIENTO ESCOLAR PREVIO~TEST DE ADMISIÓN~LUGAR DE RESIDENCIA~ORDEN DE POSTULACIÓN~HERMANOS/AS EN EL ESTABLECIMIENTO~OPCIÓN 6~OPCIÓN 7~OPCIÓN 8~OTRO~ | J122: 2.Escuela~ | K122: 33~ | L122: 33~ | M122: 1~
A123: s02_p12_2 | B123: (2,12): Criterio más importante para admisión 2 | C123: FALSE | D123: FALSE | E123: 1 | F123: 1 | G123: 0 | H123: 1~2~3~4~5~6~7~8~9~ | I123: RENDIMIENTO ESCOLAR PREVIO~TEST DE ADMISIÓN~LUGAR DE RESIDENCIA~ORDEN DE POSTULACIÓN~HERMANOS/AS EN EL ESTABLECIMIENTO~OPCIÓN 6~OPCIÓN 7~OPCIÓN 8~OTRO~ | J123: 2.Escuela~ | K123: 35~ | L123: 33~ | M123: 1~
A124: s02_p12_3 | B124: (2,12): Criterio más importante para admisión 3 | C124: FALSE | D124: FALSE | E124: 1 | F124: 1 | G124: 0 | H124: 1~2~3~4~5~6~7~8~9~ | I124: RENDIMIENTO ESCOLAR PREVIO~TEST DE ADMISIÓN~LUGAR DE RESIDENCIA~ORDEN DE POSTULACIÓN~HERMANOS/AS EN EL ESTABLECIMIENTO~OPCIÓN 6~OPCIÓN 7~OPCIÓN 8~OTRO~ | J124: 2.Escuela~ | K124: 37~ | L124: 33~ | M124: 1~
A125: s02_p13 | B125: (2,13): Idioma usado en clases | C125: FALSE | D125: FALSE | E125: 1 | F125: 1 | G125: 0 | H125: 1~2~3~4~5~6~ | I125: CASTELLANO~OPCIÓN 2~OPCIÓN 3~OPCIÓN 4~OPCIÓN 5~OPCIÓN 6~ | J125: 2.Escuela~ | K125: 45~ | L125: 15~ | M125: 1~
A126: s02_p14 | B126: (2,14): ¿Hay alumnos que no entienden idioma? | C126: FALSE | D126: FALSE | E126: 1 | F126: 1 | G126: 0 | H126: 1~2~ | I126: SI~NO~ | J126: 2.Escuela~ | K126: 53~ | L126: 15~ | M126: 1~ | N126: 001~ | O126: s02_p14~ | P126: ~ | Q126: 2~ | R126: 2~ | S126: s02_p16~
A127: s02_p15 | B127: (2,14): Acción a alumno que no entiende idioma | C127: FALSE | D127: FALSE | E127: 1 | F127: 1 | G127: 0 | H127: 1~2~3~4~5~6~ | I127: SE LES ENVÍA A CLASES ESPECIALES DEL IDIOMA USADO EN LAS CLASES, EN ESTE ESTABLECIMIENTO~SE LES ENVÍA A CLASES ESPECIALES DEL IDIOMA USADO EN LAS CLASES, EN OTRO ESTABLECIMIENTO~LOS AGRUPAN Y ASIGNAN PROFESORES QUE LOS INSTRUYEN EN EL LENGUAJE QUE ENTIENDEN~OPCIÓN 4~OPCIÓN 5~NO HACEN NADA~ | J127: 2.Escuela~ | K127: 58~ | L127: 15~ | M127: 1~
A128: s02_p16 | B128: (2,16): ¿Ausentismo de maestros es problema? | C128: FALSE | D128: FALSE | E128: 1 | F128: 1 | G128: 0 | H128: 1~2~ | I128: SI~NO~ | J128: 2.Escuela~ | K128: 72~ | L128: 15~ | M128: 1~
A129: s02_p17_1 | B129: (2,17): Causa de ausentismo de maestros 1 | C129: FALSE | D129: FALSE | E129: 1 | F129: 2 | G129: 0 | H129: 01~02~03~04~05~06~07~08~09~10~ | I129: ENFERMEDAD~TIENEN OTROS TRABAJOS~CUIDADO DE FAMILIARES~EL TIEMPO ES MALO~EMBARAZO/PRE-POST NATAL~TRANSPORTE DIFICULTOSO~OPCIÓN 7~OPCIÓN 8~OPCIÓN 9~OTRO~ | J129: 2.Escuela~ | K129: 47~ | L129: 33~ | M129: 1~
A130: s2_p17_2 | B130: (2,17): Causa de ausentismo de maestros 2 | C130: FALSE | D130: FALSE | E130: 1 | F130: 2 | G130: 0 | H130: 01~02~03~04~05~06~07~08~09~10~ | I130: ENFERMEDAD~TIENEN OTROS TRABAJOS~CUIDADO DE FAMILIARES~EL TIEMPO ES MALO~EMBARAZO/PRE-POST NATAL~TRANSPORTE DIFICULTOSO~OPCIÓN 7~OPCIÓN 8~OPCIÓN 9~OTRO~ | J130: 2.Escuela~ | K130: 49~ | L130: 33~ | M130: 1~
A131: s02_p17_3 | B131: (2,17): Causa de ausentismo de maestros 3 | C131: FALSE | D131: FALSE | E131: 1 | F131: 2 | G131: 0 | H131: 01~02~03~04~05~06~07~08~09~10~ | I131: ENFERMEDAD~TIENEN OTROS TRABAJOS~CUIDADO DE FAMILIARES~EL TIEMPO ES MALO~EMBARAZO/PRE-POST NATAL~TRANSPORTE DIFICULTOSO~OPCIÓN 7~OPCIÓN 8~OPCIÓN 9~OTRO~ | J131: 2.Escuela~ | K131: 51~ | L131: 33~ | M131: 1~
A132: s02_p18_1 | B132: (2,18): ¿Qué hacen cuando maestro falta? 1 | C132: FALSE | D132: FALSE | E132: 1 | F132: 1 | G132: 0 | H132: 1~2~3~4~5~6~7~8~9~ | I132: OTRO MAESTRO LO REEMPLAZA~OTRO PERSONAL LO REEMPLAZA~USTED (EL/LA DIRECTORA/A) LO REEMPLAZA~LOS ALUMNOS/AS PERMANECEN SOLOS EN SUS SALAS~PIDEN A LOS ALUMNOS/AS IR A JUGAR/HACER DEPORTE~ENVÍAN A LOS ALUMNOS A SUS CASAS~OPCIÓN 7~OPCIÓN 8~OTRO~ | J132: 2.Escuela~ | K132: 58~ | L132: 33~ | M132: 1~
A133: s02_p18_2 | B133: (2,18): ¿Qué hacen cuando maestro falta? 2 | C133: FALSE | D133: FALSE | E133: 1 | F133: 1 | G133: 0 | H133: 1~2~3~4~5~6~7~8~9~ | I133: OTRO MAESTRO LO REEMPLAZA~OTRO PERSONAL LO REEMPLAZA~USTED (EL/LA DIRECTORA/A) LO REEMPLAZA~LOS ALUMNOS/AS PERMANECEN SOLOS EN SUS SALAS~PIDEN A LOS ALUMNOS/AS IR A JUGAR/HACER DEPORTE~ENVÍAN A LOS ALUMNOS A SUS CASAS~OPCIÓN 7~OPCIÓN 8~OTRO~ | J133: 2.Escuela~ | K133: 60~ | L133: 33~ | M133: 1~
A134: s02_p18_3 | B134: (2,18): ¿Qué hacen cuando maestro falta? 3 | C134: FALSE | D134: FALSE | E134: 1 | F134: 1 | G134: 0 | H134: 1~2~3~4~5~6~7~8~9~ | I134: OTRO MAESTRO LO REEMPLAZA~OTRO PERSONAL LO REEMPLAZA~USTED (EL/LA DIRECTORA/A) LO REEMPLAZA~LOS ALUMNOS/AS PERMANECEN SOLOS EN SUS SALAS~PIDEN A LOS ALUMNOS/AS IR A JUGAR/HACER DEPORTE~ENVÍAN A LOS ALUMNOS A SUS CASAS~OPCIÓN 7~OPCIÓN 8~OTRO~ | J134: 2.Escuela~ | K134: 62~ | L134: 33~ | M134: 1~
A135: s02_p19 | B135: (2,19): Frecuencia de reuniones director-maestro | C135: FALSE | D135: FALSE | E135: 1 | F135: 1 | G135: 0 | H135: 1~2~3~4~5~6~ | I135: UNA VEZ EN EL DÍA~UNA VEZ EN EL SEMANA~UNA VEZ EN EL MES~UNA VEZ EN EL SEMESTRE~UNA VEZ EN EL AÑO~NO SE REUNEN~ | J135: 2.Escuela~ | K135: 72~ | L135: 33~ | M135: 1~
A136: s02_p20 | B136: (2,20): ¿Exigen asistencia para promoción de alumno? | C136: FALSE | D136: FALSE | E136: 1 | F136: 1 | G136: 0 | H136: 1~2~ | I136: SI~NO~ | J136: 2.Escuela~ | K136: 83~ | L136: 15~ | M136: 1~
A137: s02_p21 | B137: (2,21): ¿Ausentismo de alumnos es problema? | C137: FALSE | D137: FALSE | E137: 1 | F137: 1 | G137: 0 | H137: 1~2~ | I137: SI~NO~ | J137: 2.Escuela~ | K137: 87~ | L137: 15~ | M137: 1~
A138: s02_p22_1 | B138: (2,22): Causas de ausentismo en alumnos 1 | C138: FALSE | D138: FALSE | E138: 1 | F138: 2 | G138: 0 | H138: 01~02~03~04~05~06~07~08~09~10~11~ | I138: ENFERMEDAD~TIENEN QUE AYUDAR EN SUS CASAS~TIENEN QUE TRABAJAR~CUIDADO DE FAMILIARES~EL TIEMPO ES MALO~TRANSPORTE DIFICULTOSO~NO QUIEREN IR A LA ESCUELA~OPCIÓN 8~OPCIÓN 9~OPCIÓN 10~OTRO~ | J138: 2.Escuela~ | K138: 92~ | L138: 15~ | M138: 1~
A139: s02_p22_2 | B139: (2,22): Causas de ausentismo en alumnos 2 | C139: FALSE | D139: FALSE | E139: 1 | F139: 2 | G139: 0 | H139: 01~02~03~04~05~06~07~08~09~10~11~ | I139: ENFERMEDAD~TIENEN QUE AYUDAR EN SUS CASAS~TIENEN QUE TRABAJAR~CUIDADO DE FAMILIARES~EL TIEMPO ES MALO~TRANSPORTE DIFICULTOSO~NO QUIEREN IR A LA ESCUELA~OPCIÓN 8~OPCIÓN 9~OPCIÓN 10~OTRO~ | J139: 2.Escuela~ | K139: 94~ | L139: 15~ | M139: 1~
A140: s02_p22_3 | B140: (2,22): Causas de ausentismo en alumnos 3 | C140: FALSE | D140: FALSE | E140: 1 | F140: 2 | G140: 0 | H140: 01~02~03~04~05~06~07~08~09~10~11~ | I140: ENFERMEDAD~TIENEN QUE AYUDAR EN SUS CASAS~TIENEN QUE TRABAJAR~CUIDADO DE FAMILIARES~EL TIEMPO ES MALO~TRANSPORTE DIFICULTOSO~NO QUIEREN IR A LA ESCUELA~OPCIÓN 8~OPCIÓN 9~OPCIÓN 10~OTRO~ | J140: 2.Escuela~ | K140: 96~ | L140: 15~ | M140: 1~
A141: s02_p23 | B141: (2,23): ¿Dan desayuno gratis a alumnos? | C141: FALSE | D141: FALSE | E141: 1 | F141: 1 | G141: 0 | H141: 1~2~ | I141: SI~NO~ | J141: 2.Escuela~ | K141: 83~ | L141: 33~ | M141: 1~
A142: s02_p24 | B142: (2,24): ¿Dan almuerzo gratis a alumnos? | C142: FALSE | D142: FALSE | E142: 1 | F142: 1 | G142: 0 | H142: 1~2~ | I142: SI~NO~ | J142: 2.Escuela~ | K142: 87~ | L142: 33~ | M142: 1~
A143: s02_p25 | B143: (2,25): ¿Existe una cantina para alumnos? | C143: FALSE | D143: FALSE | E143: 1 | F143: 1 | G143: 0 | H143: 1~2~ | I143: SI~NO~ | J143: 2.Escuela~ | K143: 91~ | L143: 33~ | M143: 1~
A144: s02_p26 | B144: (2,26): ¿Existe una cantina para maestros? | C144: FALSE | D144: FALSE | E144: 1 | F144: 1 | G144: 0 | H144: 1~2~ | I144: SI~NO~ | J144: 2.Escuela~ | K144: 95~ | L144: 33~ | M144: 1~
A145: s06_p01 | B145: (6,01): Nombre del maestro | C145: FALSE | D145: FALSE | E145: 2 | F145: 50 | G145: 0 | J145: 6.Maestro_1~ | K145: 3~ | L145: 7~ | M145: 1~
A146: s06_p02 | B146: (6,02): Código de identificación del maestro | C146: FALSE | D146: FALSE | E146: 0 | F146: 2 | G146: 0 | H146: 0~ | I146: 99~ | J146: 6.Maestro_1~ | K146: 3~ | L146: 31~ | M146: 1~
A147: s06_p03 | B147: (6,03): Estado civil del maestro | C147: FALSE | D147: FALSE | E147: 1 | F147: 1 | G147: 0 | H147: 1~2~3~4~5~ | I147: SOLTERO/A~CASADO/A~CONVIVIENTE O CONCUBINO(A)~DIVORCIADO/A O SEPARADO/A~VIUDO/A~ | J147: 6.Maestro_1~ | K147: 7~ | L147: 14~ | M147: 1~
A148: s06_p04 | B148: (6,04): ¿Dónde nació el maestro? | C148: FALSE | D148: FALSE | E148: 1 | F148: 1 | G148: 0 | H148: 1~2~3~4~5~ | I148: ¿la misma {Localidad}?~¿el mismo {Municilio}?~¿la misma {Provincia}?~¿la misma {Región/Estado}?~¿otro país?~ | J148: 6.Maestro_1~ | K148: 13~ | L148: 14~ | M148: 1~
A149: s06_p05_1 | B149: (6,05): ¿Da clases a primer grado? | C149: FALSE | D149: FALSE | E149: 1 | F149: 1 | G149: 0 | H149: 1~2~ | I149: SI~NO~ | J149: 6.Maestro_1~ | K149: 25~ | L149: 6~ | M149: 1~
A150: s06_p05_2 | B150: (6,05): ¿Da clases a segundo grado? | C150: FALSE | D150: FALSE | E150: 1 | F150: 1 | G150: 0 | H150: 1~2~ | I150: SI~NO~ | J150: 6.Maestro_1~ | K150: 26~ | L150: 6~ | M150: 1~
A151: s06_p05_3 | B151: (6,05): ¿Da clases a tercer grado? | C151: FALSE | D151: FALSE | E151: 1 | F151: 1 | G151: 0 | H151: 1~2~ | I151: SI~NO~ | J151: 6.Maestro_1~ | K151: 27~ | L151: 6~ | M151: 1~
A152: s06_p05_4 | B152: (6,05): ¿Da clases a cuarto grado? | C152: FALSE | D152: FALSE | E152: 1 | F152: 1 | G152: 0 | H152: 1~2~ | I152: SI~NO~ | J152: 6.Maestro_1~ | K152: 28~ | L152: 6~ | M152: 1~
A153: s06_p05_5 | B153: (6,05): ¿Da clases a (otro grado 5)? | C153: FALSE | D153: FALSE | E153: 1 | F153: 1 | G153: 0 | H153: 1~2~ | I153: SI~NO~ | J153: 6.Maestro_1~ | K153: 25~ | L153: 11~ | M153: 1~
A154: s06_p05_6 | B154: (6,05): ¿Da clases a (otro grado 6)? | C154: FALSE | D154: FALSE | E154: 1 | F154: 1 | G154: 0 | H154: 1~2~ | I154: SI~NO~ | J154: 6.Maestro_1~ | K154: 26~ | L154: 11~ | M154: 1~
A155: s06_p05_7 | B155: (6,05): ¿Da clases a (otro grado 7)? | C155: FALSE | D155: FALSE | E155: 1 | F155: 1 | G155: 0 | H155: 1~2~ | I155: SI~NO~ | J155: 6.Maestro_1~ | K155: 27~ | L155: 11~ | M155: 1~
A156: s06_p05_8 | B156: (6,05): ¿Da clases a (otro grado 8)? | C156: FALSE | D156: FALSE | E156: 1 | F156: 1 | G156: 0 | H156: 1~2~ | I156: SI~NO~ | J156: 6.Maestro_1~ | K156: 28~ | L156: 11~ | M156: 1~
A157: s06_p05_9 | B157: (6,05): ¿Da clases a (otro grado 9)? | C157: FALSE | D157: FALSE | E157: 1 | F157: 1 | G157: 0 | H157: 1~2~ | I157: SI~NO~ | J157: 6.Maestro_1~ | K157: 25~ | L157: 16~ | M157: 1~
A158: s06_p05_10 | B158: (6,05): ¿Da clases a (otro grado 10)? | C158: FALSE | D158: FALSE | E158: 1 | F158: 1 | G158: 0 | H158: 1~2~ | I158: SI~NO~ | J158: 6.Maestro_1~ | K158: 26~ | L158: 16~ | M158: 1~
A159: s06_p05_11 | B159: (6,05): ¿Da clases a (otro grado 11)? | C159: FALSE | D159: FALSE | E159: 1 | F159: 1 | G159: 0 | H159: 1~2~ | I159: SI~NO~ | J159: 6.Maestro_1~ | K159: 27~ | L159: 16~ | M159: 1~
A160: s06_p05_12 | B160: (6,05): ¿Da clases a (otro grado 12)? | C160: FALSE | D160: FALSE | E160: 1 | F160: 1 | G160: 0 | H160: 1~2~ | I160: SI~NO~ | J160: 6.Maestro_1~ | K160: 28~ | L160: 16~ | M160: 1~
A161: s06_p06_1 | B161: (6,06): ¿Enseña matemáticas? | C161: FALSE | D161: FALSE | E161: 1 | F161: 1 | G161: 0 | H161: 1~2~ | I161: SI~NO~ | J161: 6.Maestro_1~ | K161: 10~ | L161: 26~ | M161: 1~
A162: s06_p06_2 | B162: (6,06): ¿Enseña castellano? | C162: FALSE | D162: FALSE | E162: 1 | F162: 1 | G162: 0 | H162: 1~2~ | I162: SI~NO~ | J162: 6.Maestro_1~ | K162: 11~ | L162: 26~ | M162: 1~
A163: s06_p06_3 | B163: (6,06): ¿Enseña manualidades? | C163: FALSE | D163: FALSE | E163: 1 | F163: 1 | G163: 0 | H163: 1~2~ | I163: SI~NO~ | J163: 6.Maestro_1~ | K163: 12~ | L163: 26~ | M163: 1~
A164: s06_p06_4 | B164: (6,06): ¿Enseña educación física? | C164: FALSE | D164: FALSE | E164: 1 | F164: 1 | G164: 0 | H164: 1~2~ | I164: SI~NO~ | J164: 6.Maestro_1~ | K164: 13~ | L164: 26~ | M164: 1~
A165: s06_p06_5 | B165: (6,06): ¿Enseña música? | C165: FALSE | D165: FALSE | E165: 1 | F165: 1 | G165: 0 | H165: 1~2~ | I165: SI~NO~ | J165: 6.Maestro_1~ | K165: 14~ | L165: 26~ | M165: 1~
A166: s06_p06_6 | B166: (6,06): ¿Enseña (otra asignatura 1)? | C166: FALSE | D166: FALSE | E166: 1 | F166: 1 | G166: 0 | H166: 1~2~ | I166: SI~NO~ | J166: 6.Maestro_1~ | K166: 15~ | L166: 26~ | M166: 1~
A167: s06_p06_7 | B167: (6,06): ¿Enseña (otra asignatura 2)? | C167: FALSE | D167: FALSE | E167: 1 | F167: 1 | G167: 0 | H167: 1~2~ | I167: SI~NO~ | J167: 6.Maestro_1~ | K167: 16~ | L167: 26~ | M167: 1~
A168: s06_p06_8 | B168: (6,06): ¿Enseña (otra asignatura 3)? | C168: FALSE | D168: FALSE | E168: 1 | F168: 1 | G168: 0 | H168: 1~2~ | I168: SI~NO~ | J168: 6.Maestro_1~ | K168: 17~ | L168: 26~ | M168: 1~
A169: s06_p06_9 | B169: (6,06): ¿Enseña ciencias? | C169: FALSE | D169: FALSE | E169: 1 | F169: 1 | G169: 0 | H169: 1~2~ | I169: SI~NO~ | J169: 6.Maestro_1~ | K169: 10~ | L169: 33~ | M169: 1~
A170: s06_p06_10 | B170: (6,06): ¿Enseña física? | C170: FALSE | D170: FALSE | E170: 1 | F170: 1 | G170: 0 | H170: 1~2~ | I170: SI~NO~ | J170: 6.Maestro_1~ | K170: 11~ | L170: 33~ | M170: 1~
A171: s06_p06_11 | B171: (6,06): ¿Enseña filosofía? | C171: FALSE | D171: FALSE | E171: 1 | F171: 1 | G171: 0 | H171: 1~2~ | I171: SI~NO~ | J171: 6.Maestro_1~ | K171: 12~ | L171: 33~ | M171: 1~
A172: s06_p06_12 | B172: (6,06): ¿Enseña inglés? | C172: FALSE | D172: FALSE | E172: 1 | F172: 1 | G172: 0 | H172: 1~2~ | I172: SI~NO~ | J172: 6.Maestro_1~ | K172: 13~ | L172: 33~ | M172: 1~
A173: s06_p06_13 | B173: (6,06): ¿Enseña otro idioma extranjero? | C173: FALSE | D173: FALSE | E173: 1 | F173: 1 | G173: 0 | H173: 1~2~ | I173: SI~NO~ | J173: 6.Maestro_1~ | K173: 14~ | L173: 33~ | M173: 1~
A174: s06_p06_14 | B174: (6,06): ¿Enseña (otra asignatura 4)? | C174: FALSE | D174: FALSE | E174: 1 | F174: 1 | G174: 0 | H174: 1~2~ | I174: SI~NO~ | J174: 6.Maestro_1~ | K174: 15~ | L174: 33~ | M174: 1~
A175: s06_p06_15 | B175: (6,06): ¿Enseña (otra asignatura 5)? | C175: FALSE | D175: FALSE | E175: 1 | F175: 1 | G175: 0 | H175: 1~2~ | I175: SI~NO~ | J175: 6.Maestro_1~ | K175: 16~ | L175: 33~ | M175: 1~
A176: s06_p06_16 | B176: (6,06): ¿Enseña (otra asignatura 6)? | C176: FALSE | D176: FALSE | E176: 1 | F176: 1 | G176: 0 | H176: 1~2~ | I176: SI~NO~ | J176: 6.Maestro_1~ | K176: 17~ | L176: 33~ | M176: 1~
A177: s06_p07 | B177: (6,07): Idioma en el que da sus clases | C177: FALSE | D177: FALSE | E177: 1 | F177: 1 | G177: 0 | H177: 1~2~3~4~5~6~ | I177: CASTELLANO~OPCIÓN 2~OPCIÓN 3~OPCIÓN 4~OPCIÓN 5~OPCIÓN 6~ | J177: 6.Maestro_1~ | K177: 22~ | L177: 32~ | M177: 1~
A178: s06_p08_a | B178: (6,08): Horas semanales que enseña en la sala | C178: FALSE | D178: FALSE | E178: 0 | F178: 2 | G178: 0 | H178: 0~ | I178: 60~ | J178: 6.Maestro_1~ | K178: 31~ | L178: 32~ | M178: 1~
A179: s06_p08_b | B179: (6,08): Horas semanales que prepara clases | C179: FALSE | D179: FALSE | E179: 0 | F179: 2 | G179: 0 | H179: 0~ | I179: 60~ | J179: 6.Maestro_1~ | K179: 32~ | L179: 32~ | M179: 1~
A180: s06_p08_c | B180: (6,08): Horas semanales que corrige tests | C180: FALSE | D180: FALSE | E180: 0 | F180: 2 | G180: 0 | H180: 0~ | I180: 60~ | J180: 6.Maestro_1~ | K180: 33~ | L180: 32~ | M180: 1~
A181: s06_p08_d | B181: (6,08): Horas semanales que realiza tareas adm. | C181: FALSE | D181: FALSE | E181: 0 | F181: 2 | G181: 0 | H181: 0~ | I181: 60~ | J181: 6.Maestro_1~ | K181: 34~ | L181: 32~ | M181: 1~
A182: s06_p08_e | B182: (6,08): Horas semanales que realiza otras tareas | C182: FALSE | D182: FALSE | E182: 0 | F182: 2 | G182: 0 | H182: 0~ | I182: 60~ | J182: 6.Maestro_1~ | K182: 35~ | L182: 32~ | M182: 1~
A183: s06_p09_n | B183: (6,09): Más alto nivel aprobado | C183: FALSE | D183: FALSE | E183: 1 | F183: 1 | G183: 0 | H183: 1~2~3~4~5~6~7~8~ | I183: PRIMARIA~SECUNDARIA~BACHILLERATO~TERCIARIO TÉCNICO~TERCIARIO COMERCIAL~UNIVERSITARIA~MAESTRIA/DOCTORADO~OTRO (ESPECIFIQUE)~ | J183: 6.Maestro_1~ | K183: 44~ | L183: 14~ | M183: 1~
A184: s06_p09_c | B184: (6,09): Más alto curso aprobado | C184: FALSE | D184: FALSE | E184: 0 | F184: 1 | G184: 0 | H184: 1~ | I184: 7~ | J184: 6.Maestro_1~ | K184: 46~ | L184: 14~ | M184: 1~ | N184: 001~ | O184: s06_p09_n~ | P184: ~ | Q184: 1~ | R184: 7~ | S184: s06_p10~
A185: s06_p09_otra | B185: (6,09): Otra | C185: FALSE | D185: FALSE | E185: 2 | F185: 50 | G185: 0 | J185: 6.Maestro_1~ | K185: 50~ | L185: 7~ | M185: 1~
A186: s06_p10 | B186: (6,10): Año de aprobación último nivel | C186: FALSE | D186: FALSE | E186: 0 | F186: 4 | G186: 0 | H186: 1960~ | I186: 2012~ | J186: 6.Maestro_1~ | K186: 53~ | L186: 14~ | M186: 1~
A187: s06_p11 | B187: (6,11): ¿Quién lo nombró maestro? | C187: FALSE | D187: FALSE | E187: 1 | F187: 1 | G187: 0 | H187: 1~2~3~4~5~6~7~8~9~ | I187: EL/LA maestroA/A~MINISTERIO DE EDUCACIÓN (CENTRAL)~SEDE REGIONAL/ESTATAL DEL MINISTERIO DE EDUCACIÓN~LA COMUNIDAD DE PADRES~EL LIDER COMUNITARIO~EL DUEÑO/A DEL ESTABLECIMIENTO~OPCIÓN 7~OPCIÓN 8~OTRO~ | J187: 6.Maestro_1~ | K187: 55~ | L187: 14~ | M187: 1~
A188: s06_p12 | B188: (6,12): ¿Tiene título de maestro? | C188: FALSE | D188: FALSE | E188: 1 | F188: 1 | G188: 0 | H188: 1~2~ | I188: SI~NO~ | J188: 6.Maestro_1~ | K188: 67~ | L188: 14~ | M188: 1~ | N188: 001~ | O188: s06_p12~ | P188: ~ | Q188: 2~ | R188: 2~ | S188: s06_p15~
A189: s06_p13 | B189: (6,13): ¿Su título es de un área específica? | C189: FALSE | D189: FALSE | E189: 1 | F189: 1 | G189: 0 | H189: 1~2~ | I189: SI~NO~ | J189: 6.Maestro_1~ | K189: 71~ | L189: 14~ | M189: 1~ | N189: 001~ | O189: s06_p13~ | P189: ~ | Q189: 2~ | R189: 2~ | S189: s06_p20~
A190: s06_p14_1 | B190: (6,14): Área en donde está titulado 1 | C190: FALSE | D190: FALSE | E190: 1 | F190: 2 | G190: 0 | H190: 01~02~03~04~05~06~07~08~09~10~11~12~13~14~ | I190: MATEMÁTICAS~CASTELLANO~CIENCIAS~FÍSICA~FILOSOFÍA~MANUALIDADES~EDUCACIÓN FÍSICA~MÚSICA~INGLÉS~OPCIÓN 10~OPCIÓN 11~OPCIÓN 12~OPCIÓN 13~OTRO~ | J190: 6.Maestro_1~ | K190: 41~ | L190: 32~ | M190: 1~
A191: s06_p14_2 | B191: (6,14): Área en donde está titulado 2 | C191: FALSE | D191: FALSE | E191: 1 | F191: 2 | G191: 0 | H191: 01~02~03~04~05~06~07~08~09~10~11~12~13~14~ | I191: MATEMÁTICAS~CASTELLANO~CIENCIAS~FÍSICA~FILOSOFÍA~MANUALIDADES~EDUCACIÓN FÍSICA~MÚSICA~INGLÉS~OPCIÓN 10~OPCIÓN 11~OPCIÓN 12~OPCIÓN 13~OTRO~ | J191: 6.Maestro_1~ | K191: 43~ | L191: 32~ | M191: 1~
A192: s06_p15 | B192: (6,15): ¿Asistió a curso de perfeccionamiento? | C192: FALSE | D192: FALSE | E192: 1 | F192: 1 | G192: 0 | H192: 1~2~ | I192: SI~NO~ | J192: 6.Maestro_1~ | K192: 50~ | L192: 32~ | M192: 1~
A193: s06_p16_1 | B193: (6,16): ¿Asistió a pedagogía el último año? | C193: FALSE | D193: FALSE | E193: 1 | F193: 1 | G193: 0 | H193: 1~2~ | I193: SI~NO~ | J193: 6.Maestro_1~ | K193: 64~ | L193: 27~ | M193: 1~ | N193: 001~ | O193: s06_p16_1~ | P193: ~ | Q193: 2~ | R193: 2~ | S193: s06_p16_2~
A194: s06_p17_1 | B194: (6,17): ¿Quién financió pedagogía? | C194: FALSE | D194: FALSE | E194: 1 | F194: 1 | G194: 0 | H194: 1~2~ | I194: YO MISMO/A~LA ESCUELA~ | J194: 6.Maestro_1~ | K194: 64~ | L194: 31~ | M194: 1~
A195: s06_p16_2 | B195: (6,16): ¿Asistió a materias específicas el último año? | C195: FALSE | D195: FALSE | E195: 1 | F195: 1 | G195: 0 | H195: 1~2~ | I195: SI~NO~ | J195: 6.Maestro_1~ | K195: 65~ | L195: 27~ | M195: 1~ | N195: 001~ | O195: s06_p16_2~ | P195: ~ | Q195: 2~ | R195: 2~ | S195: s06_p16_3~
A196: s06_p17_2 | B196: (6,17): ¿Quién financió materias específicas? | C196: FALSE | D196: FALSE | E196: 1 | F196: 1 | G196: 0 | H196: 1~2~ | I196: YO MISMO/A~LA ESCUELA~ | J196: 6.Maestro_1~ | K196: 65~ | L196: 31~ | M196: 1~
A197: s06_p16_3 | B197: (6,16): ¿Asistió a idiomas el último año? | C197: FALSE | D197: FALSE | E197: 1 | F197: 1 | G197: 0 | H197: 1~2~ | I197: SI~NO~ | J197: 6.Maestro_1~ | K197: 66~ | L197: 27~ | M197: 1~ | N197: 001~ | O197: s06_p16_3~ | P197: ~ | Q197: 2~ | R197: 2~ | S197: s06_p16_4~
A198: s06_p17_3 | B198: (6,17): ¿Quién financió idiomas? | C198: FALSE | D198: FALSE | E198: 1 | F198: 1 | G198: 0 | H198: 1~2~ | I198: YO MISMO/A~LA ESCUELA~ | J198: 6.Maestro_1~ | K198: 66~ | L198: 31~ | M198: 1~
A199: s06_p16_4 | B199: (6,16): ¿Asistió a (otro curso 1) el último año? | C199: FALSE | D199: FALSE | E199: 1 | F199: 1 | G199: 0 | H199: 1~2~ | I199: SI~NO~ | J199: 6.Maestro_1~ | K199: 67~ | L199: 27~ | M199: 1~ | N199: 001~ | O199: s06_p16_4~ | P199: ~ | Q199: 2~ | R199: 2~ | S199: s06_p16_5~
A200: s06_p17_4 | B200: (6,17): ¿Quién financió (otro curso 1)? | C200: FALSE | D200: FALSE | E200: 1 | F200: 1 | G200: 0 | H200: 1~2~ | I200: YO MISMO/A~LA ESCUELA~ | J200: 6.Maestro_1~ | K200: 67~ | L200: 31~ | M200: 1~
... 121 more rows

Sheet TAXI (hidden)
A1: SESSION | B1: START | C1: 13-04-2011 17:35:41 | D1: -1
A2: 1 | B2: 2012-07-09T08:47:13
